AMC,Code,Scheme Name,Scheme Type,Scheme Category,Scheme NAV Name,Scheme Minimum Amount,Launch Date, Closure Date,ISIN Div Payout/ ISIN GrowthISIN Div Reinvestment
Aditya Birla Sun Life AMC Limited,100033,Aditya Birla Sun Life Equity Advantage Fund,Open Ended,Equity Scheme - Large & Mid Cap Fund,Aditya Birla Sun Life Equity Advantage Fund - Regular Growth,5000,24-Feb-1995,24-Feb-1995,INF209K01165
Aditya Birla Sun Life AMC Limited,100034,Aditya Birla Sun Life Equity Advantage Fund,Open Ended,Equity Scheme - Large & Mid Cap Fund,Aditya Birla Sun Life Equity Advantage Fund -Regular - IDCW,5000,24-Feb-1995,24-Feb-1995,INF209K01157INF209K01CE5
Aditya Birla Sun Life AMC Limited,119433,Aditya Birla Sun Life Equity Advantage Fund,Open Ended,Equity Scheme - Large & Mid Cap Fund,Aditya Birla Sun Life Equity Advantage Fund -Direct - IDCW,5000,24-Feb-1995,24-Feb-1995,INF209K01VG0INF209K01VI6
Aditya Birla Sun Life AMC Limited,119436,Aditya Birla Sun Life Equity Advantage Fund,Open Ended,Equity Scheme - Large & Mid Cap Fund,Aditya Birla Sun Life Equity Advantage Fund - Growth - Direct Plan,5000,24-Feb-1995,24-Feb-1995,INF209K01VH8
Aditya Birla Sun Life AMC Limited,100037,Aditya Birla Sun Life Income Fund,Open Ended,Debt Scheme - Medium to Long Duration Fund,Aditya Birla Sun Life Income Fund - Regular - Quarterly IDCW,5000,01-Jan-1994,01-Jan-1994,INF209K01587INF209K01CY3
Aditya Birla Sun Life AMC Limited,100038,Aditya Birla Sun Life Income Fund,Open Ended,Debt Scheme - Medium to Long Duration Fund,Aditya Birla Sun Life Income Fund - Growth - Regular Plan,5000,01-Jan-1994,01-Jan-1994,INF209K01579
Aditya Birla Sun Life AMC Limited,100039,Aditya Birla Sun Life Income Fund,Open Ended,Debt Scheme - Medium to Long Duration Fund,Birla Income Plus-Institutional (Growth),5000,01-Jan-1994,01-Jan-1994,
Aditya Birla Sun Life AMC Limited,100040,Aditya Birla Sun Life Income Fund,Open Ended,Debt Scheme - Medium to Long Duration Fund,Birla Income Plus-Institutional (Dividend),5000,01-Jan-1994,01-Jan-1994,
Aditya Birla Sun Life AMC Limited,111777,Aditya Birla Sun Life Income Fund,Open Ended,Debt Scheme - Medium to Long Duration Fund,Aditya Birla Sun Life Income Fund (Discipline Advantage Plan),5000,01-Jan-1994,01-Jan-1994,INF209K01LD8
Aditya Birla Sun Life AMC Limited,119655,Aditya Birla Sun Life Income Fund,Open Ended,Debt Scheme - Medium to Long Duration Fund,Aditya Birla Sun Life Income Fund - Direct - Quarterly IDCW,5000,01-Jan-1994,01-Jan-1994,INF209K01R13INF209K01WZ8
Aditya Birla Sun Life AMC Limited,119657,Aditya Birla Sun Life Income Fund,Open Ended,Debt Scheme - Medium to Long Duration Fund,Aditya Birla Sun Life Income Fund - Growth - Direct Plan,5000,01-Jan-1994,01-Jan-1994,INF209K01WY1
Aditya Birla Sun Life AMC Limited,133445,Aditya Birla Sun Life Income Fund,Open Ended,Debt Scheme - Medium to Long Duration Fund,Aditya Birla Sun Life Income Fund - Regular - IDCW,5000,01-Jan-1994,01-Jan-1994,INF209KA1WJ6INF209KA1WK4
Aditya Birla Sun Life AMC Limited,133446,Aditya Birla Sun Life Income Fund,Open Ended,Debt Scheme - Medium to Long Duration Fund,Aditya Birla Sun Life Income Fund - Direct - IDCW,5000,01-Jan-1994,01-Jan-1994,INF209KA1WL2INF209KA1WM0
Aditya Birla Sun Life AMC Limited,100041,Aditya Birla Sun Life Liquid Fund,Open Ended,Debt Scheme - Liquid Fund,Aditya Birla Sun Life Liquid Fund -Institutional - IDCW,5000,04-Jun-1997,07-Jun-1997,INF209K01KN9
Aditya Birla Sun Life AMC Limited,100042,Aditya Birla Sun Life Liquid Fund,Open Ended,Debt Scheme - Liquid Fund,Aditya Birla Sun Life Liquid Fund-Retail (Growth),5000,04-Jun-1997,07-Jun-1997,INF209K01ME4
Aditya Birla Sun Life AMC Limited,100043,Aditya Birla Sun Life Liquid Fund,Open Ended,Debt Scheme - Liquid Fund,Aditya Birla Sun Life Liquid Fund-Institutional (Growth),5000,04-Jun-1997,07-Jun-1997,INF209K01RT1
Aditya Birla Sun Life AMC Limited,100044,Aditya Birla Sun Life Liquid Fund,Open Ended,Debt Scheme - Liquid Fund,Aditya Birla Sun Life Liquid Fund -Retail - IDCW,5000,04-Jun-1997,07-Jun-1997,INF209K01KP4
Aditya Birla Sun Life AMC Limited,100046,Aditya Birla Sun Life Liquid Fund,Open Ended,Debt Scheme - Liquid Fund,Aditya Birla Sun Life Liquid Fund -Daily IDCW,5000,04-Jun-1997,07-Jun-1997,INF209K01KQ2INF209K01SQ5
Aditya Birla Sun Life AMC Limited,100047,Aditya Birla Sun Life Liquid Fund,Open Ended,Debt Scheme - Liquid Fund,Aditya Birla Sun Life Liquid Fund - Growth,5000,04-Jun-1997,07-Jun-1997,INF209K01RU9
Aditya Birla Sun Life AMC Limited,112014,Aditya Birla Sun Life Liquid Fund,Open Ended,Debt Scheme - Liquid Fund,Aditya Birla Sun Life Liquid Fund- Discipline Advantage Plan,5000,04-Jun-1997,07-Jun-1997,INF209K01KZ3
Aditya Birla Sun Life AMC Limited,119568,Aditya Birla Sun Life Liquid Fund,Open Ended,Debt Scheme - Liquid Fund,Aditya Birla Sun Life Liquid Fund - Growth - Direct Plan,5000,04-Jun-1997,07-Jun-1997,INF209K01VA3
Aditya Birla Sun Life AMC Limited,119569,Aditya Birla Sun Life Liquid Fund,Open Ended,Debt Scheme - Liquid Fund,Aditya Birla Sun Life Liquid Fund -Direct - daily IDCW,5000,04-Jun-1997,07-Jun-1997,INF209K01UZ2
Aditya Birla Sun Life AMC Limited,119570,Aditya Birla Sun Life Liquid Fund,Open Ended,Debt Scheme - Liquid Fund,Aditya Birla Sun Life Liquid Fund -Direct - weekly IDCW,5000,04-Jun-1997,07-Jun-1997,INF209K01VC9
Aditya Birla Sun Life AMC Limited,119571,Aditya Birla Sun Life Liquid Fund,Open Ended,Debt Scheme - Liquid Fund,Aditya Birla Sun Life Liquid Fund -DIRECT - IDCW,5000,04-Jun-1997,07-Jun-1997,INF209K01VD7
Aditya Birla Sun Life AMC Limited,100048,Aditya Birla Sun Life Liquid Fund,Open Ended,Debt Scheme - Liquid Fund,Aditya Birla Sun Life Liquid Fund -Institutional - weekly  IDCW,5000,04-Jun-1997,07-Jun-1997,INF209KA1LK7INF209K01KY6
Aditya Birla Sun Life AMC Limited,100050,Aditya Birla Sun Life Liquid Fund,Open Ended,Debt Scheme - Liquid Fund,Birla Cash Plus-Birla Cash Plus (Institutional Premium Weekly Dividend),5000,04-Jun-1997,07-Jun-1997,
Aditya Birla Sun Life AMC Limited,100051,Aditya Birla Sun Life Liquid Fund,Open Ended,Debt Scheme - Liquid Fund,Aditya Birla Sun Life Liquid Fund -weekly IDCW,5000,04-Jun-1997,07-Jun-1997,INF209K01KU4INF209KA1LJ9
Aditya Birla Sun Life AMC Limited,103885,Aditya Birla Sun Life Liquid Fund,Open Ended,Debt Scheme - Liquid Fund,Aditya Birla Sun Life Liquid Fund -Regular - IDCW,5000,04-Jun-1997,07-Jun-1997,INF209KA1LI1
Aditya Birla Sun Life AMC Limited,100057,Aditya Birla Sun Life Government Securities Fund,Open Ended,Debt Scheme - Gilt Fund,Aditya Birla Sun Life Govenment Securities Fund -Regular - Quarterly IDCW,5000,12-Oct-1999,12-Oct-1999,INF209K01AF6INF209K01DP9
Aditya Birla Sun Life AMC Limited,100058,Aditya Birla Sun Life Government Securities Fund,Open Ended,Debt Scheme - Gilt Fund,Aditya Birla Sun Life Government Securities Fund  - Growth - Regular Plan,5000,12-Oct-1999,12-Oct-1999,INF209K01AC3INF209K01AD1
Aditya Birla Sun Life AMC Limited,119605,Aditya Birla Sun Life Government Securities Fund,Open Ended,Debt Scheme - Gilt Fund,Aditya Birla Sun Life Government Securities Fund - Growth - Direct Plan,5000,12-Oct-1999,12-Oct-1999,INF209K01XP7
Aditya Birla Sun Life AMC Limited,119606,Aditya Birla Sun Life Government Securities Fund,Open Ended,Debt Scheme - Gilt Fund,Aditya Birla Sun Life Govenment Securities Fund -DIRECT - Quarterly IDCW,5000,12-Oct-1999,12-Oct-1999,INF209KA1LC4
Aditya Birla Sun Life AMC Limited,100063,Aditya Birla Sun Life MNC Fund,Open Ended,Equity Scheme - Sectoral/ Thematic,Aditya Birla Sun Life MNC Fund - Regular - IDCW,5000,16-Nov-1998,16-Nov-1998,INF209K01314INF209K01CL0
Aditya Birla Sun Life AMC Limited,100064,Aditya Birla Sun Life MNC Fund,Open Ended,Equity Scheme - Sectoral/ Thematic,Aditya Birla Sun Life MNC Fund - Growth - Regular Plan,5000,16-Nov-1998,16-Nov-1998,INF209K01322
Aditya Birla Sun Life AMC Limited,119646,Aditya Birla Sun Life MNC Fund,Open Ended,Equity Scheme - Sectoral/ Thematic,Aditya Birla Sun Life MNC Fund - Growth - Direct Plan,5000,16-Nov-1998,16-Nov-1998,INF209K01VT3
Aditya Birla Sun Life AMC Limited,119647,Aditya Birla Sun Life MNC Fund,Open Ended,Equity Scheme - Sectoral/ Thematic,Aditya Birla Sun Life MNC Fund - DIRECT - IDCW,5000,16-Nov-1998,16-Nov-1998,INF209K01Q06INF209K01VU1
DSP Asset Managers Private Limited,100077,DSP Bond Fund,Open Ended,Debt Scheme - Medium Duration Fund,DSP Bond Fund - IDCW,Rs. 1000/  and any amount thereafter,07-Apr-1997,15-Apr-1997,INF740K01565INF740K01995
DSP Asset Managers Private Limited,100078,DSP Bond Fund,Open Ended,Debt Scheme - Medium Duration Fund,DSP Bond Fund - Growth,Rs. 1000/  and any amount thereafter,07-Apr-1997,15-Apr-1997,INF740K01557
DSP Asset Managers Private Limited,100079,DSP Bond Fund,Open Ended,Debt Scheme - Medium Duration Fund,DSP Bond Fund - IDCW - Monthly,Rs. 1000/  and any amount thereafter,07-Apr-1997,15-Apr-1997,INF740K01573INF740K01AA1
DSP Asset Managers Private Limited,118921,DSP Bond Fund,Open Ended,Debt Scheme - Medium Duration Fund,DSP Bond Fund - Direct Plan - IDCW - Monthly,Rs. 1000/  and any amount thereafter,07-Apr-1997,15-Apr-1997,INF740K01NA4INF740K01NC0
DSP Asset Managers Private Limited,118922,DSP Bond Fund,Open Ended,Debt Scheme - Medium Duration Fund,DSP Bond Fund - Direct Plan - IDCW,Rs. 1000/  and any amount thereafter,07-Apr-1997,15-Apr-1997,INF740K01NB2INF740K01ND8
DSP Asset Managers Private Limited,118924,DSP Bond Fund,Open Ended,Debt Scheme - Medium Duration Fund,DSP Bond Fund - Direct Plan - Growth,Rs. 1000/  and any amount thereafter,07-Apr-1997,15-Apr-1997,INF740K01MZ3
DSP Asset Managers Private Limited,100080,DSP Flexi Cap Fund,Open Ended,Equity Scheme - Flexi Cap Fund,DSP Flexi Cap Fund - Regular Plan - IDCW,Rs. 1000/  and any amount thereafter,04-Apr-1997,15-Apr-1997,INF740K01011INF740K01029
DSP Asset Managers Private Limited,105875,DSP Flexi Cap Fund,Open Ended,Equity Scheme - Flexi Cap Fund,DSP Flexi Cap Fund - Regular Plan - Growth,Rs. 1000/  and any amount thereafter,04-Apr-1997,15-Apr-1997,INF740K01037
DSP Asset Managers Private Limited,119076,DSP Flexi Cap Fund,Open Ended,Equity Scheme - Flexi Cap Fund,DSP Flexi Cap Fund - Direct Plan - Growth,Rs. 1000/  and any amount thereafter,04-Apr-1997,15-Apr-1997,INF740K01PI2
DSP Asset Managers Private Limited,119077,DSP Flexi Cap Fund,Open Ended,Equity Scheme - Flexi Cap Fund,DSP Flexi Cap Fund - Direct Plan - IDCW,Rs. 1000/  and any amount thereafter,04-Apr-1997,15-Apr-1997,INF740K01PJ0INF740K01PK8
DSP Asset Managers Private Limited,119019,DSP Equity & Bond Fund,Open Ended,Hybrid Scheme - Aggressive Hybrid Fund,DSP Equity & Bond Fund - Direct Plan - Growth,Rs. 1000/  and any amount thereafter,03-May-1999,14-May-1999,INF740K01NY4
DSP Asset Managers Private Limited,119020,DSP Equity & Bond Fund,Open Ended,Hybrid Scheme - Aggressive Hybrid Fund,DSP Equity & Bond Fund - Direct Plan - IDCW,Rs. 1000/  and any amount thereafter,03-May-1999,14-May-1999,INF740K01NZ1INF740K01OA2
DSP Asset Managers Private Limited,100081,DSP Equity & Bond Fund,Open Ended,Hybrid Scheme - Aggressive Hybrid Fund,DSP Equity & Bond Fund- Regular Plan - Growth,Rs. 1000/  and any amount thereafter,03-May-1999,14-May-1999,INF740K01318
DSP Asset Managers Private Limited,100082,DSP Equity & Bond Fund,Open Ended,Hybrid Scheme - Aggressive Hybrid Fund,DSP Equity & Bond Fund- Regular Plan - IDCW,Rs. 1000/  and any amount thereafter,03-May-1999,14-May-1999,INF740K01326INF740K01334
DSP Asset Managers Private Limited,100084,DSP Gilt Fund,Open Ended,Debt Scheme - Gilt Fund,DSP Gilt Fund - Regular Plan - Growth,Rs. 100/  and any amount thereafter,20-Sep-1999,23-Sep-1999,INF740K01615
DSP Asset Managers Private Limited,100085,DSP Gilt Fund,Open Ended,Debt Scheme - Gilt Fund,DSP Gilt Fund - Regular Plan - IDCW,Rs. 100/  and any amount thereafter,20-Sep-1999,23-Sep-1999,INF740K01607INF740K01AD5
DSP Asset Managers Private Limited,100086,DSP Gilt Fund,Open Ended,Debt Scheme - Gilt Fund,DSP Gilt Fund - Regular Plan - IDCW - Monthly,Rs. 100/  and any amount thereafter,20-Sep-1999,23-Sep-1999,INF740K01623INF740K01AE3
DSP Asset Managers Private Limited,119099,DSP Gilt Fund,Open Ended,Debt Scheme - Gilt Fund,DSP Gilt Fund - Direct Plan - Growth,Rs. 100/  and any amount thereafter,20-Sep-1999,23-Sep-1999,INF740K01NF3
DSP Asset Managers Private Limited,119100,DSP Gilt Fund,Open Ended,Debt Scheme - Gilt Fund,DSP Gilt Fund - Direct Plan - IDCW - Monthly,Rs. 100/  and any amount thereafter,20-Sep-1999,23-Sep-1999,INF740K01NE6INF740K01NH9
DSP Asset Managers Private Limited,119101,DSP Gilt Fund,Open Ended,Debt Scheme - Gilt Fund,DSP Gilt Fund - Direct Plan - IDCW,Rs. 100/  and any amount thereafter,20-Sep-1999,23-Sep-1999,INF740K01NG1INF740K01NI7
DSP Asset Managers Private Limited,100087,DSP Savings Fund,Open Ended,Debt Scheme - Money Market Fund,DSP Savings Fund - Regular Plan - Growth,Rs. 1000/- & any amount thereafter,20-Sep-1999,23-Sep-1999,INF740K01714
DSP Asset Managers Private Limited,100088,DSP Savings Fund,Open Ended,Debt Scheme - Money Market Fund,DSP Savings Fund - Regular Plan - IDCW,Rs. 1000/- & any amount thereafter,20-Sep-1999,23-Sep-1999,INF740K01706INF740K01AJ2
DSP Asset Managers Private Limited,100089,DSP Savings Fund,Open Ended,Debt Scheme - Money Market Fund,DSP Savings Fund - Regular Plan - IDCW - Monthly,Rs. 1000/- & any amount thereafter,20-Sep-1999,23-Sep-1999,INF740K01722INF740K01AK0
DSP Asset Managers Private Limited,119106,DSP Savings Fund,Open Ended,Debt Scheme - Money Market Fund,DSP Savings Fund - Direct Plan - Growth,Rs. 1000/- & any amount thereafter,20-Sep-1999,23-Sep-1999,INF740K01NU2
DSP Asset Managers Private Limited,119107,DSP Savings Fund,Open Ended,Debt Scheme - Money Market Fund,DSP Savings Fund - Direct Plan - IDCW - Monthly,Rs. 1000/- & any amount thereafter,20-Sep-1999,23-Sep-1999,INF740K01NT4INF740K01NW8
DSP Asset Managers Private Limited,119108,DSP Savings Fund,Open Ended,Debt Scheme - Money Market Fund,DSP Savings Fund - Direct Plan - IDCW,Rs. 1000/- & any amount thereafter,20-Sep-1999,23-Sep-1999,INF740K01NV0INF740K01NX6
DSP Asset Managers Private Limited,123287,DSP Savings Fund,Open Ended,Debt Scheme - Money Market Fund,DSP Savings Fund - Regular Plan - IDCW - Daily,Rs. 1000/- & any amount thereafter,20-Sep-1999,23-Sep-1999,INF740KA1PC1
DSP Asset Managers Private Limited,123288,DSP Savings Fund,Open Ended,Debt Scheme - Money Market Fund,DSP Savings Fund - Direct Plan -  IDCW - Daily,Rs. 1000/- & any amount thereafter,20-Sep-1999,23-Sep-1999,INF740KA1PB3
DSP Asset Managers Private Limited,103819,DSP Equity Opportunities Fund,Open Ended,Equity Scheme - Large & Mid Cap Fund,DSP Equity Opportunities Fund-Regular Plan - Growth,Rs. 1000/  and any amount thereafter,11-Mar-2000,18-Apr-2000,INF740K01094
DSP Asset Managers Private Limited,103820,DSP Equity Opportunities Fund,Open Ended,Equity Scheme - Large & Mid Cap Fund,DSP Equity Opportunities Fund-Regular Plan - IDCW,Rs. 1000/  and any amount thereafter,11-Mar-2000,18-Apr-2000,INF740K01078INF740K01086
DSP Asset Managers Private Limited,119218,DSP Equity Opportunities Fund,Open Ended,Equity Scheme - Large & Mid Cap Fund,DSP Equity Opportunities Fund - Direct Plan - Growth,Rs. 1000/  and any amount thereafter,11-Mar-2000,18-Apr-2000,INF740K01PL6
DSP Asset Managers Private Limited,119219,DSP Equity Opportunities Fund,Open Ended,Equity Scheme - Large & Mid Cap Fund,DSP Equity Opportunities Fund - Direct Plan - IDCW,Rs. 1000/  and any amount thereafter,11-Mar-2000,18-Apr-2000,INF740K01PM4INF740K01PN2
HDFC Asset Management Company Limited,100119,HDFC Balanced Advantage Fund,Open Ended,Hybrid Scheme - Dynamic Asset Allocation or Balanced Advantage,HDFC Balanced Advantage Fund - Growth Plan,For new investors  Rs.5000 For existing Rs. 1000,20-Jul-2000,10-Aug-2000,INF179K01830
HDFC Asset Management Company Limited,100120,HDFC Balanced Advantage Fund,Open Ended,Hybrid Scheme - Dynamic Asset Allocation or Balanced Advantage,HDFC Balanced Advantage Fund - IDCW Plan,For new investors  Rs.5000 For existing Rs. 1000,20-Jul-2000,10-Aug-2000,INF179K01814INF179K01822
HDFC Asset Management Company Limited,118968,HDFC Balanced Advantage Fund,Open Ended,Hybrid Scheme - Dynamic Asset Allocation or Balanced Advantage,HDFC Balanced Advantage Fund - Growth Plan - Direct Plan,For new investors  Rs.5000 For existing Rs. 1000,20-Jul-2000,10-Aug-2000,INF179K01WA6
HDFC Asset Management Company Limited,118969,HDFC Balanced Advantage Fund,Open Ended,Hybrid Scheme - Dynamic Asset Allocation or Balanced Advantage,HDFC Balanced Advantage Fund - IDCW Plan - Direct Plan,For new investors  Rs.5000 For existing Rs. 1000,20-Jul-2000,10-Aug-2000,INF179K01VY8INF179K01VZ5
HDFC Asset Management Company Limited,100123,HDFC Income Fund,Open Ended,Debt Scheme - Medium to Long Duration Fund,HDFC Income Fund - Quarterly IDCW Option,REFER SID,11-Sep-2000,,INF179K01947INF179K01954
HDFC Asset Management Company Limited,100124,HDFC Income Fund,Open Ended,Debt Scheme - Medium to Long Duration Fund,HDFC Income Fund - Growth Option,REFER SID,11-Sep-2000,,INF179K01962
HDFC Asset Management Company Limited,100125,HDFC Income Fund,Open Ended,Debt Scheme - Medium to Long Duration Fund,HDFC Income Fund-Premium Plan Dividend,REFER SID,11-Sep-2000,,
HDFC Asset Management Company Limited,100126,HDFC Income Fund,Open Ended,Debt Scheme - Medium to Long Duration Fund,HDFC Income Fund-Premium Plus Dividend,REFER SID,11-Sep-2000,,
HDFC Asset Management Company Limited,100127,HDFC Income Fund,Open Ended,Debt Scheme - Medium to Long Duration Fund,HDFC Income Fund-Premium Plus Growth,REFER SID,11-Sep-2000,,
HDFC Asset Management Company Limited,100128,HDFC Income Fund,Open Ended,Debt Scheme - Medium to Long Duration Fund,HDFC Income Fund-Premium Plan Growth,REFER SID,11-Sep-2000,,
HDFC Asset Management Company Limited,100129,HDFC Income Fund,Open Ended,Debt Scheme - Medium to Long Duration Fund,HDFC Income Fund-Premium Plus Growth,REFER SID,11-Sep-2000,,
HDFC Asset Management Company Limited,100130,HDFC Income Fund,Open Ended,Debt Scheme - Medium to Long Duration Fund,HDFC Income Fund-Premium Plus Dividend,REFER SID,11-Sep-2000,,
HDFC Asset Management Company Limited,119068,HDFC Income Fund,Open Ended,Debt Scheme - Medium to Long Duration Fund,HDFC Income Fund - Quarterly IDCW- Direct Plan,REFER SID,11-Sep-2000,,INF179K01WJ7INF179K01WK5
HDFC Asset Management Company Limited,119069,HDFC Income Fund,Open Ended,Debt Scheme - Medium to Long Duration Fund,HDFC Income Fund - Growth Option - Direct Plan,REFER SID,11-Sep-2000,,INF179K01WL3
HDFC Asset Management Company Limited,133365,HDFC Income Fund,Open Ended,Debt Scheme - Medium to Long Duration Fund,HDFC Income Fund - Normal IDCW - Direct Plan,REFER SID,11-Sep-2000,,INF179KA1Q12
HDFC Asset Management Company Limited,133366,HDFC Income Fund,Open Ended,Debt Scheme - Medium to Long Duration Fund,HDFC Income Fund - Normal IDCW Option,REFER SID,11-Sep-2000,,INF179KA1Q38
quant Money Managers Limited,100174,Quant ELSS Tax Saver Fund,Open Ended,Equity Scheme - ELSS,quant ELSS Tax Saver Fund - IDCW Option - Regular Plan,Rs. 5000/-,08-Mar-2000,31-Mar-2000,INF966L01119
quant Money Managers Limited,100175,Quant ELSS Tax Saver Fund,Open Ended,Equity Scheme - ELSS,quant ELSS Tax Saver Fund - Growth Option - Regular Plan,Rs. 5000/-,08-Mar-2000,31-Mar-2000,INF966L01135
quant Money Managers Limited,120846,Quant ELSS Tax Saver Fund,Open Ended,Equity Scheme - ELSS,quant ELSS Tax Saver Fund - IDCW Option - Direct Plan,Rs. 5000/-,08-Mar-2000,31-Mar-2000,INF966L01960INF966L01127
quant Money Managers Limited,120847,Quant ELSS Tax Saver Fund,Open Ended,Equity Scheme - ELSS,quant ELSS Tax Saver Fund - Growth Option - Direct Plan,Rs. 5000/-,08-Mar-2000,31-Mar-2000,INF966L01986
quant Money Managers Limited,100176,Quant Small Cap Fund,Open Ended,Equity Scheme - Small Cap Fund,quant Small Cap Fund - IDCW Option - Regular Plan,Rs. 5000/-,23-Sep-1996,30-Oct-1996,INF206A01022INF966L01044
quant Money Managers Limited,100177,Quant Small Cap Fund,Open Ended,Equity Scheme - Small Cap Fund,quant Small Cap Fund - Growth - Regular Plan,Rs. 5000/-,23-Sep-1996,30-Oct-1996,INF966L01AA0
quant Money Managers Limited,120827,Quant Small Cap Fund,Open Ended,Equity Scheme - Small Cap Fund,quant Small Cap Fund - IDCW Option - Direct Plan,Rs. 5000/-,23-Sep-1996,30-Oct-1996,INF966L01663INF966L01671
quant Money Managers Limited,120828,Quant Small Cap Fund,Open Ended,Equity Scheme - Small Cap Fund,quant Small Cap Fund - Growth Option - Direct Plan,Rs. 5000/-,23-Sep-1996,30-Oct-1996,INF966L01689
JM Financial Asset Management Limited,100218,JM Large Cap Fund,Open Ended,Equity Scheme - Large Cap Fund,JM Large Cap Fund (Regular) - IDCW ,Rs.5000/- & in multiples of any amount thereafter,01-Apr-1995,,INF192K01585INF192K01593
JM Financial Asset Management Limited,100219,JM Large Cap Fund,Open Ended,Equity Scheme - Large Cap Fund,JM Large Cap Fund (Regular) - Growth Option,Rs.5000/- & in multiples of any amount thereafter,01-Apr-1995,,INF192K01601
JM Financial Asset Management Limited,134960,JM Large Cap Fund,Open Ended,Equity Scheme - Large Cap Fund,JM Large Cap Fund (Direct) - Quarterly IDCW,Rs.5000/- & in multiples of any amount thereafter,01-Apr-1995,,INF192K01JN9INF192K01JO7
JM Financial Asset Management Limited,134961,JM Large Cap Fund,Open Ended,Equity Scheme - Large Cap Fund,JM Large Cap Fund (Regular) - Annual IDCW,Rs.5000/- & in multiples of any amount thereafter,01-Apr-1995,,INF192K01JS8INF192K01JT6
JM Financial Asset Management Limited,134954,JM Large Cap Fund,Open Ended,Equity Scheme - Large Cap Fund,JM Large Cap Fund (Regular) - Quarterly IDCW,Rs.5000/- & in multiples of any amount thereafter,01-Apr-1995,,INF192K01JL3INF192K01JM1
JM Financial Asset Management Limited,134955,JM Large Cap Fund,Open Ended,Equity Scheme - Large Cap Fund,JM Large Cap Fund (Regular) - Half Yearly IDCW,Rs.5000/- & in multiples of any amount thereafter,01-Apr-1995,,INF192K01JP4INF192K01JQ2
JM Financial Asset Management Limited,134956,JM Large Cap Fund,Open Ended,Equity Scheme - Large Cap Fund,JM Large Cap Fund (Direct) - Monthly IDCW ,Rs.5000/- & in multiples of any amount thereafter,01-Apr-1995,,INF192K01JJ7INF192K01JK5
JM Financial Asset Management Limited,134957,JM Large Cap Fund,Open Ended,Equity Scheme - Large Cap Fund,JM Large Cap Fund (Direct) - Half Yearly IDCW ,Rs.5000/- & in multiples of any amount thereafter,01-Apr-1995,,INF192K01JR0INF192K01JZ3
JM Financial Asset Management Limited,134958,JM Large Cap Fund,Open Ended,Equity Scheme - Large Cap Fund,JM Large Cap Fund (Direct) - Annual IDCW,Rs.5000/- & in multiples of any amount thereafter,01-Apr-1995,,INF192K01JU4INF192K01JV2
JM Financial Asset Management Limited,134959,JM Large Cap Fund,Open Ended,Equity Scheme - Large Cap Fund,JM Large Cap Fund (Regular) - Monthly IDCW,Rs.5000/- & in multiples of any amount thereafter,01-Apr-1995,,INF192K01JH1INF192K01JI9
JM Financial Asset Management Limited,120489,JM Large Cap Fund,Open Ended,Equity Scheme - Large Cap Fund,JM Large Cap Fund (Direct) - IDCW,Rs.5000/- & in multiples of any amount thereafter,01-Apr-1995,,INF192K01BX5INF192K01BY3
JM Financial Asset Management Limited,120490,JM Large Cap Fund,Open Ended,Equity Scheme - Large Cap Fund,JM Large Cap Fund (Direct) - Growth Option,Rs.5000/- & in multiples of any amount thereafter,01-Apr-1995,,INF192K01BZ0
JM Financial Asset Management Limited,100220,JM Aggressive Hybrid Fund,Open Ended,Hybrid Scheme - Aggressive Hybrid Fund,JM Aggressive Hybrid Fund (Regular) - IDCW,Rs.5000/- & in multiples of any amount thereafter,01-Apr-1995,01-Apr-1995,INF192K01528INF192K01536
JM Financial Asset Management Limited,100221,JM Aggressive Hybrid Fund,Open Ended,Hybrid Scheme - Aggressive Hybrid Fund,JM Aggressive Hybrid Fund (Regular) -Growth Option,Rs.5000/- & in multiples of any amount thereafter,01-Apr-1995,01-Apr-1995,INF192K01544
JM Financial Asset Management Limited,133407,JM Aggressive Hybrid Fund,Open Ended,Hybrid Scheme - Aggressive Hybrid Fund,JM Aggressive Hybrid Fund (Regular) - Annual Bonus Option - Principal Units,Rs.5000/- & in multiples of any amount thereafter,01-Apr-1995,01-Apr-1995,INF192K01GZ9
JM Financial Asset Management Limited,133408,JM Aggressive Hybrid Fund,Open Ended,Hybrid Scheme - Aggressive Hybrid Fund,JM Aggressive Hybrid Fund (Regular) - Half Yearly IDCW,Rs.5000/- & in multiples of any amount thereafter,01-Apr-1995,01-Apr-1995,INF192K01HD4INF192K01HE2
JM Financial Asset Management Limited,133409,JM Aggressive Hybrid Fund,Open Ended,Hybrid Scheme - Aggressive Hybrid Fund,JM Aggressive Hybrid Fund (Direct) - Half Yearly Bonus Option - Principal Units,Rs.5000/- & in multiples of any amount thereafter,01-Apr-1995,01-Apr-1995,INF192K01HV6
JM Financial Asset Management Limited,133410,JM Aggressive Hybrid Fund,Open Ended,Hybrid Scheme - Aggressive Hybrid Fund,JM Aggressive Hybrid Fund (Regular) - Quarterly Bonus Option - Principal Units,Rs.5000/- & in multiples of any amount thereafter,01-Apr-1995,01-Apr-1995,INF192K01HX2
JM Financial Asset Management Limited,133411,JM Aggressive Hybrid Fund,Open Ended,Hybrid Scheme - Aggressive Hybrid Fund,JM Aggressive Hybrid Fund (Direct) - Quarterly Bonus Option - Principal Units,Rs.5000/- & in multiples of any amount thereafter,01-Apr-1995,01-Apr-1995,INF192K01HZ7
JM Financial Asset Management Limited,133412,JM Aggressive Hybrid Fund,Open Ended,Hybrid Scheme - Aggressive Hybrid Fund,JM Aggressive Hybrid Fund (Direct) - Monthly IDCW,Rs.5000/- & in multiples of any amount thereafter,01-Apr-1995,01-Apr-1995,INF192K01HN3INF192K01HO1
JM Financial Asset Management Limited,133401,JM Aggressive Hybrid Fund,Open Ended,Hybrid Scheme - Aggressive Hybrid Fund,JM Aggressive Hybrid Fund (Direct) - Bonus Option - Principal Units,Rs.5000/- & in multiples of any amount thereafter,01-Apr-1995,01-Apr-1995,INF192K01GP0
JM Financial Asset Management Limited,133402,JM Aggressive Hybrid Fund,Open Ended,Hybrid Scheme - Aggressive Hybrid Fund,JM Aggressive Hybrid Fund (Direct) - Half Yearly IDCW,Rs.5000/- & in multiples of any amount thereafter,01-Apr-1995,01-Apr-1995,INF192K01HH5INF192K01HI3
JM Financial Asset Management Limited,133403,JM Aggressive Hybrid Fund,Open Ended,Hybrid Scheme - Aggressive Hybrid Fund,JM Aggressive Hybrid Fund (Regular) - Half Yearly Bonus Option - Principal Units,Rs.5000/- & in multiples of any amount thereafter,01-Apr-1995,01-Apr-1995,INF192K01HT0
JM Financial Asset Management Limited,133404,JM Aggressive Hybrid Fund,Open Ended,Hybrid Scheme - Aggressive Hybrid Fund,JM Aggressive Hybrid Fund (Regular) - Monthly IDCW,Rs.5000/- & in multiples of any amount thereafter,01-Apr-1995,01-Apr-1995,INF192K01HL7INF192K01HM5
JM Financial Asset Management Limited,133405,JM Aggressive Hybrid Fund,Open Ended,Hybrid Scheme - Aggressive Hybrid Fund,JM Aggressive Hybrid Fund (Regular) - Quarterly IDCW,Rs.5000/- & in multiples of any amount thereafter,01-Apr-1995,01-Apr-1995,INF192K01HP8INF192K01HQ6
JM Financial Asset Management Limited,133406,JM Aggressive Hybrid Fund,Open Ended,Hybrid Scheme - Aggressive Hybrid Fund,JM Aggressive Hybrid Fund (Direct) - Quarterly IDCW,Rs.5000/- & in multiples of any amount thereafter,01-Apr-1995,01-Apr-1995,INF192K01HR4INF192K01HS2
JM Financial Asset Management Limited,120483,JM Aggressive Hybrid Fund,Open Ended,Hybrid Scheme - Aggressive Hybrid Fund,JM Aggressive Hybrid Fund (Direct) - IDCW,Rs.5000/- & in multiples of any amount thereafter,01-Apr-1995,01-Apr-1995,INF192K01BO4INF192K01BP1
JM Financial Asset Management Limited,120484,JM Aggressive Hybrid Fund,Open Ended,Hybrid Scheme - Aggressive Hybrid Fund,JM Aggressive Hybrid Fund (Direct) - Growth Option,Rs.5000/- & in multiples of any amount thereafter,01-Apr-1995,01-Apr-1995,INF192K01BQ9
JM Financial Asset Management Limited,130904,JM Aggressive Hybrid Fund,Open Ended,Hybrid Scheme - Aggressive Hybrid Fund,JM Aggressive Hybrid Fund (Direct) - Annual Bonus Option,Rs.5000/- & in multiples of any amount thereafter,01-Apr-1995,01-Apr-1995,INF192K01HB8
JM Financial Asset Management Limited,131476,JM Aggressive Hybrid Fund,Open Ended,Hybrid Scheme - Aggressive Hybrid Fund,JM Aggressive Hybrid Fund (Regular) - Annual IDCW,Rs.5000/- & in multiples of any amount thereafter,01-Apr-1995,01-Apr-1995,INF192K01HF9INF192K01HG7
JM Financial Asset Management Limited,131477,JM Aggressive Hybrid Fund,Open Ended,Hybrid Scheme - Aggressive Hybrid Fund,JM Aggressive Hybrid Fund (Direct) - Annual IDCW,Rs.5000/- & in multiples of any amount thereafter,01-Apr-1995,01-Apr-1995,INF192K01HJ1INF192K01HK9
JM Financial Asset Management Limited,133400,JM Aggressive Hybrid Fund,Open Ended,Hybrid Scheme - Aggressive Hybrid Fund,JM Aggressive Hybrid Fund (Regular) - Bonus Option - Principal Units,Rs.5000/- & in multiples of any amount thereafter,01-Apr-1995,01-Apr-1995,INF192K01GN5
JM Financial Asset Management Limited,100222,JM Medium to Long Duration Fund,Open Ended,Debt Scheme - Medium to Long Duration Fund,JM Medium to Long Duration Fund (Regular) - Quarterly IDCW,5000,01-Jan-2013,,INF192K01999INF192K01AA5
JM Financial Asset Management Limited,100223,JM Medium to Long Duration Fund,Open Ended,Debt Scheme - Medium to Long Duration Fund,JM Medium to Long Duration Fund (Regular) - Growth Option,5000,01-Jan-2013,,INF192K01AB3
JM Financial Asset Management Limited,100224,JM Medium to Long Duration Fund,Open Ended,Debt Scheme - Medium to Long Duration Fund,JM Income Fund-Serial Plan 2004 Growth,5000,01-Jan-2013,,
JM Financial Asset Management Limited,100225,JM Medium to Long Duration Fund,Open Ended,Debt Scheme - Medium to Long Duration Fund,JM Income Fund-Serial Plan 2003 Dividend,5000,01-Jan-2013,,
JM Financial Asset Management Limited,100226,JM Medium to Long Duration Fund,Open Ended,Debt Scheme - Medium to Long Duration Fund,JM Income Fund-JM Income Fund - Serial Plan 2004 Growth,5000,01-Jan-2013,,
JM Financial Asset Management Limited,100227,JM Medium to Long Duration Fund,Open Ended,Debt Scheme - Medium to Long Duration Fund,JM Income Fund-Serial Plan 2004 Growth,5000,01-Jan-2013,,
JM Financial Asset Management Limited,100228,JM Medium to Long Duration Fund,Open Ended,Debt Scheme - Medium to Long Duration Fund,JM Income Fund-Serial Plan 2004 Dividend,5000,01-Jan-2013,,
JM Financial Asset Management Limited,120428,JM Medium to Long Duration Fund,Open Ended,Debt Scheme - Medium to Long Duration Fund,JM Medium to Long Duration Fund (Direct) - Bonus Option - Principal Units,5000,01-Jan-2013,,INF192K01CX3
JM Financial Asset Management Limited,120429,JM Medium to Long Duration Fund,Open Ended,Debt Scheme - Medium to Long Duration Fund,JM Medium to Long Duration Fund (Direct)-Bonus Option - Bonus Units,5000,01-Jan-2013,,
JM Financial Asset Management Limited,120430,JM Medium to Long Duration Fund,Open Ended,Debt Scheme - Medium to Long Duration Fund,JM Medium to Long Duration Fund (Direct) - Growth Option,5000,01-Jan-2013,,INF192K01CW5
JM Financial Asset Management Limited,120431,JM Medium to Long Duration Fund,Open Ended,Debt Scheme - Medium to Long Duration Fund,JM Medium to Long Duration Fund (Direct) - Quarterly IDCW,5000,01-Jan-2013,,INF192K01CU9INF192K01CV7
JM Financial Asset Management Limited,100233,JM Liquid Fund,Open Ended,Debt Scheme - Liquid Fund,JM Liquid Fund (Regular) - Weekly IDCW,5000,23-Dec-1997,,INF192K01841INF192K01858
JM Financial Asset Management Limited,100234,JM Liquid Fund,Open Ended,Debt Scheme - Liquid Fund,JM Liquid Fund - Growth Option,5000,23-Dec-1997,,INF192K01882
JM Financial Asset Management Limited,100235,JM Liquid Fund,Open Ended,Debt Scheme - Liquid Fund,JM High Liquidity Fund-Serial Plan 01,5000,23-Dec-1997,,
JM Financial Asset Management Limited,100236,JM Liquid Fund,Open Ended,Debt Scheme - Liquid Fund,JM High Liquidity Fund-Serial Plan 02,5000,23-Dec-1997,,
JM Financial Asset Management Limited,100239,JM Liquid Fund,Open Ended,Debt Scheme - Liquid Fund,JM High Liquidity Fund-Monthly Dividend,5000,23-Dec-1997,,
JM Financial Asset Management Limited,100240,JM Liquid Fund,Open Ended,Debt Scheme - Liquid Fund,JM High Liquidity Fund-Institutional Plan - Monthly Dividend,5000,23-Dec-1997,,
JM Financial Asset Management Limited,148413,JM Liquid Fund,Open Ended,Debt Scheme - Liquid Fund,JM Liquid Fund - Unclaimed Brokerage I.E.F. (Direct) - Growth Plan,5000,23-Dec-1997,,
JM Financial Asset Management Limited,148414,JM Liquid Fund,Open Ended,Debt Scheme - Liquid Fund,JM Liquid Fund - Unclaimed Application Refund Amount I.E.F. (Direct) - Growth Plan,5000,23-Dec-1997,,
JM Financial Asset Management Limited,148415,JM Liquid Fund,Open Ended,Debt Scheme - Liquid Fund,JM Liquid Fund - Withheld Brokerage I.E.F. (Direct) - Growth Plan,5000,23-Dec-1997,,
JM Financial Asset Management Limited,120410,JM Liquid Fund,Open Ended,Debt Scheme - Liquid Fund,JM Liquid Fund (Direct) - Bonus Option - Bonus Option - Principal units,5000,23-Dec-1997,,INF192K01CN4
JM Financial Asset Management Limited,120411,JM Liquid Fund,Open Ended,Debt Scheme - Liquid Fund,JM Liquid Fund (Direct) - Daily IDCW,5000,23-Dec-1997,,INF192K01CH6
JM Financial Asset Management Limited,139257,JM Liquid Fund,Open Ended,Debt Scheme - Liquid Fund,JM Liquid Fund Unclaimed Redemption (Direct) Growth Plan,5000,23-Dec-1997,,INF192K01LA2
JM Financial Asset Management Limited,139258,JM Liquid Fund,Open Ended,Debt Scheme - Liquid Fund,JM Liquid Fund Unclaimed Dividend (Direct) Growth Plan,5000,23-Dec-1997,,INF192K01LB0
JM Financial Asset Management Limited,139259,JM Liquid Fund,Open Ended,Debt Scheme - Liquid Fund,JM Liquid Fund Unclaimed Redemption IEF (Direct) Growth Plan,5000,23-Dec-1997,,INF192K01LC8
JM Financial Asset Management Limited,139260,JM Liquid Fund,Open Ended,Debt Scheme - Liquid Fund,JM Liquid Fund Unclaimed Dividend IEF (Direct) Growth Plan,5000,23-Dec-1997,,INF192K01LD6
JM Financial Asset Management Limited,100242,JM Liquid Fund,Open Ended,Debt Scheme - Liquid Fund,JM High Liquidity Fund-Montly Dividend,5000,23-Dec-1997,,
JM Financial Asset Management Limited,100244,JM Liquid Fund,Open Ended,Debt Scheme - Liquid Fund,JM Liquid Fund (Regular) - Quarterly IDCW,5000,23-Dec-1997,,INF192K01866INF192K01874
JM Financial Asset Management Limited,100247,JM Liquid Fund,Open Ended,Debt Scheme - Liquid Fund,JM Liquid Fund (Regular) - Super Institutional Plan - Growth Option,5000,23-Dec-1997,,INF192K01981
JM Financial Asset Management Limited,120406,JM Liquid Fund,Open Ended,Debt Scheme - Liquid Fund,JM Liquid Fund (Direct) - Growth Option,5000,23-Dec-1997,,INF192K01CM6
JM Financial Asset Management Limited,120407,JM Liquid Fund,Open Ended,Debt Scheme - Liquid Fund,JM Liquid Fund (Direct) - Weekly IDCW,5000,23-Dec-1997,,INF192K01CI4INF192K01CJ2
JM Financial Asset Management Limited,120408,JM Liquid Fund,Open Ended,Debt Scheme - Liquid Fund,JM Liquid Fund (Direct) - Quarterly IDCW,5000,23-Dec-1997,,INF192K01CK0INF192K01CL8
JM Financial Asset Management Limited,100248,JM G-Sec Fund,Open Ended,Debt Scheme - Gilt Fund,JM G-Sec Fund-Short Term Plan,Rs 5000/-,29-Sep-1992,,
JM Financial Asset Management Limited,100249,JM G-Sec Fund,Open Ended,Debt Scheme - Gilt Fund,JM G-Sec Fund - Quarterly Dividend Option,Rs 5000/-,29-Sep-1992,,INF192K01783INF192K01791
JM Financial Asset Management Limited,100250,JM G-Sec Fund,Open Ended,Debt Scheme - Gilt Fund,JM G-Sec Fund - Growth Option,Rs 5000/-,29-Sep-1992,,INF192K01809
JM Financial Asset Management Limited,100253,JM G-Sec Fund,Open Ended,Debt Scheme - Gilt Fund,JM G-Sec Fund - Bonus Option - Principal Units,Rs 5000/-,29-Sep-1992,,INF192K01817
JM Financial Asset Management Limited,134659,JM G-Sec Fund,Open Ended,Debt Scheme - Gilt Fund,JM G-Sec Fund - Annual Dividend Option,Rs 5000/-,29-Sep-1992,,INF192K01KG1INF192K01KH9
JM Financial Asset Management Limited,134660,JM G-Sec Fund,Open Ended,Debt Scheme - Gilt Fund,JM G-Sec Fund - Monthly Dividend Option,Rs 5000/-,29-Sep-1992,,INF192K01JW0INF192K01JX8
JM Financial Asset Management Limited,134661,JM G-Sec Fund,Open Ended,Debt Scheme - Gilt Fund,JM G-Sec Fund - (Direct) Half Yearly Dividend Option,Rs 5000/-,29-Sep-1992,,INF192K01KE6INF192K01KF3
JM Financial Asset Management Limited,134662,JM G-Sec Fund,Open Ended,Debt Scheme - Gilt Fund,JM G-Sec Fund - (Direct) Annual Dividend Option,Rs 5000/-,29-Sep-1992,,INF192K01KI7INF192K01KJ5
JM Financial Asset Management Limited,134663,JM G-Sec Fund,Open Ended,Debt Scheme - Gilt Fund,JM G-Sec Fund - Half Yearly Dividend Option,Rs 5000/-,29-Sep-1992,,INF192K01KC0INF192K01KD8
JM Financial Asset Management Limited,134664,JM G-Sec Fund,Open Ended,Debt Scheme - Gilt Fund,JM G-Sec Fund - (Direct) Monthly Dividend Option,Rs 5000/-,29-Sep-1992,,INF192K01JY6INF192K01KB2
JM Financial Asset Management Limited,120418,JM G-Sec Fund,Open Ended,Debt Scheme - Gilt Fund,JM G-Sec Fund - (Direct) - Bonus Option - Principal Units,Rs 5000/-,29-Sep-1992,,
JM Financial Asset Management Limited,120419,JM G-Sec Fund,Open Ended,Debt Scheme - Gilt Fund,JM G-Sec Fund - (Direct) Bonus Option - Principal Units,Rs 5000/-,29-Sep-1992,,INF192K01CT1
JM Financial Asset Management Limited,120420,JM G-Sec Fund,Open Ended,Debt Scheme - Gilt Fund,JM G-Sec Fund - (Direct) - Quarterly Dividend Option,Rs 5000/-,29-Sep-1992,,INF192K01CP9INF192K01CQ7
JM Financial Asset Management Limited,120421,JM G-Sec Fund,Open Ended,Debt Scheme - Gilt Fund,JM G-Sec Fund - (Direct) - Growth Option,Rs 5000/-,29-Sep-1992,,INF192K01CR5
JM Financial Asset Management Limited,100254,JM Value Fund,Open Ended,Equity Scheme - Value Fund,JM Value Fund (Regular) - Growth Option,Rs.5000/- & in multiples of any amount thereafter,25-Mar-1997,24-Apr-1997,INF137A01037
JM Financial Asset Management Limited,106168,JM Value Fund,Open Ended,Equity Scheme - Value Fund,JM Value Fund (Regular) - IDCW,Rs.5000/- & in multiples of any amount thereafter,25-Mar-1997,24-Apr-1997,INF137A01011INF137A01029
JM Financial Asset Management Limited,120485,JM Value Fund,Open Ended,Equity Scheme - Value Fund,JM Value Fund (Direct) - IDCW,Rs.5000/- & in multiples of any amount thereafter,25-Mar-1997,24-Apr-1997,INF192K01BR7INF192K01BS5
JM Financial Asset Management Limited,120486,JM Value Fund,Open Ended,Equity Scheme - Value Fund,JM Value Fund (Direct) - Growth Option,Rs.5000/- & in multiples of any amount thereafter,25-Mar-1997,24-Apr-1997,INF192K01BT3
Kotak Mahindra Asset Management Company Limited.,100264,Kotak Gilt Fund,Open Ended,Debt Scheme - Gilt Fund,Kotak Gilt-Investment Regular-Payout of Income Distribution cum capital withdrawal option,500,02-Jan-2000,02-Jan-2000,INF174K01FK1INF174K01FJ3
Kotak Mahindra Asset Management Company Limited.,100265,Kotak Gilt Fund,Open Ended,Debt Scheme - Gilt Fund,Kotak Gilt-Investment Regular-Growth,500,02-Jan-2000,02-Jan-2000,INF174K01FI5
Kotak Mahindra Asset Management Company Limited.,100266,Kotak Gilt Fund,Open Ended,Debt Scheme - Gilt Fund,Kotak Gilt-Serial 2001-Dividend,500,02-Jan-2000,02-Jan-2000,
Kotak Mahindra Asset Management Company Limited.,100267,Kotak Gilt Fund,Open Ended,Debt Scheme - Gilt Fund,Kotak Gilt-Serial 2001-Growth,500,02-Jan-2000,02-Jan-2000,
Kotak Mahindra Asset Management Company Limited.,100268,Kotak Gilt Fund,Open Ended,Debt Scheme - Gilt Fund,Kotak Gilt-Serial 2003-Dividend,500,02-Jan-2000,02-Jan-2000,
Kotak Mahindra Asset Management Company Limited.,100269,Kotak Gilt Fund,Open Ended,Debt Scheme - Gilt Fund,Kotak Gilt-Serial 2003-Growth,500,02-Jan-2000,02-Jan-2000,
Kotak Mahindra Asset Management Company Limited.,119760,Kotak Gilt Fund,Open Ended,Debt Scheme - Gilt Fund,Kotak Gilt-Investment  Provident Fund and Trust-Dividend - Direct,500,02-Jan-2000,02-Jan-2000,INF174K01KN5INF174K01KO3
Kotak Mahindra Asset Management Company Limited.,100274,Kotak Gilt Fund,Open Ended,Debt Scheme - Gilt Fund,Kotak Gilt-Serial 2011-Dividend,500,02-Jan-2000,02-Jan-2000,
Kotak Mahindra Asset Management Company Limited.,100280,Kotak Gilt Fund,Open Ended,Debt Scheme - Gilt Fund,Kotak Gilt-Investment  Provident Fund and Trust-Payout of Income Distribution cum capital withdrawal option,500,02-Jan-2000,02-Jan-2000,INF174K01FM7
Kotak Mahindra Asset Management Company Limited.,100281,Kotak Gilt Fund,Open Ended,Debt Scheme - Gilt Fund,Kotak Gilt-Investment  Provident Fund and Trust-Growth,500,02-Jan-2000,02-Jan-2000,INF174K01FL9
Kotak Mahindra Asset Management Company Limited.,119757,Kotak Gilt Fund,Open Ended,Debt Scheme - Gilt Fund,Kotak Gilt-Investment  Provident Fund and Trust-Growth - Direct,500,02-Jan-2000,02-Jan-2000,INF174K01KM7
Kotak Mahindra Asset Management Company Limited.,119758,Kotak Gilt Fund,Open Ended,Debt Scheme - Gilt Fund,Kotak Gilt-Investment Regular-Payout of Income Distribution cum capital withdrawal option - Direct,500,02-Jan-2000,02-Jan-2000,INF174K01KF1
Kotak Mahindra Asset Management Company Limited.,119759,Kotak Gilt Fund,Open Ended,Debt Scheme - Gilt Fund,Kotak Gilt-Investment Regular-Growth - Direct,500,02-Jan-2000,02-Jan-2000,INF174K01KE4
Kotak Mahindra Asset Management Company Limited.,100286,Kotak Equity Hybrid Fund,Open Ended,Hybrid Scheme - Aggressive Hybrid Fund,Kotak Equity Hybrid - Payout of Income Distribution cum capital withdrawal option,Rs.1000,29-Nov-1999,29-Nov-1999,INF174K01450INF174K01443
Kotak Mahindra Asset Management Company Limited.,119767,Kotak Equity Hybrid Fund,Open Ended,Hybrid Scheme - Aggressive Hybrid Fund,Kotak Equity Hybrid - Payout of Income Distribution cum  capital withdrawal option - Direct,Rs.1000,29-Nov-1999,29-Nov-1999,INF174K01LL7INF174K01LM5
Kotak Mahindra Asset Management Company Limited.,133035,Kotak Equity Hybrid Fund,Open Ended,Hybrid Scheme - Aggressive Hybrid Fund,Kotak Equity Hybrid - Growth - Direct,Rs.1000,29-Nov-1999,29-Nov-1999,INF174K01F00
Kotak Mahindra Asset Management Company Limited.,133036,Kotak Equity Hybrid Fund,Open Ended,Hybrid Scheme - Aggressive Hybrid Fund,Kotak Equity Hybrid - Growth,Rs.1000,29-Nov-1999,29-Nov-1999,INF174K01E92
Kotak Mahindra Asset Management Company Limited.,100291,Kotak Bond Fund,Open Ended,Debt Scheme - Medium to Long Duration Fund,Kotak Bond-Deposit-Dividend,5000,25-Nov-1999,25-Nov-1999,INF174K01EK4INF174K01EL2
Kotak Mahindra Asset Management Company Limited.,100292,Kotak Bond Fund,Open Ended,Debt Scheme - Medium to Long Duration Fund,Kotak Bond-Deposit-Growth,5000,25-Nov-1999,25-Nov-1999,INF174K01EJ6
Kotak Mahindra Asset Management Company Limited.,100293,Kotak Bond Fund,Open Ended,Debt Scheme - Medium to Long Duration Fund,Kotak Bond-Deposit-Dividend,5000,25-Nov-1999,25-Nov-1999,
Kotak Mahindra Asset Management Company Limited.,100294,Kotak Bond Fund,Open Ended,Debt Scheme - Medium to Long Duration Fund,Kotak Bond-Deposit-Dividend,5000,25-Nov-1999,25-Nov-1999,
Kotak Mahindra Asset Management Company Limited.,100295,Kotak Bond Fund,Open Ended,Debt Scheme - Medium to Long Duration Fund,Kotak Bond-Deposit-Dividend,5000,25-Nov-1999,25-Nov-1999,
Kotak Mahindra Asset Management Company Limited.,100296,Kotak Bond Fund,Open Ended,Debt Scheme - Medium to Long Duration Fund,Kotak Bond-Deposit-Growth,5000,25-Nov-1999,25-Nov-1999,
Kotak Mahindra Asset Management Company Limited.,119735,Kotak Bond Fund,Open Ended,Debt Scheme - Medium to Long Duration Fund,Kotak Bond Fund - Growth - Direct,5000,25-Nov-1999,25-Nov-1999,INF174K01JC0
Kotak Mahindra Asset Management Company Limited.,100305,Kotak Bond Fund,Open Ended,Debt Scheme - Medium to Long Duration Fund,Kotak Bond-Serial 2002 A-Growth,5000,25-Nov-1999,25-Nov-1999,
Kotak Mahindra Asset Management Company Limited.,100306,Kotak Bond Fund,Open Ended,Debt Scheme - Medium to Long Duration Fund,Kotak Bond-Serial 2005  A-Dividend,5000,25-Nov-1999,25-Nov-1999,
Kotak Mahindra Asset Management Company Limited.,100307,Kotak Bond Fund,Open Ended,Debt Scheme - Medium to Long Duration Fund,Kotak Bond-Serial 2005  A-Dividend,5000,25-Nov-1999,25-Nov-1999,
Kotak Mahindra Asset Management Company Limited.,100308,Kotak Bond Fund,Open Ended,Debt Scheme - Medium to Long Duration Fund,Kotak Bond-Serial 2005 A-Dividend,5000,25-Nov-1999,25-Nov-1999,
Kotak Mahindra Asset Management Company Limited.,100309,Kotak Bond Fund,Open Ended,Debt Scheme - Medium to Long Duration Fund,Kotak Bond-Serial 2005-Dividend,5000,25-Nov-1999,25-Nov-1999,
Kotak Mahindra Asset Management Company Limited.,119734,Kotak Bond Fund,Open Ended,Debt Scheme - Medium to Long Duration Fund,Kotak Bond Fund - Direct Plan - Standard IDCW option,5000,25-Nov-1999,25-Nov-1999,INF174K01JD8
Kotak Mahindra Asset Management Company Limited.,100297,Kotak Bond Fund,Open Ended,Debt Scheme - Medium to Long Duration Fund,Kotak Bond-Deposit-Growth,5000,25-Nov-1999,25-Nov-1999,
Kotak Mahindra Asset Management Company Limited.,100299,Kotak Bond Fund,Open Ended,Debt Scheme - Medium to Long Duration Fund,Kotak Bond Fund - Regular Plan Growth,5000,25-Nov-1999,25-Nov-1999,INF174K01EM0
Kotak Mahindra Asset Management Company Limited.,100300,Kotak Bond Fund,Open Ended,Debt Scheme - Medium to Long Duration Fund,Kotak Bond Fund - Regular Plan - Standard IDCW Option,5000,25-Nov-1999,25-Nov-1999,INF174K01EQ1INF174K01EP3
Kotak Mahindra Asset Management Company Limited.,100302,Kotak Bond Fund,Open Ended,Debt Scheme - Medium to Long Duration Fund,Kotak Bond-Serial 2001 B-Dividend,5000,25-Nov-1999,25-Nov-1999,
Kotak Mahindra Asset Management Company Limited.,100303,Kotak Bond Fund,Open Ended,Debt Scheme - Medium to Long Duration Fund,Kotak Bond-Serial 2001 B-Growth,5000,25-Nov-1999,25-Nov-1999,
Kotak Mahindra Asset Management Company Limited.,100304,Kotak Bond Fund,Open Ended,Debt Scheme - Medium to Long Duration Fund,Kotak Bond-Serial 2002 A-Dividend,5000,25-Nov-1999,25-Nov-1999,
LIC Mutual Fund Asset Management Limited,100312,LIC MF Flexi Cap Fund,Open Ended,Equity Scheme - Flexi Cap Fund,LIC MF Flexi Cap Fund-Regular Plan-IDCW,2000,16-Apr-1998,30-Apr-1998,INF767K01063INF767K01055
LIC Mutual Fund Asset Management Limited,100313,LIC MF Flexi Cap Fund,Open Ended,Equity Scheme - Flexi Cap Fund,LIC MF Flexi Cap Fund-Regular Plan-Growth,2000,16-Apr-1998,30-Apr-1998,INF767K01071
LIC Mutual Fund Asset Management Limited,120263,LIC MF Flexi Cap Fund,Open Ended,Equity Scheme - Flexi Cap Fund,LIC MF Flexi Cap Fund-Direct Plan-IDCW,2000,16-Apr-1998,30-Apr-1998,INF767K01EF5INF767K01EH1
LIC Mutual Fund Asset Management Limited,120264,LIC MF Flexi Cap Fund,Open Ended,Equity Scheme - Flexi Cap Fund,LIC MF Flexi Cap Fund-Direct Plan-Growth,2000,16-Apr-1998,30-Apr-1998,INF767K01EG3
LIC Mutual Fund Asset Management Limited,100314,LIC MF Medium to Long Duration Fund,Open Ended,Debt Scheme - Medium to Long Duration Fund,LIC MF Medium to Long Duration Fund-Regular Plan-IDCW,5000/-,26-Mar-1999,16-Apr-1999,INF767K01907INF767K01915
LIC Mutual Fund Asset Management Limited,100315,LIC MF Medium to Long Duration Fund,Open Ended,Debt Scheme - Medium to Long Duration Fund,LIC MF Medium to Long Duration Fund-Regular Plan-Growth,5000/-,26-Mar-1999,16-Apr-1999,INF767K01923
LIC Mutual Fund Asset Management Limited,115199,LIC MF Medium to Long Duration Fund,Open Ended,Debt Scheme - Medium to Long Duration Fund,LIC NOMURA MF BOND  FUND,5000/-,26-Mar-1999,16-Apr-1999,
LIC Mutual Fund Asset Management Limited,120278,LIC MF Medium to Long Duration Fund,Open Ended,Debt Scheme - Medium to Long Duration Fund,LIC MF Medium to Long Duration Fund-Direct Plan-IDCW,5000/-,26-Mar-1999,16-Apr-1999,INF767K01EV2INF767K01EX8
LIC Mutual Fund Asset Management Limited,120279,LIC MF Medium to Long Duration Fund,Open Ended,Debt Scheme - Medium to Long Duration Fund,LIC MF Medium to Long Duration Fund-Direct Plan-Growth,5000/-,26-Mar-1999,16-Apr-1999,INF767K01EW0
LIC Mutual Fund Asset Management Limited,151990,LIC MF Medium to Long Duration Fund,Open Ended,Debt Scheme - Medium to Long Duration Fund,LIC MF Medium to Long Duration Fund-Direct Plan-Annual IDCW,5000/-,26-Mar-1999,16-Apr-1999,INF397L01GD9
LIC Mutual Fund Asset Management Limited,151986,LIC MF Medium to Long Duration Fund,Open Ended,Debt Scheme - Medium to Long Duration Fund,LIC MF Medium to Long Duration Fund-Regular Plan-Quarterly IDCW,5000/-,26-Mar-1999,16-Apr-1999,INF397L01FU5
LIC Mutual Fund Asset Management Limited,151988,LIC MF Medium to Long Duration Fund,Open Ended,Debt Scheme - Medium to Long Duration Fund,LIC MF Medium to Long Duration Fund-Direct Plan-Quarterly IDCW,5000/-,26-Mar-1999,16-Apr-1999,INF397L01GA5
LIC Mutual Fund Asset Management Limited,151989,LIC MF Medium to Long Duration Fund,Open Ended,Debt Scheme - Medium to Long Duration Fund,LIC MF Medium to Long Duration Fund-Regular Plan-Annual IDCW,5000/-,26-Mar-1999,16-Apr-1999,INF397L01FX9
LIC Mutual Fund Asset Management Limited,100316,LIC MF Gilt Fund,Open Ended,Debt Scheme - Gilt Fund,LIC MF Gilt Fund-Regular Plan-IDCW,10000,15-Nov-1999,29-Nov-1999,INF767K01683INF767K01691
LIC Mutual Fund Asset Management Limited,100317,LIC MF Gilt Fund,Open Ended,Debt Scheme - Gilt Fund,LIC MF Gilt Fund-Regular Plan-Growth,10000,15-Nov-1999,29-Nov-1999,INF767K01709
LIC Mutual Fund Asset Management Limited,100318,LIC MF Gilt Fund,Open Ended,Debt Scheme - Gilt Fund,LIC MF Gilt Fund-PF Plan-IDCW,10000,15-Nov-1999,29-Nov-1999,INF767K01717INF767K01725
LIC Mutual Fund Asset Management Limited,100319,LIC MF Gilt Fund,Open Ended,Debt Scheme - Gilt Fund,LIC MF Gilt Fund-PF Plan-Growth,10000,15-Nov-1999,29-Nov-1999,INF767K01733
LIC Mutual Fund Asset Management Limited,100320,LIC MF Gilt Fund,Open Ended,Debt Scheme - Gilt Fund,LIC MF Govt Securities Fund-PF Plan,10000,15-Nov-1999,29-Nov-1999,
LIC Mutual Fund Asset Management Limited,115223,LIC MF Gilt Fund,Open Ended,Debt Scheme - Gilt Fund,LIC NOMURA MF Govt Securities Fund,10000,15-Nov-1999,29-Nov-1999,
LIC Mutual Fund Asset Management Limited,120282,LIC MF Gilt Fund,Open Ended,Debt Scheme - Gilt Fund,LIC MF Gilt Fund-Direct Plan-Growth,10000,15-Nov-1999,29-Nov-1999,INF767K01EZ3
LIC Mutual Fund Asset Management Limited,120283,LIC MF Gilt Fund,Open Ended,Debt Scheme - Gilt Fund,LIC MF Gilt Fund-Direct Plan-IDCW,10000,15-Nov-1999,29-Nov-1999,INF767K01EY6INF767K01FA3
LIC Mutual Fund Asset Management Limited,100321,LIC MF Aggressive Hybrid Fund,Open Ended,Hybrid Scheme - Aggressive Hybrid Fund,LIC MF Aggressive Hybrid Fund-Regular Plan-IDCW,Rs.1000/-,01-Jan-1991,01-Jan-1991,INF767K01022INF767K01014
LIC Mutual Fund Asset Management Limited,100322,LIC MF Aggressive Hybrid Fund,Open Ended,Hybrid Scheme - Aggressive Hybrid Fund,LICMF Balanced Fund-Growth,Rs.1000/-,01-Jan-1991,01-Jan-1991,
LIC Mutual Fund Asset Management Limited,100323,LIC MF Aggressive Hybrid Fund,Open Ended,Hybrid Scheme - Aggressive Hybrid Fund,LIC MF Aggressive Hybrid Fund-Regular Plan-Growth,Rs.1000/-,01-Jan-1991,01-Jan-1991,INF767K01030
LIC Mutual Fund Asset Management Limited,115198,LIC MF Aggressive Hybrid Fund,Open Ended,Hybrid Scheme - Aggressive Hybrid Fund,LIC NOMURA MF Balanced Fund-Dividend,Rs.1000/-,01-Jan-1991,01-Jan-1991,
LIC Mutual Fund Asset Management Limited,120260,LIC MF Aggressive Hybrid Fund,Open Ended,Hybrid Scheme - Aggressive Hybrid Fund,LIC MF Aggressive Hybrid Fund-Direct Plan-IDCW,Rs.1000/-,01-Jan-1991,01-Jan-1991,INF767K01EC2INF767K01EE8
LIC Mutual Fund Asset Management Limited,120261,LIC MF Aggressive Hybrid Fund,Open Ended,Hybrid Scheme - Aggressive Hybrid Fund,LIC MF Aggressive Hybrid Fund-Direct Plan-Growth,Rs.1000/-,01-Jan-1991,01-Jan-1991,INF767K01ED0
LIC Mutual Fund Asset Management Limited,100325,LIC MF Unit Linked Insurance Scheme (ULIS),Open Ended,Equity Scheme - ELSS,LIC MF ULIS (5 Yrs. Single Premium)-Regular Plan-IDCW Reinvestment,Reg contr.-10000-10yr15000-15yrSingle Cont-10000,19-Jun-1989,19-Jun-1989,INF767K01964
LIC Mutual Fund Asset Management Limited,120259,LIC MF Unit Linked Insurance Scheme (ULIS),Open Ended,Equity Scheme - ELSS,LIC MF ULIS (5 Yrs. Single Premium)-Direct Plan-IDCW Reinvestment,Reg contr.-10000-10yr15000-15yrSingle Cont-10000,19-Jun-1989,19-Jun-1989,INF767K01DO9
LIC Mutual Fund Asset Management Limited,134846,LIC MF Unit Linked Insurance Scheme (ULIS),Open Ended,Equity Scheme - ELSS,LIC MF ULIS (10 Yrs. Single Premium)-Regular Plan-IDCW Reinvestment,Reg contr.-10000-10yr15000-15yrSingle Cont-10000,19-Jun-1989,19-Jun-1989,INF767K01972
LIC Mutual Fund Asset Management Limited,134847,LIC MF Unit Linked Insurance Scheme (ULIS),Open Ended,Equity Scheme - ELSS,LIC MF ULIS (10 Yrs. Regular Premium Reducing Cover Monthly)-Regular Plan-IDCW Reinvestment,Reg contr.-10000-10yr15000-15yrSingle Cont-10000,19-Jun-1989,19-Jun-1989,INF767K01980
LIC Mutual Fund Asset Management Limited,134863,LIC MF Unit Linked Insurance Scheme (ULIS),Open Ended,Equity Scheme - ELSS,LIC MF ULIS (10 Yrs. Regular Premium Uniform Cover Monthly)-Regular Plan-IDCW Reinvestment,Reg contr.-10000-10yr15000-15yrSingle Cont-10000,19-Jun-1989,19-Jun-1989,INF767K01AB2
LIC Mutual Fund Asset Management Limited,135983,LIC MF Unit Linked Insurance Scheme (ULIS),Open Ended,Equity Scheme - ELSS,LIC MF ULIS (10 Yrs. Regular Premium Uniform Cover Quarterly)-Regular Plan-IDCW Reinvestment,Reg contr.-10000-10yr15000-15yrSingle Cont-10000,19-Jun-1989,19-Jun-1989,INF767K01PA2
LIC Mutual Fund Asset Management Limited,135977,LIC MF Unit Linked Insurance Scheme (ULIS),Open Ended,Equity Scheme - ELSS,LIC MF ULIS (10 Yrs. Regular Premium Uniform Cover Quarterly)-Direct Plan-IDCW Reinvestment,Reg contr.-10000-10yr15000-15yrSingle Cont-10000,19-Jun-1989,19-Jun-1989,INF767K01PB0
LIC Mutual Fund Asset Management Limited,135978,LIC MF Unit Linked Insurance Scheme (ULIS),Open Ended,Equity Scheme - ELSS,LIC MF ULIS (15 Yrs. Regular Premium Reducing Cover Quarterly)-Direct Plan-IDCW Reinvestment,Reg contr.-10000-10yr15000-15yrSingle Cont-10000,19-Jun-1989,19-Jun-1989,INF767K01OX7
LIC Mutual Fund Asset Management Limited,135979,LIC MF Unit Linked Insurance Scheme (ULIS),Open Ended,Equity Scheme - ELSS,LIC MF ULIS (10 Yrs. Regular Premium Reducing Cover Quarterly)-Regular Plan-IDCW Reinvestment,Reg contr.-10000-10yr15000-15yrSingle Cont-10000,19-Jun-1989,19-Jun-1989,INF767K01OV1
LIC Mutual Fund Asset Management Limited,135980,LIC MF Unit Linked Insurance Scheme (ULIS),Open Ended,Equity Scheme - ELSS,LIC MF ULIS (15 Yrs. Regular Premium Uniform Cover Quarterly)-Direct Plan-IDCW Reinvestment,Reg contr.-10000-10yr15000-15yrSingle Cont-10000,19-Jun-1989,19-Jun-1989,INF767K01OZ2
LIC Mutual Fund Asset Management Limited,135981,LIC MF Unit Linked Insurance Scheme (ULIS),Open Ended,Equity Scheme - ELSS,LIC MF ULIS (15 Yrs. Regular Premium Reducing Cover Quarterly)-Regular Plan-IDCW Reinvestment,Reg contr.-10000-10yr15000-15yrSingle Cont-10000,19-Jun-1989,19-Jun-1989,INF767K01OU3
LIC Mutual Fund Asset Management Limited,135982,LIC MF Unit Linked Insurance Scheme (ULIS),Open Ended,Equity Scheme - ELSS,LIC MF ULIS (15 Yrs. Regular Premium Uniform Cover Quarterly)-Regular Plan-IDCW Reinvestment,Reg contr.-10000-10yr15000-15yrSingle Cont-10000,19-Jun-1989,19-Jun-1989,INF767K01OW9
LIC Mutual Fund Asset Management Limited,134883,LIC MF Unit Linked Insurance Scheme (ULIS),Open Ended,Equity Scheme - ELSS,LIC MF ULIS (15 Yrs. Regular Premium Reducing Cover Yearly)-Direct Plan-IDCW Reinvestment,Reg contr.-10000-10yr15000-15yrSingle Cont-10000,19-Jun-1989,19-Jun-1989,INF767K01DY8
LIC Mutual Fund Asset Management Limited,134884,LIC MF Unit Linked Insurance Scheme (ULIS),Open Ended,Equity Scheme - ELSS,LIC MF ULIS (15 Yrs. Regular Premium Reducing Cover Monthly)-Direct Plan-IDCW Reinvestment,Reg contr.-10000-10yr15000-15yrSingle Cont-10000,19-Jun-1989,19-Jun-1989,INF767K01DW2
LIC Mutual Fund Asset Management Limited,134885,LIC MF Unit Linked Insurance Scheme (ULIS),Open Ended,Equity Scheme - ELSS,LIC MF ULIS (15 Yrs. Regular Premium Uniform Cover Half-Yearly)-Direct Plan-IDCW Reinvestment,Reg contr.-10000-10yr15000-15yrSingle Cont-10000,19-Jun-1989,19-Jun-1989,INF767K01EA6
LIC Mutual Fund Asset Management Limited,134886,LIC MF Unit Linked Insurance Scheme (ULIS),Open Ended,Equity Scheme - ELSS,LIC MF ULIS (15 Yrs. Regular Premium Uniform Cover Yearly)-Direct Plan-IDCW Reinvestment,Reg contr.-10000-10yr15000-15yrSingle Cont-10000,19-Jun-1989,19-Jun-1989,INF767K01EB4
LIC Mutual Fund Asset Management Limited,134887,LIC MF Unit Linked Insurance Scheme (ULIS),Open Ended,Equity Scheme - ELSS,LIC MF ULIS (15 Yrs. Regular Premium Uniform Cover Monthly)-Direct Plan-IDCW Reinvestment,Reg contr.-10000-10yr15000-15yrSingle Cont-10000,19-Jun-1989,19-Jun-1989,INF767K01DZ5
LIC Mutual Fund Asset Management Limited,135976,LIC MF Unit Linked Insurance Scheme (ULIS),Open Ended,Equity Scheme - ELSS,LIC MF ULIS (10 Yrs. Regular Premium Reducing Cover Quarterly)-Direct Plan-IDCW Reinvestment,Reg contr.-10000-10yr15000-15yrSingle Cont-10000,19-Jun-1989,19-Jun-1989,INF767K01OY5
LIC Mutual Fund Asset Management Limited,134877,LIC MF Unit Linked Insurance Scheme (ULIS),Open Ended,Equity Scheme - ELSS,LIC MF ULIS (10 Yrs. Regular Premium Reducing Cover Yearly)-Direct Plan-IDCW Reinvestment,Reg contr.-10000-10yr15000-15yrSingle Cont-10000,19-Jun-1989,19-Jun-1989,INF767K01DS0
LIC Mutual Fund Asset Management Limited,134878,LIC MF Unit Linked Insurance Scheme (ULIS),Open Ended,Equity Scheme - ELSS,LIC MF ULIS (10 Yrs. Regular Premium Reducing Cover Half-Yearly)-Direct Plan-IDCW Reinvestment,Reg contr.-10000-10yr15000-15yrSingle Cont-10000,19-Jun-1989,19-Jun-1989,INF767K01DR2
LIC Mutual Fund Asset Management Limited,134879,LIC MF Unit Linked Insurance Scheme (ULIS),Open Ended,Equity Scheme - ELSS,LIC MF ULIS (10 Yrs. Regular Premium Uniform Cover Half-Yearly)-Direct Plan-IDCW Reinvestment,Reg contr.-10000-10yr15000-15yrSingle Cont-10000,19-Jun-1989,19-Jun-1989,INF767K01DU6
LIC Mutual Fund Asset Management Limited,134880,LIC MF Unit Linked Insurance Scheme (ULIS),Open Ended,Equity Scheme - ELSS,LIC MF ULIS (10 Yrs. Regular Premium Uniform Cover Yearly)-Direct Plan-IDCW Reinvestment,Reg contr.-10000-10yr15000-15yrSingle Cont-10000,19-Jun-1989,19-Jun-1989,INF767K01DV4
LIC Mutual Fund Asset Management Limited,134881,LIC MF Unit Linked Insurance Scheme (ULIS),Open Ended,Equity Scheme - ELSS,LIC MF ULIS (10 Yrs. Regular Premium Uniform Cover Monthly)-Direct Plan-IDCW Reinvestment,Reg contr.-10000-10yr15000-15yrSingle Cont-10000,19-Jun-1989,19-Jun-1989,INF767K01DT8
LIC Mutual Fund Asset Management Limited,134882,LIC MF Unit Linked Insurance Scheme (ULIS),Open Ended,Equity Scheme - ELSS,LIC MF ULIS (15 Yrs. Regular Premium Reducing Cover Half-Yearly)-Direct Plan-IDCW Reinvestment,Reg contr.-10000-10yr15000-15yrSingle Cont-10000,19-Jun-1989,19-Jun-1989,INF767K01DX0
LIC Mutual Fund Asset Management Limited,134871,LIC MF Unit Linked Insurance Scheme (ULIS),Open Ended,Equity Scheme - ELSS,LIC MF ULIS (15 Yrs. Regular Premium Reducing Cover Yearly)-Regular Plan-IDCW Reinvestment,Reg contr.-10000-10yr15000-15yrSingle Cont-10000,19-Jun-1989,19-Jun-1989,INF767K01AG1
LIC Mutual Fund Asset Management Limited,134872,LIC MF Unit Linked Insurance Scheme (ULIS),Open Ended,Equity Scheme - ELSS,LIC MF ULIS (15 Yrs. Regular Premium Uniform Cover Monthly)-Regular Plan-IDCW Reinvestment,Reg contr.-10000-10yr15000-15yrSingle Cont-10000,19-Jun-1989,19-Jun-1989,INF767K01AH9
LIC Mutual Fund Asset Management Limited,134873,LIC MF Unit Linked Insurance Scheme (ULIS),Open Ended,Equity Scheme - ELSS,LIC MF ULIS (15 Yrs. Regular Premium Uniform Cover Half-Yearly)-Regular Plan-IDCW Reinvestment,Reg contr.-10000-10yr15000-15yrSingle Cont-10000,19-Jun-1989,19-Jun-1989,INF767K01AI7
LIC Mutual Fund Asset Management Limited,134874,LIC MF Unit Linked Insurance Scheme (ULIS),Open Ended,Equity Scheme - ELSS,LIC MF ULIS (15Yrs. Regular Premium Uniform Cover Yearly)-Regular Plan-IDCW Reinvestment,Reg contr.-10000-10yr15000-15yrSingle Cont-10000,19-Jun-1989,19-Jun-1989,INF767K01AJ5
LIC Mutual Fund Asset Management Limited,134875,LIC MF Unit Linked Insurance Scheme (ULIS),Open Ended,Equity Scheme - ELSS,LIC MF ULIS (10 Yrs. Single Premium)-Direct Plan-IDCW Reinvestment,Reg contr.-10000-10yr15000-15yrSingle Cont-10000,19-Jun-1989,19-Jun-1989,INF767K01DP6
LIC Mutual Fund Asset Management Limited,134876,LIC MF Unit Linked Insurance Scheme (ULIS),Open Ended,Equity Scheme - ELSS,LIC MF ULIS (10 Yrs. Regular Premium Reducing Cover Monthly)-Direct Plan-IDCW Reinvestment,Reg contr.-10000-10yr15000-15yrSingle Cont-10000,19-Jun-1989,19-Jun-1989,INF767K01DQ4
LIC Mutual Fund Asset Management Limited,134864,LIC MF Unit Linked Insurance Scheme (ULIS),Open Ended,Equity Scheme - ELSS,LIC MF ULIS (10 Yrs. Regular Premium Reducing Cover Yearly)-Regular Plan-IDCW Reinvestment,Reg contr.-10000-10yr15000-15yrSingle Cont-10000,19-Jun-1989,19-Jun-1989,INF767K01AA4
LIC Mutual Fund Asset Management Limited,134865,LIC MF Unit Linked Insurance Scheme (ULIS),Open Ended,Equity Scheme - ELSS,LIC MF ULIS (10 Yrs. Regular Premium Reducing Cover Half-Yearly)-Regular Plan-IDCW Reinvestment,Reg contr.-10000-10yr15000-15yrSingle Cont-10000,19-Jun-1989,19-Jun-1989,INF767K01998
LIC Mutual Fund Asset Management Limited,134867,LIC MF Unit Linked Insurance Scheme (ULIS),Open Ended,Equity Scheme - ELSS,LIC MF ULIS (10 Yrs. Regular Premium Uniform Cover Half-Yearly)-Regular Plan-IDCW Reinvestment,Reg contr.-10000-10yr15000-15yrSingle Cont-10000,19-Jun-1989,19-Jun-1989,INF767K01AC0
LIC Mutual Fund Asset Management Limited,134868,LIC MF Unit Linked Insurance Scheme (ULIS),Open Ended,Equity Scheme - ELSS,LIC MF ULIS (10 Yrs. Regular Premium Uniform Cover Yearly)-Regular Plan-IDCW Reinvestment,Reg contr.-10000-10yr15000-15yrSingle Cont-10000,19-Jun-1989,19-Jun-1989,INF767K01AD8
LIC Mutual Fund Asset Management Limited,134869,LIC MF Unit Linked Insurance Scheme (ULIS),Open Ended,Equity Scheme - ELSS,LIC MF ULIS (15 Yrs. Regular Premium Reducing Cover Monthly)-Regular Plan-IDCW Reinvestment,Reg contr.-10000-10yr15000-15yrSingle Cont-10000,19-Jun-1989,19-Jun-1989,INF767K01AE6
LIC Mutual Fund Asset Management Limited,134870,LIC MF Unit Linked Insurance Scheme (ULIS),Open Ended,Equity Scheme - ELSS,LIC MF ULIS (15 Yrs. Regular Premium Reducing Cover Half-Yearly)-Regular Plan-IDCW Reinvestment,Reg contr.-10000-10yr15000-15yrSingle Cont-10000,19-Jun-1989,19-Jun-1989,INF767K01AF3
LIC Mutual Fund Asset Management Limited,100332,LIC MF Large Cap Fund,Open Ended,Equity Scheme - Large Cap Fund,LIC MF Large Cap Fund-Regular Plan-IDCW,Rs. 2000,01-Sep-1994,15-Sep-1994,INF767K01097INF767K01089
LIC Mutual Fund Asset Management Limited,106871,LIC MF Large Cap Fund,Open Ended,Equity Scheme - Large Cap Fund,LIC MF Large Cap Fund-Regular Plan-Growth,Rs. 2000,01-Sep-1994,15-Sep-1994,INF767K01105
LIC Mutual Fund Asset Management Limited,115201,LIC MF Large Cap Fund,Open Ended,Equity Scheme - Large Cap Fund,LIC NOMURA  MF Growth Fund,Rs. 2000,01-Sep-1994,15-Sep-1994,
LIC Mutual Fund Asset Management Limited,120267,LIC MF Large Cap Fund,Open Ended,Equity Scheme - Large Cap Fund,LIC MF Large Cap Fund-Direct Plan-Growth,Rs. 2000,01-Sep-1994,15-Sep-1994,INF767K01EJ7
LIC Mutual Fund Asset Management Limited,120268,LIC MF Large Cap Fund,Open Ended,Equity Scheme - Large Cap Fund,LIC MF Large Cap Fund-Direct Plan-IDCW,Rs. 2000,01-Sep-1994,15-Sep-1994,INF767K01EI9INF767K01EK5
ICICI Prudential Asset Management Company Limited,100348,ICICI Prudential Large & Mid Cap Fund,Open Ended,Equity Scheme - Large & Mid Cap Fund,ICICI Prudential Large & Mid Cap Fund - IDCW,Rs. 5000/- (plus in multiple of Re. 1/-),01-Jun-1998,,INF109K01EQ7INF109K01449
ICICI Prudential Asset Management Company Limited,100349,ICICI Prudential Large & Mid Cap Fund,Open Ended,Equity Scheme - Large & Mid Cap Fund,ICICI Prudential Large & Mid Cap Fund - Growth,Rs. 5000/- (plus in multiple of Re. 1/-),01-Jun-1998,,INF109K01431
ICICI Prudential Asset Management Company Limited,120286,ICICI Prudential Large & Mid Cap Fund,Open Ended,Equity Scheme - Large & Mid Cap Fund,ICICI Prudential Blended Plan A - Direct Plan -  Dividend,Rs. 5000/- (plus in multiple of Re. 1/-),01-Jun-1998,,
ICICI Prudential Asset Management Company Limited,120287,ICICI Prudential Large & Mid Cap Fund,Open Ended,Equity Scheme - Large & Mid Cap Fund,ICICI Prudential Blended Plan A - Direct Plan -  Growth,Rs. 5000/- (plus in multiple of Re. 1/-),01-Jun-1998,,
ICICI Prudential Asset Management Company Limited,120596,ICICI Prudential Large & Mid Cap Fund,Open Ended,Equity Scheme - Large & Mid Cap Fund,ICICI Prudential Large & Mid Cap Fund - Direct Plan - Growth,Rs. 5000/- (plus in multiple of Re. 1/-),01-Jun-1998,,INF109K011O5
ICICI Prudential Asset Management Company Limited,120597,ICICI Prudential Large & Mid Cap Fund,Open Ended,Equity Scheme - Large & Mid Cap Fund,ICICI Prudential Large & Mid Cap Fund - Direct Plan - IDCW,Rs. 5000/- (plus in multiple of Re. 1/-),01-Jun-1998,,INF109K019N0INF109K010O7
ICICI Prudential Asset Management Company Limited,100351,ICICI Prudential FMCG Fund,Open Ended,Equity Scheme - Sectoral/ Thematic,ICICI Prudential FMCG Fund - IDCW,Rs. 5000/- (plus in multiple of Re. 1/-),04-Dec-2012,,INF109K01EO2INF109K01423
ICICI Prudential Asset Management Company Limited,100352,ICICI Prudential FMCG Fund,Open Ended,Equity Scheme - Sectoral/ Thematic,ICICI Prudential FMCG Fund - Growth,Rs. 5000/- (plus in multiple of Re. 1/-),04-Dec-2012,,INF109K01415
ICICI Prudential Asset Management Company Limited,120587,ICICI Prudential FMCG Fund,Open Ended,Equity Scheme - Sectoral/ Thematic,ICICI Prudential FMCG Fund - Direct Plan -  Growth,Rs. 5000/- (plus in multiple of Re. 1/-),04-Dec-2012,,INF109K01Z14
ICICI Prudential Asset Management Company Limited,120588,ICICI Prudential FMCG Fund,Open Ended,Equity Scheme - Sectoral/ Thematic,ICICI Prudential FMCG Fund - Direct Plan -  IDCW,Rs. 5000/- (plus in multiple of Re. 1/-),04-Dec-2012,,INF109K01Y98INF109K01Z06
ICICI Prudential Asset Management Company Limited,100353,ICICI Prudential ELSS Tax Saver Fund,Open Ended,Equity Scheme - ELSS,ICICI Prudential ELSS Tax Saver Fund - IDCW,Rs. 500/- (plus in multiple of Re. 1/-),11-Dec-2012,,INF109K01FN1INF109K01472
ICICI Prudential Asset Management Company Limited,100354,ICICI Prudential ELSS Tax Saver Fund,Open Ended,Equity Scheme - ELSS,ICICI Prudential ELSS Tax Saver Fund - Growth,Rs. 500/- (plus in multiple of Re. 1/-),11-Dec-2012,,INF109K01464
ICICI Prudential Asset Management Company Limited,120592,ICICI Prudential ELSS Tax Saver Fund,Open Ended,Equity Scheme - ELSS,ICICI Prudential ELSS Tax Saver Fund - Direct Plan - Growth,Rs. 500/- (plus in multiple of Re. 1/-),11-Dec-2012,,INF109K01Y31
ICICI Prudential Asset Management Company Limited,120593,ICICI Prudential ELSS Tax Saver Fund,Open Ended,Equity Scheme - ELSS,ICICI Prudential ELSS Tax Saver Fund - Direct Plan - IDCW,Rs. 500/- (plus in multiple of Re. 1/-),11-Dec-2012,,INF109K01Y15INF109K01Y23
ICICI Prudential Asset Management Company Limited,100355,ICICI Prudential Equity & Debt Fund,Open Ended,Hybrid Scheme - Aggressive Hybrid Fund,ICICI Prudential Equity & Debt Fund - Monthly IDCW,5000,01-Jan-2000,,INF109K01DX5INF109K01498
ICICI Prudential Asset Management Company Limited,100356,ICICI Prudential Equity & Debt Fund,Open Ended,Hybrid Scheme - Aggressive Hybrid Fund,ICICI Prudential Equity & Debt Fund - Growth,5000,01-Jan-2000,,INF109K01480
ICICI Prudential Asset Management Company Limited,120251,ICICI Prudential Equity & Debt Fund,Open Ended,Hybrid Scheme - Aggressive Hybrid Fund,ICICI Prudential Equity & Debt Fund - Direct Plan - Growth,5000,01-Jan-2000,,INF109K01Y07
ICICI Prudential Asset Management Company Limited,120252,ICICI Prudential Equity & Debt Fund,Open Ended,Hybrid Scheme - Aggressive Hybrid Fund,ICICI Prudential Equity & Debt Fund - Direct Plan - Monthly IDCW,5000,01-Jan-2000,,INF109K01X81INF109K01X99
ICICI Prudential Asset Management Company Limited,120422,ICICI Prudential Equity & Debt Fund,Open Ended,Hybrid Scheme - Aggressive Hybrid Fund,ICICI Prudential Floating Rate - Direct Plan -  Daily Dividend,5000,01-Jan-2000,,
ICICI Prudential Asset Management Company Limited,131452,ICICI Prudential Equity & Debt Fund,Open Ended,Hybrid Scheme - Aggressive Hybrid Fund,ICICI Prudential Equity & Debt Fund - Half Yearly IDCW,5000,01-Jan-2000,,INF109KA1X93INF109KA1X85
ICICI Prudential Asset Management Company Limited,131453,ICICI Prudential Equity & Debt Fund,Open Ended,Hybrid Scheme - Aggressive Hybrid Fund,ICICI Prudential Equity & Debt Fund - Direct Plan - Half Yearly IDCW,5000,01-Jan-2000,,INF109KA1Y19INF109KA1Y01
ICICI Prudential Asset Management Company Limited,136113,ICICI Prudential Equity & Debt Fund,Open Ended,Hybrid Scheme - Aggressive Hybrid Fund,ICICI Prudential Equity & Debt Fund - Annual IDCW,5000,01-Jan-2000,,INF109KB1QK6INF109KB1QJ8
ICICI Prudential Asset Management Company Limited,136114,ICICI Prudential Equity & Debt Fund,Open Ended,Hybrid Scheme - Aggressive Hybrid Fund,ICICI Prudential Equity & Debt Fund - Direct Plan - Annual IDCW,5000,01-Jan-2000,,INF109KB1QM2INF109KB1QL4
ICICI Prudential Asset Management Company Limited,100357,ICICI Prudential Liquid Fund,Open Ended,Debt Scheme - Liquid Fund,ICICI Prudential Liquid Fund -Quarterly IDCW,5000,01-Jan-2012,,INF109K01UU5INF109K01UT7
ICICI Prudential Asset Management Company Limited,100359,ICICI Prudential Liquid Fund,Open Ended,Debt Scheme - Liquid Fund,ICICI Prudential Liquid Institutional Plus Fund - Div - Daily,5000,01-Jan-2012,,INF109K01VJ6
ICICI Prudential Asset Management Company Limited,100363,ICICI Prudential Technology Fund,Open Ended,Equity Scheme - Sectoral/ Thematic,ICICI Prudential Technology Fund - Growth,Rs. 5000/- (plus in multiple of Re. 1/-),03-Feb-2009,,INF109K01506
ICICI Prudential Asset Management Company Limited,115294,ICICI Prudential Technology Fund,Open Ended,Equity Scheme - Sectoral/ Thematic,ICICI Prudential Technology Fund - IDCW,Rs. 5000/- (plus in multiple of Re. 1/-),03-Feb-2009,,INF109K01FO9INF109K01514
ICICI Prudential Asset Management Company Limited,120594,ICICI Prudential Technology Fund,Open Ended,Equity Scheme - Sectoral/ Thematic,ICICI Prudential Technology Fund - Direct Plan -  Growth,Rs. 5000/- (plus in multiple of Re. 1/-),03-Feb-2009,,INF109K01Z48
ICICI Prudential Asset Management Company Limited,120595,ICICI Prudential Technology Fund,Open Ended,Equity Scheme - Sectoral/ Thematic,ICICI Prudential Technology Fund - Direct Plan -  IDCW,Rs. 5000/- (plus in multiple of Re. 1/-),03-Feb-2009,,INF109K01Z22INF109K01Z30
ICICI Prudential Asset Management Company Limited,100364,ICICI Prudential Long Term Bond Fund,Open Ended,Debt Scheme - Long Duration Fund,ICICI Prudential Long Term Bond Fund - Half Yearly IDCW,5000,11-Dec-2012,,INF109K01EX3INF109K01357
ICICI Prudential Asset Management Company Limited,100365,ICICI Prudential Long Term Bond Fund,Open Ended,Debt Scheme - Long Duration Fund,ICICI Prudential Long Term Bond Fund - Growth,5000,11-Dec-2012,,INF109K01365
ICICI Prudential Asset Management Company Limited,100366,ICICI Prudential Long Term Bond Fund,Open Ended,Debt Scheme - Long Duration Fund,ICICI Prudential Long Term Bond Fund-Institutional Quarterly Dividend,5000,11-Dec-2012,,INF109K01EY1INF109K01381
ICICI Prudential Asset Management Company Limited,100367,ICICI Prudential Long Term Bond Fund,Open Ended,Debt Scheme - Long Duration Fund,ICICI Prudential Long Term Bond Fund - Quarterly IDCW,5000,11-Dec-2012,,INF109K01EZ8INF109K01399
ICICI Prudential Asset Management Company Limited,120743,ICICI Prudential Long Term Bond Fund,Open Ended,Debt Scheme - Long Duration Fund,ICICI Prudential Long Term Bond Fund - Direct Plan - Growth,5000,11-Dec-2012,,INF109K017L8
ICICI Prudential Asset Management Company Limited,120747,ICICI Prudential Long Term Bond Fund,Open Ended,Debt Scheme - Long Duration Fund,ICICI Prudential Long Term Bond Fund - Direct Plan - Quarterly IDCW,5000,11-Dec-2012,,INF109K010M1INF109K011M9
ICICI Prudential Asset Management Company Limited,120748,ICICI Prudential Long Term Bond Fund,Open Ended,Debt Scheme - Long Duration Fund,ICICI Prudential Long Term Bond Fund - Direct Plan - Half Yearly IDCW,5000,11-Dec-2012,,INF109K018L6INF109K019L4
ICICI Prudential Asset Management Company Limited,122673,ICICI Prudential Long Term Bond Fund,Open Ended,Debt Scheme - Long Duration Fund,ICICI Prudential Long Term Bond Fund - Bonus,5000,11-Dec-2012,,INF109KA1335
ICICI Prudential Asset Management Company Limited,131622,ICICI Prudential Long Term Bond Fund,Open Ended,Debt Scheme - Long Duration Fund,ICICI Prudential Long Term Bond Fund Direct Plan - Annual IDCW,5000,11-Dec-2012,,INF109KA13C0INF109KA12C2
ICICI Prudential Asset Management Company Limited,131623,ICICI Prudential Long Term Bond Fund,Open Ended,Debt Scheme - Long Duration Fund,ICICI Prudential Long Term Bond Fund - Annual IDCW,5000,11-Dec-2012,,INF109KA11C4INF109KA10C6
ICICI Prudential Asset Management Company Limited,100368,ICICI Prudential Gilt Fund,Open Ended,Debt Scheme - Gilt Fund,ICICI Prudential Gilt Fund - IDCW,5,04-Dec-2012,,INF109K01JQ6INF109K01JP8
ICICI Prudential Asset Management Company Limited,100369,ICICI Prudential Gilt Fund,Open Ended,Debt Scheme - Gilt Fund,ICICI Prudential Gilt Fund - Growth,5,04-Dec-2012,,INF109K01JR4
ICICI Prudential Asset Management Company Limited,100370,ICICI Prudential Gilt Fund,Open Ended,Debt Scheme - Gilt Fund,ICICI Prudential Short Term Gilt Fund - Dividend,5,04-Dec-2012,,INF109K01JW4INF109K01JV6
ICICI Prudential Asset Management Company Limited,100371,ICICI Prudential Gilt Fund,Open Ended,Debt Scheme - Gilt Fund,ICICI Prudential Short Term Gilt Fund - Growth,5,04-Dec-2012,,INF109K01JX2
ICICI Prudential Asset Management Company Limited,100372,ICICI Prudential Gilt Fund,Open Ended,Debt Scheme - Gilt Fund,ICICI Prudential Short Term Gilt Fund - Half Yearly Dividend,5,04-Dec-2012,,INF109K01JZ7INF109K01JY0
ICICI Prudential Asset Management Company Limited,120589,ICICI Prudential Gilt Fund,Open Ended,Debt Scheme - Gilt Fund,ICICI Prudential Gilt Fund - Direct Plan - IDCW,5,04-Dec-2012,,INF109K016C9INF109K017C7
ICICI Prudential Asset Management Company Limited,130955,ICICI Prudential Gilt Fund,Open Ended,Debt Scheme - Gilt Fund,ICICI Prudential Gilt Fund - Direct Plan Bonus,5,04-Dec-2012,,INF109KA1H02
ICICI Prudential Asset Management Company Limited,130956,ICICI Prudential Gilt Fund,Open Ended,Debt Scheme - Gilt Fund,ICICI Prudential Short Term Gilt Fund - Direct Plan Bonus,5,04-Dec-2012,,INF109KA1I50
ICICI Prudential Asset Management Company Limited,120590,ICICI Prudential Gilt Fund,Open Ended,Debt Scheme - Gilt Fund,ICICI Prudential Gilt Fund - Direct Plan - Growth,5,04-Dec-2012,,INF109K018C5
ICICI Prudential Asset Management Company Limited,120607,ICICI Prudential Gilt Fund,Open Ended,Debt Scheme - Gilt Fund,ICICI Prudential Short Term Gilt Fund - Direct Plan -  Dividend,5,04-Dec-2012,,INF109K012D6INF109K013D4
ICICI Prudential Asset Management Company Limited,120608,ICICI Prudential Gilt Fund,Open Ended,Debt Scheme - Gilt Fund,ICICI Prudential Short Term Gilt Fund - Direct Plan -  Growth,5,04-Dec-2012,,INF109K014D2
ICICI Prudential Asset Management Company Limited,120609,ICICI Prudential Gilt Fund,Open Ended,Debt Scheme - Gilt Fund,ICICI Prudential Short Term Gilt Fund - Direct Plan -  Half Yearly Dividend,5,04-Dec-2012,,INF109K015D9INF109K016D7
ICICI Prudential Asset Management Company Limited,130902,ICICI Prudential Gilt Fund,Open Ended,Debt Scheme - Gilt Fund,ICICI Prudential Short Term Gilt Fund - Bonus,5,04-Dec-2012,,INF109KA1I68
ICICI Prudential Asset Management Company Limited,130903,ICICI Prudential Gilt Fund,Open Ended,Debt Scheme - Gilt Fund,ICICI Prudential Gilt Fund - Bonus,5,04-Dec-2012,,INF109KA1H10
ICICI Prudential Asset Management Company Limited,100373,ICICI Prudential Premier,Close Ended,Balanced,ICICI Prudential Premier,,,,
Nippon Life India Asset Management Limited,100375,Nippon India Growth Fund,Open Ended,Equity Scheme - Mid Cap Fund,NIPPON INDIA GROWTH FUND - IDCW Option,Rs. 5000 and in multiples of Re.1 thereafter,25-Sep-1995,,INF204K01299INF204K01307
Nippon Life India Asset Management Limited,100376,Nippon India Growth Fund,Open Ended,Equity Scheme - Mid Cap Fund,Nippon India Growth Fund-Growth Plan-Bonus Option,Rs. 5000 and in multiples of Re.1 thereafter,25-Sep-1995,,INF204K01315
Nippon Life India Asset Management Limited,100377,Nippon India Growth Fund,Open Ended,Equity Scheme - Mid Cap Fund,Nippon India Growth Fund-Growth Plan-Growth Option,Rs. 5000 and in multiples of Re.1 thereafter,25-Sep-1995,,INF204K01323
Nippon Life India Asset Management Limited,106260,Nippon India Growth Fund,Open Ended,Equity Scheme - Mid Cap Fund,NIPPON INDIA GROWTH FUND - INSTITUTIONAL Plan - IDCW Option,Rs. 5000 and in multiples of Re.1 thereafter,25-Sep-1995,,INF204K01257INF204K01265
Nippon Life India Asset Management Limited,118665,Nippon India Growth Fund,Open Ended,Equity Scheme - Mid Cap Fund,Nippon India Growth Fund - Direct Plan Growth Plan - Bonus Option,Rs. 5000 and in multiples of Re.1 thereafter,25-Sep-1995,,INF204K01E21
Nippon Life India Asset Management Limited,118666,Nippon India Growth Fund,Open Ended,Equity Scheme - Mid Cap Fund,NIPPON INDIA GROWTH FUND - DIRECT Plan - IDCW Option,Rs. 5000 and in multiples of Re.1 thereafter,25-Sep-1995,,INF204K01E39INF204K01E47
Nippon Life India Asset Management Limited,118668,Nippon India Growth Fund,Open Ended,Equity Scheme - Mid Cap Fund,Nippon India Growth Fund - Direct Plan Growth Plan - Growth Option,Rs. 5000 and in multiples of Re.1 thereafter,25-Sep-1995,,INF204K01E54
Nippon Life India Asset Management Limited,100378,Nippon India Vision Fund,Open Ended,Equity Scheme - Large & Mid Cap Fund,NIPPON INDIA VISION FUND - IDCW Option,5000/-,25-Sep-1995,,INF204K01372INF204K01380
Nippon Life India Asset Management Limited,100379,Nippon India Vision Fund,Open Ended,Equity Scheme - Large & Mid Cap Fund,Nippon India Vision Fund-GROWTH PLAN-Bonus Option,5000/-,25-Sep-1995,,INF204K01398
Nippon Life India Asset Management Limited,100380,Nippon India Vision Fund,Open Ended,Equity Scheme - Large & Mid Cap Fund,Nippon India Vision Fund-GROWTH PLAN-Growth Option,5000/-,25-Sep-1995,,INF204K01406
Nippon Life India Asset Management Limited,106255,Nippon India Vision Fund,Open Ended,Equity Scheme - Large & Mid Cap Fund,Nippon India Vision Fund Institutional Dividend Plan,5000/-,25-Sep-1995,,INF204K01331INF204K01349
Nippon Life India Asset Management Limited,118675,Nippon India Vision Fund,Open Ended,Equity Scheme - Large & Mid Cap Fund,Nippon India Vision Fund - Direct Plan Growth Plan - Bonus Option,5000/-,25-Sep-1995,,INF204K01E96
Nippon Life India Asset Management Limited,118676,Nippon India Vision Fund,Open Ended,Equity Scheme - Large & Mid Cap Fund,NIPPON INDIA VISION FUND - DIRECT Plan - IDCW Option,5000/-,25-Sep-1995,,INF204K01F04INF204K01F12
Nippon Life India Asset Management Limited,118678,Nippon India Vision Fund,Open Ended,Equity Scheme - Large & Mid Cap Fund,Nippon India Vision Fund - Direct Plan Growth Plan - Growth Option,5000/-,25-Sep-1995,,INF204K01F20
Nippon Life India Asset Management Limited,100383,Nippon India Income Fund,Open Ended,Debt Scheme - Medium to Long Duration Fund,NIPPON INDIA INCOME FUND - MONTHLY IDCW Option,Rs. 5000 & in multiples of Re. 1 thereafter,20-Dec-1997,20-Dec-1997,INF204K01CN7INF204K01CO5
Nippon Life India Asset Management Limited,100384,Nippon India Income Fund,Open Ended,Debt Scheme - Medium to Long Duration Fund,NIPPON INDIA INCOME FUND - QUARTERLY IDCW Option,Rs. 5000 & in multiples of Re. 1 thereafter,20-Dec-1997,20-Dec-1997,INF204K01CP2INF204K01CQ0
Nippon Life India Asset Management Limited,100385,Nippon India Income Fund,Open Ended,Debt Scheme - Medium to Long Duration Fund,NIPPON INDIA INCOME FUND - HALF YEARLY IDCW Option,Rs. 5000 & in multiples of Re. 1 thereafter,20-Dec-1997,20-Dec-1997,INF204K01CR8INF204K01CS6
Nippon Life India Asset Management Limited,100386,Nippon India Income Fund,Open Ended,Debt Scheme - Medium to Long Duration Fund,NIPPON INDIA INCOME FUND - ANNUAL IDCW Option,Rs. 5000 & in multiples of Re. 1 thereafter,20-Dec-1997,20-Dec-1997,INF204K01CT4INF204K01CU2
Nippon Life India Asset Management Limited,100387,Nippon India Income Fund,Open Ended,Debt Scheme - Medium to Long Duration Fund,Nippon India Income Fund - Growth Plan Growth Option,Rs. 5000 & in multiples of Re. 1 thereafter,20-Dec-1997,20-Dec-1997,INF204K01CL1
Nippon Life India Asset Management Limited,100388,Nippon India Income Fund,Open Ended,Debt Scheme - Medium to Long Duration Fund,Nippon India Income Fund - Growth Plan Bonus Option,Rs. 5000 & in multiples of Re. 1 thereafter,20-Dec-1997,20-Dec-1997,INF204K01CM9
Nippon Life India Asset Management Limited,118687,Nippon India Income Fund,Open Ended,Debt Scheme - Medium to Long Duration Fund,Nippon India Income Fund - Direct Plan Growth Plan - Growth Option,Rs. 5000 & in multiples of Re. 1 thereafter,20-Dec-1997,20-Dec-1997,INF204K01XS2
Nippon Life India Asset Management Limited,100395,Nippon India Income Fund,Open Ended,Debt Scheme - Medium to Long Duration Fund,Reliance Income Fund-Institutional Quarterly Dividend,Rs. 5000 & in multiples of Re. 1 thereafter,20-Dec-1997,20-Dec-1997,
Nippon Life India Asset Management Limited,118679,Nippon India Income Fund,Open Ended,Debt Scheme - Medium to Long Duration Fund,Nippon India Income Fund - Direct Plan Growth Plan-Bonus Option,Rs. 5000 & in multiples of Re. 1 thereafter,20-Dec-1997,20-Dec-1997,INF204K01F38
Nippon Life India Asset Management Limited,118680,Nippon India Income Fund,Open Ended,Debt Scheme - Medium to Long Duration Fund,NIPPON INDIA INCOME FUND - Direct Plan - ANNUAL IDCW Option,Rs. 5000 & in multiples of Re. 1 thereafter,20-Dec-1997,20-Dec-1997,INF204K01YT8INF204K01YU6
Nippon Life India Asset Management Limited,118681,Nippon India Income Fund,Open Ended,Debt Scheme - Medium to Long Duration Fund,NIPPON INDIA INCOME FUND - Direct Plan - HALF YEARLY IDCW Option,Rs. 5000 & in multiples of Re. 1 thereafter,20-Dec-1997,20-Dec-1997,INF204K01YR2INF204K01YS0
Nippon Life India Asset Management Limited,118683,Nippon India Income Fund,Open Ended,Debt Scheme - Medium to Long Duration Fund,NIPPON INDIA INCOME FUND - Direct Plan - MONTHLY IDCW Option,Rs. 5000 & in multiples of Re. 1 thereafter,20-Dec-1997,20-Dec-1997,INF204K01YN1
Nippon Life India Asset Management Limited,118684,Nippon India Income Fund,Open Ended,Debt Scheme - Medium to Long Duration Fund,NIPPON INDIA INCOME FUND - Direct Plan - QUARTERLY IDCW Option,Rs. 5000 & in multiples of Re. 1 thereafter,20-Dec-1997,20-Dec-1997,INF204K01YP6INF204K01YQ4
Taurus Asset Management Company Limited,100476,Taurus Flexi Cap Fund,Open Ended,Equity Scheme - Flexi Cap Fund,Taurus Flexi Cap Fund - Regular Plan - Growth ,Rs 5000 and in multiples of Re 1 thereafter,29-Jan-1994,,INF044D01989
Taurus Asset Management Company Limited,111640,Taurus Flexi Cap Fund,Open Ended,Equity Scheme - Flexi Cap Fund,Taurus Flexi Cap Fund - Regular Plan - Payout of Income Distribution cum Capital Withdrawal option,Rs 5000 and in multiples of Re 1 thereafter,29-Jan-1994,,INF044D01955INF044D01963
Taurus Asset Management Company Limited,118883,Taurus Flexi Cap Fund,Open Ended,Equity Scheme - Flexi Cap Fund,Taurus Flexi Cap Fund - Direct Plan - Growth,Rs 5000 and in multiples of Re 1 thereafter,29-Jan-1994,,INF044D01BU9
Taurus Asset Management Company Limited,118884,Taurus Flexi Cap Fund,Open Ended,Equity Scheme - Flexi Cap Fund,Taurus Flexi Cap Fund - Direct Plan -  Payout of Income Distribution cum Capital Withdrawal option,Rs 5000 and in multiples of Re 1 thereafter,29-Jan-1994,,INF044D01BV7INF044D01BW5
Taurus Asset Management Company Limited,100477,Taurus Mid Cap Fund,Open Ended,Equity Scheme - Mid Cap Fund,Taurus Mid Cap Fund - Regular Plan - Growth,Rs. 500 and in multiples of Re 1 therafter,05-Sep-1994,,INF044D01815
Taurus Asset Management Company Limited,111642,Taurus Mid Cap Fund,Open Ended,Equity Scheme - Mid Cap Fund,Taurus Mid Cap Fund - Regular Plan - Payout of Income Distribution cum Capital Withdrawal option,Rs. 500 and in multiples of Re 1 therafter,05-Sep-1994,,INF044D01781INF044D01799
Taurus Asset Management Company Limited,118872,Taurus Mid Cap Fund,Open Ended,Equity Scheme - Mid Cap Fund,Taurus Mid Cap Fund - Direct Plan - Growth,Rs. 500 and in multiples of Re 1 therafter,05-Sep-1994,,INF044D01CA9
Taurus Asset Management Company Limited,118873,Taurus Mid Cap Fund,Open Ended,Equity Scheme - Mid Cap Fund,Taurus Mid Cap Fund - Direct Plan - Payout of Income Distribution cum Capital Withdrawal option,Rs. 500 and in multiples of Re 1 therafter,05-Sep-1994,,INF044D01CB7INF044D01CC5
Taurus Asset Management Company Limited,100480,Taurus ELSS Tax Saver Fund,Open Ended,Equity Scheme - ELSS,Taurus ELSS Tax Saver Fund - Regular Plan - Growth,Rs 500 and in multiples of Rs 500 thereafter,05-Mar-2007,05-Mar-2007,INF044D01AC9
Taurus Asset Management Company Limited,108402,Taurus ELSS Tax Saver Fund,Open Ended,Equity Scheme - ELSS,Taurus ELSS Tax Saver Fund - Regular Plan - Payout of Income Distribution cum Capital Withdrawal option,Rs 500 and in multiples of Rs 500 thereafter,05-Mar-2007,05-Mar-2007,INF044D01997
Taurus Asset Management Company Limited,118866,Taurus ELSS Tax Saver Fund,Open Ended,Equity Scheme - ELSS,Taurus ELSS Tax Saver Fund - Direct Plan - Growth,Rs 500 and in multiples of Rs 500 thereafter,05-Mar-2007,05-Mar-2007,INF044D01CG6INF044D01AA3
Taurus Asset Management Company Limited,118867,Taurus ELSS Tax Saver Fund,Open Ended,Equity Scheme - ELSS,Taurus ELSS Tax Saver Fund - Direct Plan - Payout of Income Distribution cum Capital Withdrawal option,Rs 500 and in multiples of Rs 500 thereafter,05-Mar-2007,05-Mar-2007,INF044D01CH4INF044D01CI2
Franklin Templeton Asset Management (India) Private Limited,100484,Franklin India NSE Nifty 50 Index Fund,Open Ended,Other Scheme - Index Funds,Franklin India Index Fund- NSE Nifty 50 Index Fund - Growth,Rs. 2000,04-Aug-2000,,INF090I01890
Franklin Templeton Asset Management (India) Private Limited,105067,Franklin India NSE Nifty 50 Index Fund,Open Ended,Other Scheme - Index Funds,Franklin India INDEX FUND- NSE NIFTY 50 INDEX FUND - IDCW,Rs. 2000,04-Aug-2000,,INF090I01874INF090I01882
Franklin Templeton Asset Management (India) Private Limited,118580,Franklin India NSE Nifty 50 Index Fund,Open Ended,Other Scheme - Index Funds,Franklin India INDEX FUND- NSE Nifty 50 Index Fund - Direct - IDCW,Rs. 2000,04-Aug-2000,,INF090I01GQ8INF090I01GR6
Franklin Templeton Asset Management (India) Private Limited,118581,Franklin India NSE Nifty 50 Index Fund,Open Ended,Other Scheme - Index Funds,Franklin India INDEX FUND- NSE NIFTY 50 INDEX FUND- Direct - Growth,Rs. 2000,04-Aug-2000,,INF090I01GS4
Franklin Templeton Asset Management (India) Private Limited,100488,Franklin India Government Securities Fund,Open Ended,Debt Scheme - Gilt Fund,Templeton India Govt.Sec. Fund-Treasury Plan,Growth -10000 and Diviedend - 25000,21-Jun-1999,,
Franklin Templeton Asset Management (India) Private Limited,100492,Franklin India Government Securities Fund,Open Ended,Debt Scheme - Gilt Fund,Templeton India Govt.Sec. Fund-Long Term Plan,Growth -10000 and Diviedend - 25000,21-Jun-1999,,
Franklin Templeton Asset Management (India) Private Limited,100493,Franklin India Government Securities Fund,Open Ended,Debt Scheme - Gilt Fund,Franklin India Government Securities Fund - Growth,Growth -10000 and Diviedend - 25000,21-Jun-1999,,INF090I01CU9
Franklin Templeton Asset Management (India) Private Limited,100494,Franklin India Government Securities Fund,Open Ended,Debt Scheme - Gilt Fund,Franklin India Government Securities Fund - IDCW ,Growth -10000 and Diviedend - 25000,21-Jun-1999,,INF090I01CS3INF090I01CT1
Franklin Templeton Asset Management (India) Private Limited,118497,Franklin India Government Securities Fund,Open Ended,Debt Scheme - Gilt Fund,Franklin India Government Securities Fund - Direct - IDCW ,Growth -10000 and Diviedend - 25000,21-Jun-1999,,INF090I01HQ6INF090I01HR4
Franklin Templeton Asset Management (India) Private Limited,118498,Franklin India Government Securities Fund,Open Ended,Debt Scheme - Gilt Fund,Franklin India Government Securities Fund - Direct - Growth,Growth -10000 and Diviedend - 25000,21-Jun-1999,,INF090I01HS2
Franklin Templeton Asset Management (India) Private Limited,100496,Templeton India Value Fund,Open Ended,Equity Scheme - Value Fund,Templeton India Value Fund - Growth Plan,Rs.5000,10-Sep-1996,,INF090I01296
Franklin Templeton Asset Management (India) Private Limited,100497,Templeton India Value Fund,Open Ended,Equity Scheme - Value Fund,Templeton India Value Fund - IDCW ,Rs.5000,10-Sep-1996,,INF090I01270INF090I01288
Franklin Templeton Asset Management (India) Private Limited,118493,Templeton India Value Fund,Open Ended,Equity Scheme - Value Fund,Templeton India Value Fund - Direct - IDCW ,Rs.5000,10-Sep-1996,,INF090I01GW6INF090I01GX4
Franklin Templeton Asset Management (India) Private Limited,118494,Templeton India Value Fund,Open Ended,Equity Scheme - Value Fund,Templeton India Value Fund - Direct - Growth,Rs.5000,10-Sep-1996,,INF090I01GY2
Franklin Templeton Asset Management (India) Private Limited,100498,Franklin India Dynamic Accrual Fund (No. of segregated portfolios- 3),Open Ended,Debt Scheme - Dynamic Bond,Franklin India Dynamic Accrual Fund - IDCW ,10000,05-Mar-1997,,INF090I01BN6INF090I01BO4
Franklin Templeton Asset Management (India) Private Limited,100499,Franklin India Dynamic Accrual Fund (No. of segregated portfolios- 3),Open Ended,Debt Scheme - Dynamic Bond,Franklin India Dynamic Accrual Fund-Growth,10000,05-Mar-1997,,INF090I01BP1
Franklin Templeton Asset Management (India) Private Limited,118495,Franklin India Dynamic Accrual Fund (No. of segregated portfolios- 3),Open Ended,Debt Scheme - Dynamic Bond,Franklin India Dynamic Accrual Fund - Direct - Growth,10000,05-Mar-1997,,INF090I01HB8
Franklin Templeton Asset Management (India) Private Limited,118496,Franklin India Dynamic Accrual Fund (No. of segregated portfolios- 3),Open Ended,Debt Scheme - Dynamic Bond,Franklin India Dynamic Accrual Fund - Direct - IDCW ,10000,05-Mar-1997,,INF090I01GZ9INF090I01HA0
Franklin Templeton Asset Management (India) Private Limited,148309,Franklin India Dynamic Accrual Fund (No. of segregated portfolios- 3),Open Ended,Debt Scheme - Dynamic Bond,Franklin India Dynamic Accrual Fund- Segregated Portfolio 3 (9.50% Yes Bank Ltd CO 23Dec21) - IDCW,10000,05-Mar-1997,,INF090I01WA9
Franklin Templeton Asset Management (India) Private Limited,148310,Franklin India Dynamic Accrual Fund (No. of segregated portfolios- 3),Open Ended,Debt Scheme - Dynamic Bond,Franklin India Dynamic Accrual Fund-Segregated Portfolio 3 (9.50% Yes Bank Ltd CO 23Dec21) - Direct IDCW,10000,05-Mar-1997,,INF090I01WC5
Franklin Templeton Asset Management (India) Private Limited,147985,Franklin India Dynamic Accrual Fund (No. of segregated portfolios- 3),Open Ended,Debt Scheme - Dynamic Bond,Franklin India Dynamic Accrual Fund- Segregated Portfolio 2 - 10.90% Vodafone Idea Ltd (02-Sep-2023) - IDCW,10000,05-Mar-1997,,INF090I01TU3
Franklin Templeton Asset Management (India) Private Limited,147986,Franklin India Dynamic Accrual Fund (No. of segregated portfolios- 3),Open Ended,Debt Scheme - Dynamic Bond,Franklin India Dynamic Accrual Fund-Segregated Portfolio 2 - 10.90% Vodafone Idea Ltd (02-Sep-2023) - Direct IDCW,10000,05-Mar-1997,,INF090I01TW9
Franklin Templeton Asset Management (India) Private Limited,147987,Franklin India Dynamic Accrual Fund (No. of segregated portfolios- 3),Open Ended,Debt Scheme - Dynamic Bond,Franklin India Dynamic Accrual Fund- Segregated Portfolio 2- 10.90% Vodafone Idea Ltd 02Sep2023-Growth Plan,10000,05-Mar-1997,,INF090I01TV1
Franklin Templeton Asset Management (India) Private Limited,147988,Franklin India Dynamic Accrual Fund (No. of segregated portfolios- 3),Open Ended,Debt Scheme - Dynamic Bond,Franklin India Dynamic Accrual Fund- Segregated Portfolio 2- 10.90% Vodafone Idea Ltd 02Sep2023-Direct-Growth Plan,10000,05-Mar-1997,,INF090I01TX7
Franklin Templeton Asset Management (India) Private Limited,148307,Franklin India Dynamic Accrual Fund (No. of segregated portfolios- 3),Open Ended,Debt Scheme - Dynamic Bond,Franklin India Dynamic Accrual Fund - Segregated Portfolio 3 (9.50% Yes Bank Ltd CO 23Dec21) - Growth Plan,10000,05-Mar-1997,,INF090I01WB7
Franklin Templeton Asset Management (India) Private Limited,148308,Franklin India Dynamic Accrual Fund (No. of segregated portfolios- 3),Open Ended,Debt Scheme - Dynamic Bond,Franklin India Dynamic Accrual Fund - Segregated Portfolio 3 (9.50% Yes Bank Ltd CO 23Dec21) - Direct Growth Plan,10000,05-Mar-1997,,INF090I01WD3
Franklin Templeton Asset Management (India) Private Limited,147981,Franklin India Dynamic Accrual Fund (No. of segregated portfolios- 3),Open Ended,Debt Scheme - Dynamic Bond,Franklin India Dynamic Accrual Fund- Segregated Portfolio 1- 8.25% Vodafone Idea Ltd-10JUL20-Growth Plan,10000,05-Mar-1997,,INF090I01TR9
Franklin Templeton Asset Management (India) Private Limited,147982,Franklin India Dynamic Accrual Fund (No. of segregated portfolios- 3),Open Ended,Debt Scheme - Dynamic Bond,Franklin India Dynamic Accrual Fund- Segregated Portfolio 1- 8.25% Vodafone Idea Ltd-10JUL20-Direct-Dividend Plan,10000,05-Mar-1997,,INF090I01TS7
Franklin Templeton Asset Management (India) Private Limited,147983,Franklin India Dynamic Accrual Fund (No. of segregated portfolios- 3),Open Ended,Debt Scheme - Dynamic Bond,Franklin India Dynamic Accrual Fund- Segregated Portfolio 1- 8.25% Vodafone Idea Ltd-10JUL20-Dividend Plan,10000,05-Mar-1997,,INF090I01TQ1
Franklin Templeton Asset Management (India) Private Limited,147984,Franklin India Dynamic Accrual Fund (No. of segregated portfolios- 3),Open Ended,Debt Scheme - Dynamic Bond,Franklin India Dynamic Accrual Fund- Segregated Portfolio 1- 8.25% Vodafone Idea Ltd-10JUL20-Direct-Growth Plan,10000,05-Mar-1997,,INF090I01TT5
Franklin Templeton Asset Management (India) Private Limited,100503,Franklin India Low Duration Fund (No. of Segregated Portfolios-2),Open Ended,Debt Scheme - Low Duration Fund,Franklin India Low Duration Fund - Monthly - IDCW,Rs. 10000 (Growth Plan) Rs.25000 (Dividend Plans),07-Feb-2000,,INF090I01BQ9INF090I01BR7
Franklin Templeton Asset Management (India) Private Limited,100504,Franklin India Low Duration Fund (No. of Segregated Portfolios-2),Open Ended,Debt Scheme - Low Duration Fund,Franklin India Low Duration Fund - Quarterly - IDCW,Rs. 10000 (Growth Plan) Rs.25000 (Dividend Plans),07-Feb-2000,,INF090I01BS5INF090I01BT3
Franklin Templeton Asset Management (India) Private Limited,113135,Franklin India Low Duration Fund (No. of Segregated Portfolios-2),Open Ended,Debt Scheme - Low Duration Fund,Franklin India Low Duration Fund - Growth Plan,Rs. 10000 (Growth Plan) Rs.25000 (Dividend Plans),07-Feb-2000,,INF090I01BU1
Franklin Templeton Asset Management (India) Private Limited,118528,Franklin India Low Duration Fund (No. of Segregated Portfolios-2),Open Ended,Debt Scheme - Low Duration Fund,Franklin India Low Duration Fund - Direct - Monthly - IDCW,Rs. 10000 (Growth Plan) Rs.25000 (Dividend Plans),07-Feb-2000,,INF090I01HC6INF090I01HD4
Franklin Templeton Asset Management (India) Private Limited,118529,Franklin India Low Duration Fund (No. of Segregated Portfolios-2),Open Ended,Debt Scheme - Low Duration Fund,Franklin India Low Duration Fund - Direct - Quarterly - IDCW,Rs. 10000 (Growth Plan) Rs.25000 (Dividend Plans),07-Feb-2000,,INF090I01HE2INF090I01HF9
Franklin Templeton Asset Management (India) Private Limited,148000,Franklin India Low Duration Fund (No. of Segregated Portfolios-2),Open Ended,Debt Scheme - Low Duration Fund,Franklin India Low Duration Fund- Segregated Portfolio 2- 10.90% Vodafone Idea Ltd 02Sep2023-Growth Plan,Rs. 10000 (Growth Plan) Rs.25000 (Dividend Plans),07-Feb-2000,,INF090I01UG0
Franklin Templeton Asset Management (India) Private Limited,147994,Franklin India Low Duration Fund (No. of Segregated Portfolios-2),Open Ended,Debt Scheme - Low Duration Fund,Franklin India Low Duration Fund- Segregated Portfolio 1- 8.25% Vodafone Idea Ltd-10JUL20-Growth Plan,Rs. 10000 (Growth Plan) Rs.25000 (Dividend Plans),07-Feb-2000,,INF090I01UA3
Franklin Templeton Asset Management (India) Private Limited,147995,Franklin India Low Duration Fund (No. of Segregated Portfolios-2),Open Ended,Debt Scheme - Low Duration Fund,Franklin India Low Duration Fund- Segregated Portfolio 2 - 10.90% Vodafone Idea Ltd (02-Sep-2023) - Monthly - IDCW,Rs. 10000 (Growth Plan) Rs.25000 (Dividend Plans),07-Feb-2000,,INF090I01UE5
Franklin Templeton Asset Management (India) Private Limited,147996,Franklin India Low Duration Fund (No. of Segregated Portfolios-2),Open Ended,Debt Scheme - Low Duration Fund,Franklin India Low Duration Fund-Direct- Segregated Portfolio 2 - 10.90% Vodafone Idea Ltd (02-Sep-2023) - Direct Monthly - IDCW,Rs. 10000 (Growth Plan) Rs.25000 (Dividend Plans),07-Feb-2000,,INF090I01UH8
Franklin Templeton Asset Management (India) Private Limited,147997,Franklin India Low Duration Fund (No. of Segregated Portfolios-2),Open Ended,Debt Scheme - Low Duration Fund,Franklin India Low Duration Fund- Segregated Portfolio 2 - 10.90% Vodafone Idea Ltd (02-Sep-2023) - Quarterly - IDCW,Rs. 10000 (Growth Plan) Rs.25000 (Dividend Plans),07-Feb-2000,,INF090I01UF2
Franklin Templeton Asset Management (India) Private Limited,147998,Franklin India Low Duration Fund (No. of Segregated Portfolios-2),Open Ended,Debt Scheme - Low Duration Fund,Franklin India Low Duration Fund-Direct- Segregated Portfolio 2 - 10.90% Vodafone Idea Ltd (02-Sep-2023) - Direct Quarterly - IDCW,Rs. 10000 (Growth Plan) Rs.25000 (Dividend Plans),07-Feb-2000,,INF090I01UI6
Franklin Templeton Asset Management (India) Private Limited,147999,Franklin India Low Duration Fund (No. of Segregated Portfolios-2),Open Ended,Debt Scheme - Low Duration Fund,Franklin India Low Duration Fund- Segregated Portfolio 2- 10.90% Vodafone Idea Ltd 02Sep2023-Direct- Growth Plan,Rs. 10000 (Growth Plan) Rs.25000 (Dividend Plans),07-Feb-2000,,INF090I01UJ4
Franklin Templeton Asset Management (India) Private Limited,118530,Franklin India Low Duration Fund (No. of Segregated Portfolios-2),Open Ended,Debt Scheme - Low Duration Fund,Franklin India Low Duration Fund - Direct - Growth,Rs. 10000 (Growth Plan) Rs.25000 (Dividend Plans),07-Feb-2000,,INF090I01HG7
Franklin Templeton Asset Management (India) Private Limited,147989,Franklin India Low Duration Fund (No. of Segregated Portfolios-2),Open Ended,Debt Scheme - Low Duration Fund,Franklin India Low Duration Fund- Segregated Portfolio 1- 8.25% Vodafone Idea Ltd-10JUL20-Direct-Growth Plan,Rs. 10000 (Growth Plan) Rs.25000 (Dividend Plans),07-Feb-2000,,INF090I01UD7
Franklin Templeton Asset Management (India) Private Limited,147990,Franklin India Low Duration Fund (No. of Segregated Portfolios-2),Open Ended,Debt Scheme - Low Duration Fund,Franklin India Low Duration Fund- Segregated Portfolio 1- 8.25% Vodafone Idea Ltd-10JUL20-Monthly Dividend Plan,Rs. 10000 (Growth Plan) Rs.25000 (Dividend Plans),07-Feb-2000,,INF090I01TY5
Franklin Templeton Asset Management (India) Private Limited,147991,Franklin India Low Duration Fund (No. of Segregated Portfolios-2),Open Ended,Debt Scheme - Low Duration Fund,Franklin India Low Duration Fund- Segregated Portfolio 1- 8.25% Vodafone Idea Ltd-10JUL20-Direct-Monthly Dividend Plan,Rs. 10000 (Growth Plan) Rs.25000 (Dividend Plans),07-Feb-2000,,INF090I01UB1
Franklin Templeton Asset Management (India) Private Limited,147992,Franklin India Low Duration Fund (No. of Segregated Portfolios-2),Open Ended,Debt Scheme - Low Duration Fund,Franklin India Low Duration Fund- Segregated Portfolio 1- 8.25% Vodafone Idea Ltd-10JUL20-Quarterly Dividend Plan,Rs. 10000 (Growth Plan) Rs.25000 (Dividend Plans),07-Feb-2000,,INF090I01TZ2
Franklin Templeton Asset Management (India) Private Limited,147993,Franklin India Low Duration Fund (No. of Segregated Portfolios-2),Open Ended,Debt Scheme - Low Duration Fund,Franklin India Low Duration Fund- Segregated Portfolio 1- 8.25% Vodafone Idea Ltd-10JUL20-Direct- Quarterly Dividend Plan,Rs. 10000 (Growth Plan) Rs.25000 (Dividend Plans),07-Feb-2000,,INF090I01UC9
Franklin Templeton Asset Management (India) Private Limited,100470,Franklin India Bluechip Fund,Open Ended,Equity Scheme - Large Cap Fund,Franklin India BLUECHIP FUND - IDCW ,Rs.5000,01-Dec-1993,,INF090I01155INF090I01163
Franklin Templeton Asset Management (India) Private Limited,100471,Franklin India Bluechip Fund,Open Ended,Equity Scheme - Large Cap Fund,Franklin India Bluechip Fund-Growth,Rs.5000,01-Dec-1993,,INF090I01171
Franklin Templeton Asset Management (India) Private Limited,118462,Franklin India Bluechip Fund,Open Ended,Equity Scheme - Large Cap Fund,Franklin India BLUECHIP FUND - Direct - IDCW ,Rs.5000,01-Dec-1993,,INF090I01FO5INF090I01FP2
Franklin Templeton Asset Management (India) Private Limited,118531,Franklin India Bluechip Fund,Open Ended,Equity Scheme - Large Cap Fund,Franklin India Bluechip Fund- Direct - Growth,Rs.5000,01-Dec-1993,,INF090I01FN7
Franklin Templeton Asset Management (India) Private Limited,100472,Franklin India Prima Fund,Open Ended,Equity Scheme - Mid Cap Fund,Franklin India PRIMA FUND - IDCW ,Rs.5000,01-Dec-1993,,INF090I01726INF090I01734
Franklin Templeton Asset Management (India) Private Limited,100473,Franklin India Prima Fund,Open Ended,Equity Scheme - Mid Cap Fund,Franklin India Prima Fund-Growth,Rs.5000,01-Dec-1993,,INF090I01809
Franklin Templeton Asset Management (India) Private Limited,118532,Franklin India Prima Fund,Open Ended,Equity Scheme - Mid Cap Fund,Franklin India PRIMA FUND - Direct - IDCW ,Rs.5000,01-Dec-1993,,INF090I01FI7INF090I01FJ5
Franklin Templeton Asset Management (India) Private Limited,118533,Franklin India Prima Fund,Open Ended,Equity Scheme - Mid Cap Fund,Franklin India Prima Fund - Direct - Growth,Rs.5000,01-Dec-1993,,INF090I01FH9
Franklin Templeton Asset Management (India) Private Limited,100519,Franklin India Flexi Cap Fund,Open Ended,Equity Scheme - Flexi Cap Fund,Franklin India Flexi Cap Fund - IDCW ,Rs.5000,29-Sep-1994,,INF090I01213INF090I01221
Franklin Templeton Asset Management (India) Private Limited,100520,Franklin India Flexi Cap Fund,Open Ended,Equity Scheme - Flexi Cap Fund,Franklin India Flexi Cap Fund - Growth,Rs.5000,29-Sep-1994,,INF090I01239
Franklin Templeton Asset Management (India) Private Limited,118534,Franklin India Flexi Cap Fund,Open Ended,Equity Scheme - Flexi Cap Fund,Franklin India Flexi Cap Fund - Direct - IDCW ,Rs.5000,29-Sep-1994,,INF090I01FL1INF090I01FM9
Franklin Templeton Asset Management (India) Private Limited,118535,Franklin India Flexi Cap Fund,Open Ended,Equity Scheme - Flexi Cap Fund,Franklin India Flexi Cap Fund - Direct - Growth,Rs.5000,29-Sep-1994,,INF090I01FK3
Franklin Templeton Asset Management (India) Private Limited,100521,Franklin India Technology Fund,Open Ended,Equity Scheme - Sectoral/ Thematic,Franklin India Technology Fund - IDCW ,Rs.5000,22-Aug-1998,,INF090I01759INF090I01767
Franklin Templeton Asset Management (India) Private Limited,100522,Franklin India Technology Fund,Open Ended,Equity Scheme - Sectoral/ Thematic,Franklin India Technology Fund-Growth,Rs.5000,22-Aug-1998,,INF090I01742
Franklin Templeton Asset Management (India) Private Limited,118536,Franklin India Technology Fund,Open Ended,Equity Scheme - Sectoral/ Thematic,Franklin India Technology Fund - Direct - IDCW ,Rs.5000,22-Aug-1998,,INF090I01FF3INF090I01FG1
Franklin Templeton Asset Management (India) Private Limited,118537,Franklin India Technology Fund,Open Ended,Equity Scheme - Sectoral/ Thematic,Franklin India Technology Fund - Direct - Growth,Rs.5000,22-Aug-1998,,INF090I01FE6
Franklin Templeton Asset Management (India) Private Limited,100524,Franklin India Opportunities Fund,Open Ended,Equity Scheme - Sectoral/ Thematic,Franklin INDIA OPPORTUNITIES FUND - IDCW ,Rs.5000,21-Feb-2000,,INF090I01858INF090I01866
Franklin Templeton Asset Management (India) Private Limited,103151,Franklin India Opportunities Fund,Open Ended,Equity Scheme - Sectoral/ Thematic,Franklin India Opportunities Fund - Growth,Rs.5000,21-Feb-2000,,INF090I01841
Franklin Templeton Asset Management (India) Private Limited,118538,Franklin India Opportunities Fund,Open Ended,Equity Scheme - Sectoral/ Thematic,Franklin INDIA OPPORTUNITIES FUND - Direct - IDCW ,Rs.5000,21-Feb-2000,,INF090I01GD6INF090I01GE4
Franklin Templeton Asset Management (India) Private Limited,118539,Franklin India Opportunities Fund,Open Ended,Equity Scheme - Sectoral/ Thematic,Franklin India Opportunities Fund - Direct - Growth,Rs.5000,21-Feb-2000,,INF090I01GC8
Franklin Templeton Asset Management (India) Private Limited,100525,Franklin India ELSS Tax Saver Fund,Open Ended,Equity Scheme - ELSS,Franklin India ELSS Tax Saver Fund - IDCW,Rs.500,10-Apr-1994,,INF090I01783INF090I01791
Franklin Templeton Asset Management (India) Private Limited,100526,Franklin India ELSS Tax Saver Fund,Open Ended,Equity Scheme - ELSS,Franklin India ELSS Tax Saver Fund-Growth,Rs.500,10-Apr-1994,,INF090I01775
Franklin Templeton Asset Management (India) Private Limited,118540,Franklin India ELSS Tax Saver Fund,Open Ended,Equity Scheme - ELSS,Franklin India ELSS Tax Saver Fund - Direct - Growth,Rs.500,10-Apr-1994,,INF090I01JS8
Franklin Templeton Asset Management (India) Private Limited,118541,Franklin India ELSS Tax Saver Fund,Open Ended,Equity Scheme - ELSS,Franklin India ELSS Tax Saver Fund - Direct - IDCW,Rs.500,10-Apr-1994,,INF090I01JT6INF090I01JU4
Franklin Templeton Asset Management (India) Private Limited,100527,Franklin India Corporate Debt Fund,Open Ended,Debt Scheme - Corporate Bond Fund,Franklin India Corporate Debt Fund - Plan A - Annual - IDCW,PlanA Rs.50 lakhs; PlanB Rs.25000 (MD&QD),24-Jun-1997,,INF090I01DH4INF090I01DI2
Franklin Templeton Asset Management (India) Private Limited,100528,Franklin India Corporate Debt Fund,Open Ended,Debt Scheme - Corporate Bond Fund,Franklin India Corporate Debt Fund - Growth,PlanA Rs.50 lakhs; PlanB Rs.25000 (MD&QD),24-Jun-1997,,INF090I01DG6
Franklin Templeton Asset Management (India) Private Limited,100529,Franklin India Corporate Debt Fund,Open Ended,Debt Scheme - Corporate Bond Fund,Franklin India Corporate Debt Fund - Plan B - Monthly - IDCW,PlanA Rs.50 lakhs; PlanB Rs.25000 (MD&QD),24-Jun-1997,,INF090I01DJ0INF090I01DK8
Franklin Templeton Asset Management (India) Private Limited,100530,Franklin India Corporate Debt Fund,Open Ended,Debt Scheme - Corporate Bond Fund,Franklin India Corporate Debt Fund - Plan B - Quarterly - IDCW,PlanA Rs.50 lakhs; PlanB Rs.25000 (MD&QD),24-Jun-1997,,INF090I01DL6INF090I01DM4
Franklin Templeton Asset Management (India) Private Limited,100531,Franklin India Corporate Debt Fund,Open Ended,Debt Scheme - Corporate Bond Fund,Franklin India Corporate Debt Fund - Plan B - Half yearly - IDCW,PlanA Rs.50 lakhs; PlanB Rs.25000 (MD&QD),24-Jun-1997,,INF090I01DN2INF090I01DO0
Franklin Templeton Asset Management (India) Private Limited,100532,Franklin India Corporate Debt Fund,Open Ended,Debt Scheme - Corporate Bond Fund,Franklin India Corporate Debt Fund - Monthly Bonus,PlanA Rs.50 lakhs; PlanB Rs.25000 (MD&QD),24-Jun-1997,,INF090I01DC5
Franklin Templeton Asset Management (India) Private Limited,118573,Franklin India Corporate Debt Fund,Open Ended,Debt Scheme - Corporate Bond Fund,Franklin India Corporate Debt Fund - Plan A - Direct - Half yearly - IDCW,PlanA Rs.50 lakhs; PlanB Rs.25000 (MD&QD),24-Jun-1997,,INF090I01FU2INF090I01FV0
Franklin Templeton Asset Management (India) Private Limited,119289,Franklin India Corporate Debt Fund,Open Ended,Debt Scheme - Corporate Bond Fund,Franklin India Corporate Debt Fund - Direct - Bonus,PlanA Rs.50 lakhs; PlanB Rs.25000 (MD&QD),24-Jun-1997,,INF090I01KC0
Franklin Templeton Asset Management (India) Private Limited,118569,Franklin India Corporate Debt Fund,Open Ended,Debt Scheme - Corporate Bond Fund,Franklin India Corporate Debt Fund - Direct - GROWTH,PlanA Rs.50 lakhs; PlanB Rs.25000 (MD&QD),24-Jun-1997,,INF090I01FW8
Franklin Templeton Asset Management (India) Private Limited,118570,Franklin India Corporate Debt Fund,Open Ended,Debt Scheme - Corporate Bond Fund,Franklin India Corporate Debt Fund - Plan A - Direct - Annual - IDCW,PlanA Rs.50 lakhs; PlanB Rs.25000 (MD&QD),24-Jun-1997,,INF090I01FX6INF090I01FY4
Franklin Templeton Asset Management (India) Private Limited,118571,Franklin India Corporate Debt Fund,Open Ended,Debt Scheme - Corporate Bond Fund,Franklin India Corporate Debt Fund - Plan A - Direct - Monthly - IDCW,PlanA Rs.50 lakhs; PlanB Rs.25000 (MD&QD),24-Jun-1997,,INF090I01FQ0INF090I01FR8
Franklin Templeton Asset Management (India) Private Limited,118572,Franklin India Corporate Debt Fund,Open Ended,Debt Scheme - Corporate Bond Fund,Franklin India Corporate Debt Fund - Plan A - Direct - Quarterly - IDCW,PlanA Rs.50 lakhs; PlanB Rs.25000 (MD&QD),24-Jun-1997,,INF090I01FS6INF090I01FT4
Franklin Templeton Asset Management (India) Private Limited,100535,Franklin India Pension Plan,Open Ended,Solution Oriented Scheme - Retirement Fund,Franklin India Pension Plan - IDCW ,Rs.500,31-Mar-1997,,INF090I01528INF090I01536
Franklin Templeton Asset Management (India) Private Limited,100536,Franklin India Pension Plan,Open Ended,Solution Oriented Scheme - Retirement Fund,Franklin India Pension Plan-Growth,Rs.500,31-Mar-1997,,INF090I01510
Franklin Templeton Asset Management (India) Private Limited,118548,Franklin India Pension Plan,Open Ended,Solution Oriented Scheme - Retirement Fund,Franklin India  PENSION PLAN - Direct - Growth,Rs.500,31-Mar-1997,,INF090I01JZ3
Franklin Templeton Asset Management (India) Private Limited,118549,Franklin India Pension Plan,Open Ended,Solution Oriented Scheme - Retirement Fund,Franklin India Pension Plan - Direct - IDCW ,Rs.500,31-Mar-1997,,INF090I01KA4INF090I01KB2
Franklin Templeton Asset Management (India) Private Limited,100537,Franklin India Liquid Fund,Open Ended,Debt Scheme - Liquid Fund,Franklin India Liquid Fund - Regular Plan - Weekly - IDCW,Rs.1 Lakh (RP),29-Apr-1998,,INF090I01BL0INF090I01BI6
Franklin Templeton Asset Management (India) Private Limited,100538,Franklin India Liquid Fund,Open Ended,Debt Scheme - Liquid Fund,Franklin India Liquid Fund - Regular Plan - Growth,Rs.1 Lakh (RP),29-Apr-1998,,INF090I01BB1
Franklin Templeton Asset Management (India) Private Limited,100541,Franklin India Liquid Fund,Open Ended,Debt Scheme - Liquid Fund,Franklin India Liquid Fund - Regular Plan - Daily - IDCW,Rs.1 Lakh (RP),29-Apr-1998,,INF090I01BA3
Franklin Templeton Asset Management (India) Private Limited,100545,Franklin India Liquid Fund,Open Ended,Debt Scheme - Liquid Fund,Templeton India Treasury Management Account-Super Institutional Plan,Rs.1 Lakh (RP),29-Apr-1998,,
Franklin Templeton Asset Management (India) Private Limited,100546,Franklin India Liquid Fund,Open Ended,Debt Scheme - Liquid Fund,Franklin India Liquid Fund - Super Institutional Plan - Growth,Rs.1 Lakh (RP),29-Apr-1998,,INF090I01BG0
Franklin Templeton Asset Management (India) Private Limited,100547,Franklin India Liquid Fund,Open Ended,Debt Scheme - Liquid Fund,Franklin India Liquid Fund - Super Institutional Plan - Daily - IDCW,Rs.1 Lakh (RP),29-Apr-1998,,INF090I01BF2
Franklin Templeton Asset Management (India) Private Limited,139891,Franklin India Liquid Fund,Open Ended,Debt Scheme - Liquid Fund,Franklin India Liquid Fund - Unclaimed Redemption Investor Education Plan - Growth,Rs.1 Lakh (RP),29-Apr-1998,,INF090I01LQ8
Franklin Templeton Asset Management (India) Private Limited,139892,Franklin India Liquid Fund,Open Ended,Debt Scheme - Liquid Fund,Franklin India Liquid Fund - Unclaimed IDCW Investor Education Plan - Growth,Rs.1 Lakh (RP),29-Apr-1998,,INF090I01LR6
Franklin Templeton Asset Management (India) Private Limited,100548,Franklin India Liquid Fund,Open Ended,Debt Scheme - Liquid Fund,Franklin India Liquid Fund - Super Institutional Plan - Weekly - IDCW,Rs.1 Lakh (RP),29-Apr-1998,,INF090I01BM8INF090I01BH8
Franklin Templeton Asset Management (India) Private Limited,118577,Franklin India Liquid Fund,Open Ended,Debt Scheme - Liquid Fund,Franklin India Liquid Fund - Super Institutional - Direct - Growth,Rs.1 Lakh (RP),29-Apr-1998,,INF090I01JV2
Franklin Templeton Asset Management (India) Private Limited,118578,Franklin India Liquid Fund,Open Ended,Debt Scheme - Liquid Fund,Franklin India Liquid Fund - Super Institutional Plan - Direct - Daily - IDCW,Rs.1 Lakh (RP),29-Apr-1998,,INF090I01JW0
Franklin Templeton Asset Management (India) Private Limited,118579,Franklin India Liquid Fund,Open Ended,Debt Scheme - Liquid Fund,Franklin India Liquid Fund - Super Institutional Plan - Direct - Weekly - IDCW,Rs.1 Lakh (RP),29-Apr-1998,,INF090I01JX8INF090I01JY6
Franklin Templeton Asset Management (India) Private Limited,139889,Franklin India Liquid Fund,Open Ended,Debt Scheme - Liquid Fund,Franklin India Liquid Fund - Unclaimed Redemption Plan - Growth,Rs.1 Lakh (RP),29-Apr-1998,,INF090I01LO3
Franklin Templeton Asset Management (India) Private Limited,139890,Franklin India Liquid Fund,Open Ended,Debt Scheme - Liquid Fund,Franklin India Liquid Fund - Unclaimed IDCW Plan - Growth,Rs.1 Lakh (RP),29-Apr-1998,,INF090I01LP0
Franklin Templeton Asset Management (India) Private Limited,100549,Franklin India Equity Hybrid Fund,Open Ended,Hybrid Scheme - Aggressive Hybrid Fund,Franklin India Equity Hybrid Fund - IDCW ,Rs.5000,10-Dec-1999,,INF090I01825INF090I01833
Franklin Templeton Asset Management (India) Private Limited,100550,Franklin India Equity Hybrid Fund,Open Ended,Hybrid Scheme - Aggressive Hybrid Fund,Franklin India Equity Hybrid Fund - Growth Plan,Rs.5000,10-Dec-1999,,INF090I01817
Franklin Templeton Asset Management (India) Private Limited,118546,Franklin India Equity Hybrid Fund,Open Ended,Hybrid Scheme - Aggressive Hybrid Fund,Franklin India Equity Hybrid Fund - Direct - Growth,Rs.5000,10-Dec-1999,,INF090I01FZ1
Franklin Templeton Asset Management (India) Private Limited,118547,Franklin India Equity Hybrid Fund,Open Ended,Hybrid Scheme - Aggressive Hybrid Fund,Franklin India Equity Hybrid Fund - Direct - IDCW ,Rs.5000,10-Dec-1999,,INF090I01GA2INF090I01GB0
Canara Robeco Asset Management Company Limited,100593,Canara Robeco ELSS Tax Saver,Open Ended,Equity Scheme - ELSS,CANARA ROBECO ELSS TAX SAVER - REGULAR PLAN -IDCW (Payout),Rs.500,25-Feb-1993,,INF760K01084INF760K01092
Canara Robeco Asset Management Company Limited,111722,Canara Robeco ELSS Tax Saver,Open Ended,Equity Scheme - ELSS,CANARA ROBECO ELSS TAX SAVER - REGULAR PLAN - GROWTH OPTION,Rs.500,25-Feb-1993,,INF760K01100
Canara Robeco Asset Management Company Limited,118285,Canara Robeco ELSS Tax Saver,Open Ended,Equity Scheme - ELSS,CANARA ROBECO ELSS TAX SAVER - DIRECT PLAN - GROWTH OPTION,Rs.500,25-Feb-1993,,INF760K01EL8
Canara Robeco Asset Management Company Limited,118286,Canara Robeco ELSS Tax Saver,Open Ended,Equity Scheme - ELSS,CANARA ROBECO ELSS TAX SAVER - DIRECT PLAN - IDCW (Payout),Rs.500,25-Feb-1993,,INF760K01EJ2INF760K01EK0
Canara Robeco Asset Management Company Limited,100596,Canara Robeco Gilt Fund,Open Ended,Debt Scheme - Gilt Fund,CANARA ROBECO GILT FUND - REGULAR PLAN - IDCW (Payout/Reinvestment),Rs.10000,22-Dec-1999,,INF760K01AB7INF760K01AC5
Canara Robeco Asset Management Company Limited,100597,Canara Robeco Gilt Fund,Open Ended,Debt Scheme - Gilt Fund,CANARA ROBECO GILT FUND - REGULAR PLAN - GROWTH OPTION,Rs.10000,22-Dec-1999,,INF760K01AE1
Canara Robeco Asset Management Company Limited,118298,Canara Robeco Gilt Fund,Open Ended,Debt Scheme - Gilt Fund,CANARA ROBECO GILT FUND - DIRECT PLAN - IDCW (Payout/Reinvestment),Rs.10000,22-Dec-1999,,INF760K01FA8INF760K01FB6
Canara Robeco Asset Management Company Limited,118299,Canara Robeco Gilt Fund,Open Ended,Debt Scheme - Gilt Fund,CANARA ROBECO GILT FUND - DIRECT PLAN - GROWTH OPTION,Rs.10000,22-Dec-1999,,INF760K01FC4
Canara Robeco Asset Management Company Limited,100598,Canara Robeco Gilt 1988,Open Ended,Gilt,Canara Robeco Gilt 1988,Rs.100000,10-Oct-1988,,xxxxxxxxxxxxxxxxxxx
Canara Robeco Asset Management Company Limited,100600,Canara Robeco Conservative Hybrid Fund,Open Ended,Hybrid Scheme - Conservative Hybrid Fund,CANARA ROBECO CONSERVATIVE HYBRID FUND - REGULAR PLAN - MONTHLY IDCW (Payout/Reinvestment),5000,24-Apr-1988,,INF760K01308INF760K01316
Canara Robeco Asset Management Company Limited,100601,Canara Robeco Conservative Hybrid Fund,Open Ended,Hybrid Scheme - Conservative Hybrid Fund,CANARA ROBECO CONSERVATIVE HYBRID FUND - REGULAR PLAN - GROWTH OPTION,5000,24-Apr-1988,,INF760K01282
Canara Robeco Asset Management Company Limited,112378,Canara Robeco Conservative Hybrid Fund,Open Ended,Hybrid Scheme - Conservative Hybrid Fund,CANARA ROBECO CONSERVATIVE HYBRID FUND - REGULAR PLAN - QUARTERLY IDCW (Payout/Reinvestment),5000,24-Apr-1988,,INF760K01AP7INF760K01AQ5
Canara Robeco Asset Management Company Limited,118309,Canara Robeco Conservative Hybrid Fund,Open Ended,Hybrid Scheme - Conservative Hybrid Fund,CANARA ROBECO CONSERVATIVE HYBRID FUND - DIRECT PLAN - GROWTH OPTION,5000,24-Apr-1988,,INF760K01GB4
Canara Robeco Asset Management Company Limited,118310,Canara Robeco Conservative Hybrid Fund,Open Ended,Hybrid Scheme - Conservative Hybrid Fund,CANARA ROBECO CONSERVATIVE HYBRID FUND - DIRECT PLAN - QUARTERLY IDCW (Payout/Reinvestment),5000,24-Apr-1988,,INF760K01GC2INF760K01GD0
Canara Robeco Asset Management Company Limited,118311,Canara Robeco Conservative Hybrid Fund,Open Ended,Hybrid Scheme - Conservative Hybrid Fund,CANARA ROBECO CONSERVATIVE HYBRID FUND - DIRECT PLAN - MONTHLY IDCW (Payout/Reinvestment),5000,24-Apr-1988,,INF760K01FZ5INF760K01GA6
Sundaram Asset Management Company Ltd,100602,Sundaram Medium Duration Fund (Formerly Known as Sundaram Medium Term Bond Fund),Open Ended,Debt Scheme - Medium Duration Fund,Sundaram Medium Duration Fund (Formerly Known as Sundaram Medium Term Bond Fund) Regular Plan- Quarterly Income Distribution cum Capital Withdrawal (IDCW),Rs.5000/-,16-Oct-1997,,INF903J01FR0INF903J01FU4
Sundaram Asset Management Company Ltd,100603,Sundaram Medium Duration Fund (Formerly Known as Sundaram Medium Term Bond Fund),Open Ended,Debt Scheme - Medium Duration Fund,Sundaram Medium Duration Fund (Formerly Known as Sundaram Medium Term Bond Fund) Regular Plan - Growth,Rs.5000/-,16-Oct-1997,,INF903J01FQ2
Sundaram Asset Management Company Ltd,100604,Sundaram Medium Duration Fund (Formerly Known as Sundaram Medium Term Bond Fund),Open Ended,Debt Scheme - Medium Duration Fund,Sundaram Medium Duration Fund (Formerly Known as Sundaram Medium Term Bond Fund) Regular Plan - Bonus,Rs.5000/-,16-Oct-1997,,INF903J01FX8
Sundaram Asset Management Company Ltd,100608,Sundaram Medium Duration Fund (Formerly Known as Sundaram Medium Term Bond Fund),Open Ended,Debt Scheme - Medium Duration Fund,Sundaram Medium Duration Fund (Formerly Known as Sundaram Medium Term Bond Fund) Institutional Plan - Growth,Rs.5000/-,16-Oct-1997,,INF903J01FY6
Sundaram Asset Management Company Ltd,100609,Sundaram Medium Duration Fund (Formerly Known as Sundaram Medium Term Bond Fund),Open Ended,Debt Scheme - Medium Duration Fund,Sundaram Medium Duration Fund (Formerly Known as Sundaram Medium Term Bond Fund) Regular Plan- Half Yearly Income Distribution cum Capital Withdrawal (IDCW),Rs.5000/-,16-Oct-1997,,INF903J01FS8INF903J01FV2
Sundaram Asset Management Company Ltd,100610,Sundaram Medium Duration Fund (Formerly Known as Sundaram Medium Term Bond Fund),Open Ended,Debt Scheme - Medium Duration Fund,Sundaram Medium Duration Fund (Formerly Known as Sundaram Medium Term Bond Fund) Regular Plan - Annual Income Distribution cum Capital Withdrawal (IDCW),Rs.5000/-,16-Oct-1997,,INF903J01FT6INF903J01FW0
Sundaram Asset Management Company Ltd,119672,Sundaram Medium Duration Fund (Formerly Known as Sundaram Medium Term Bond Fund),Open Ended,Debt Scheme - Medium Duration Fund,Sundaram Medium Duration Fund (Formerly Known as Sundaram Medium Term Bond Fund) Direct Plan - Quarterly Income Distribution cum Capital Withdrawal (IDCW),Rs.5000/-,16-Oct-1997,,INF903J01PK4INF903J01PL2
Sundaram Asset Management Company Ltd,119675,Sundaram Medium Duration Fund (Formerly Known as Sundaram Medium Term Bond Fund),Open Ended,Debt Scheme - Medium Duration Fund,Sundaram Medium Duration Fund (Formerly Known as Sundaram Medium Term Bond Fund) Direct Plan - Growth,Rs.5000/-,16-Oct-1997,,INF903J01PO6
Sundaram Asset Management Company Ltd,119676,Sundaram Medium Duration Fund (Formerly Known as Sundaram Medium Term Bond Fund),Open Ended,Debt Scheme - Medium Duration Fund,Sundaram Medium Duration Fund (Formerly Known as Sundaram Medium Term Bond Fund) Direct Plan - Annual Income Distribution cum Capital Withdrawal (IDCW),Rs.5000/-,16-Oct-1997,,INF903J01PH0INF903J01PM0
Sundaram Asset Management Company Ltd,100614,Sundaram Diversified Equity,Open Ended,Equity Scheme - ELSS,Sundaram Diversified Equity (ELSS) Regular Plan - Income Distribution cum Capital Withdrawal (IDCW),Rs.500/-,22-Nov-1999,,INF903J01512INF903J01520
Sundaram Asset Management Company Ltd,101853,Sundaram Diversified Equity,Open Ended,Equity Scheme - ELSS,Sundaram Diversified Equity (ELSS) Regular Plan - Growth,Rs.500/-,22-Nov-1999,,INF903J01538
Sundaram Asset Management Company Ltd,119548,Sundaram Diversified Equity,Open Ended,Equity Scheme - ELSS,Sundaram Diversified Equity (ELSS) Direct Plan - Income Distribution cum Capital Withdrawal (IDCW),Rs.500/-,22-Nov-1999,,INF903J01NL7INF903J01NM5
Sundaram Asset Management Company Ltd,119549,Sundaram Diversified Equity,Open Ended,Equity Scheme - ELSS,Sundaram Diversified Equity (ELSS) Direct Plan - Growth,Rs.500/-,22-Nov-1999,,INF903J01NN3
Sundaram Asset Management Company Ltd,102700,Sundaram Money Fund,Open Ended,Debt Scheme - Liquid Fund,Sundaram Money Fund-Institutional Plan-Daily Diiv. Reinvestment,1000,31-Mar-2000,,
SBI Funds Management Limited,100636,Z-REDEEMED-SBI MOEF 95,Open Ended,Balanced,SBI MOEF 95,1000,01-Jan-1995,01-Jan-1995,
SBI Funds Management Limited,100637,Z-OLD-SBI MMPS 93,Open Ended,Growth,SBI MMPS 93,10,01-Jan-1995,01-Jan-1995,
SBI Funds Management Limited,100638,SBI MAGNUM INCOME FUND,Open Ended,Debt Scheme - Medium to Long Duration Fund,SBI Magnum Income Fund - Regular Plan - Half Yearly - Income Distribution cum Capital Withdrawal Option (IDCW),5000,31-Dec-2010,31-Dec-2010,INF200K01610INF200K01628
SBI Funds Management Limited,100639,SBI MAGNUM INCOME FUND,Open Ended,Debt Scheme - Medium to Long Duration Fund,SBI Magnum Income Fund-REGULAR PLAN-Growth,5000,31-Dec-2010,31-Dec-2010,INF200K01594
SBI Funds Management Limited,100640,SBI MAGNUM INCOME FUND,Open Ended,Debt Scheme - Medium to Long Duration Fund,SBI Magnum Income Fund-REGULAR PLAN-Bonus,5000,31-Dec-2010,31-Dec-2010,INF200K01602
SBI Funds Management Limited,119712,SBI MAGNUM INCOME FUND,Open Ended,Debt Scheme - Medium to Long Duration Fund,SBI Magnum Income Fund-DIRECT PLAN - Bonus,5000,31-Dec-2010,31-Dec-2010,INF200K01SO9
SBI Funds Management Limited,119713,SBI MAGNUM INCOME FUND,Open Ended,Debt Scheme - Medium to Long Duration Fund,SBI Magnum Income Fund - Direct Plan - Half Yearly - Income Distribution cum Capital Withdrawal Option (IDCW),5000,31-Dec-2010,31-Dec-2010,INF200K01SP6INF200K01SQ4
SBI Funds Management Limited,119714,SBI MAGNUM INCOME FUND,Open Ended,Debt Scheme - Medium to Long Duration Fund,SBI Magnum Income Fund-DIRECT PLAN -Growth,5000,31-Dec-2010,31-Dec-2010,INF200K01SR2
SBI Funds Management Limited,121940,SBI MAGNUM INCOME FUND,Open Ended,Debt Scheme - Medium to Long Duration Fund,SBI Magnum Income Fund - Direct Plan - Quarterly Income Distribution cum Capital Withdrawal Option (IDCW),5000,31-Dec-2010,31-Dec-2010,INF200K01YS8INF200K01YT6
SBI Funds Management Limited,121944,SBI MAGNUM INCOME FUND,Open Ended,Debt Scheme - Medium to Long Duration Fund,SBI Magnum Income Fund - Regular Plan - Quarterly Income Distribution cum Capital Withdrawal Option (IDCW),5000,31-Dec-2010,31-Dec-2010,INF200K01YQ2INF200K01YR0
SBI Funds Management Limited,100643,SBI TECHNOLOGY OPPORTUNITIES FUND,Open Ended,Equity Scheme - Sectoral/ Thematic,SBI Technology Opportunities Fund - Regular Plan - Income Distribution cum Capital Withdrawal Option (IDCW),5000,01-Jan-1993,01-Jan-1993,INF200K01420INF200K01438
SBI Funds Management Limited,119731,SBI TECHNOLOGY OPPORTUNITIES FUND,Open Ended,Equity Scheme - Sectoral/ Thematic,SBI Technology Opportunities Fund - Direct Plan - Income Distribution cum Capital Withdrawal Option (IDCW),5000,01-Jan-1993,01-Jan-1993,INF200K01RT0INF200K01RU8
SBI Funds Management Limited,120577,SBI TECHNOLOGY OPPORTUNITIES FUND,Open Ended,Equity Scheme - Sectoral/ Thematic,SBI TECHNOLOGY OPPORTUNITIES FUND - REGULAR PLAN - GROWTH,5000,01-Jan-1993,01-Jan-1993,INF200K01VS4
SBI Funds Management Limited,120578,SBI TECHNOLOGY OPPORTUNITIES FUND,Open Ended,Equity Scheme - Sectoral/ Thematic,SBI TECHNOLOGY OPPORTUNITIES FUND - DIRECT PLAN - GROWTH,5000,01-Jan-1993,01-Jan-1993,INF200K01RV6
SBI Funds Management Limited,100645,SBI CONSUMPTION OPPORTUNITIES FUND,Open Ended,Equity Scheme - Sectoral/ Thematic,SBI Consumption Opportunities Fund - Regular Plan - Income Distribution cum Capital Withdrawal Option (IDCW),5000,01-Jan-1993,01-Jan-1993,INF200K01404INF200K01412
SBI Funds Management Limited,119730,SBI CONSUMPTION OPPORTUNITIES FUND,Open Ended,Equity Scheme - Sectoral/ Thematic,SBI Consumption Opportunities Fund - Direct Plan - Income Distribution cum Capital Withdrawal Option (IDCW),5000,01-Jan-1993,01-Jan-1993,INF200K01RK9INF200K01RL7
SBI Funds Management Limited,120575,SBI CONSUMPTION OPPORTUNITIES FUND,Open Ended,Equity Scheme - Sectoral/ Thematic,SBI CONSUMPTION OPPORTUNITIES FUND - DIRECT PLAN - GROWTH,5000,01-Jan-1993,01-Jan-1993,INF200K01RM5
SBI Funds Management Limited,120576,SBI CONSUMPTION OPPORTUNITIES FUND,Open Ended,Equity Scheme - Sectoral/ Thematic,SBI CONSUMPTION OPPORTUNITIES FUND - REGULAR - GROWTH,5000,01-Jan-1993,01-Jan-1993,INF200K01VR6
UTI Asset Mgmt. Co. Ltd.,100646,UTI - Unit Linked Insurance Plan,Open Ended,Hybrid Scheme - Dynamic Asset Allocation or Balanced Advantage,UTI - Unit Linked Insurance Plan,15000.00,01-Feb-2003,,
UTI Asset Mgmt. Co. Ltd.,120784,UTI - Unit Linked Insurance Plan,Open Ended,Hybrid Scheme - Dynamic Asset Allocation or Balanced Advantage,UTI - Unit Linked Insurance Plan- Direct,15000.00,01-Feb-2003,,
UTI Asset Mgmt. Co. Ltd.,100650,UTI - Large Cap Fund,Open Ended,Equity Scheme - Large Cap Fund,UTI Large Cap Fund - Regular Plan - IDCW,5000,01-Feb-2003,,INF189A01038INF789F01950
UTI Asset Mgmt. Co. Ltd.,100651,UTI - Large Cap Fund,Open Ended,Equity Scheme - Large Cap Fund,UTI Large Cap Fund - Regular Plan - Growth Option,5000,01-Feb-2003,,INF789F01976
UTI Asset Mgmt. Co. Ltd.,120656,UTI - Large Cap Fund,Open Ended,Equity Scheme - Large Cap Fund,UTI Large Cap Fund - Direct Plan - Growth Option,5000,01-Feb-2003,,INF789F01US8
UTI Asset Mgmt. Co. Ltd.,120657,UTI - Large Cap Fund,Open Ended,Equity Scheme - Large Cap Fund,UTI Large Cap Fund - Direct Plan - IDCW,5000,01-Feb-2003,,INF789F01UQ2INF789F01UR0
UTI Asset Mgmt. Co. Ltd.,100668,UTI - Flexi Cap Fund.,Open Ended,Equity Scheme - Flexi Cap Fund,UTI Flexi Cap Fund - Regular Plan - IDCW,Rs.5000/-,20-Apr-1992,,INF189A01053INF789F01505
UTI Asset Mgmt. Co. Ltd.,100669,UTI - Flexi Cap Fund.,Open Ended,Equity Scheme - Flexi Cap Fund,UTI - Flexi Cap Fund-Growth Option,Rs.5000/-,20-Apr-1992,,INF789F01513
UTI Asset Mgmt. Co. Ltd.,120662,UTI - Flexi Cap Fund.,Open Ended,Equity Scheme - Flexi Cap Fund,UTI - Flexi Cap Fund-Growth Option - Direct,Rs.5000/-,20-Apr-1992,,INF789F01TC4
UTI Asset Mgmt. Co. Ltd.,120663,UTI - Flexi Cap Fund.,Open Ended,Equity Scheme - Flexi Cap Fund,UTI Flexi Cap Fund - Direct Plan - IDCW,Rs.5000/-,20-Apr-1992,,INF789F01TA8INF789F01TB6
UTI Asset Mgmt. Co. Ltd.,100663,UTI Large & Mid Cap Fund,Open Ended,Equity Scheme - Large & Mid Cap Fund,UTI Large & Mid Cap Fund - Regular Plan - IDCW,Rs. 5000/-,20-May-2009,25-May-2009,INF189A01046INF789F01851
UTI Asset Mgmt. Co. Ltd.,100664,UTI Large & Mid Cap Fund,Open Ended,Equity Scheme - Large & Mid Cap Fund,UTI Large & Mid Cap Fund - Regular Plan - Growth Option,Rs. 5000/-,20-May-2009,25-May-2009,INF789F01869
UTI Asset Mgmt. Co. Ltd.,120664,UTI Large & Mid Cap Fund,Open Ended,Equity Scheme - Large & Mid Cap Fund,UTI Large & Mid Cap Fund - Direct Plan - IDCW,Rs. 5000/-,20-May-2009,25-May-2009,INF789F01UE8INF789F01UF5
UTI Asset Mgmt. Co. Ltd.,120665,UTI Large & Mid Cap Fund,Open Ended,Equity Scheme - Large & Mid Cap Fund,UTI Large & Mid Cap Fund - Direct Plan - Growth Option,Rs. 5000/-,20-May-2009,25-May-2009,INF789F01UG3
UTI Asset Mgmt. Co. Ltd.,100678,UTI Children's Hybrid Fund,Open Ended,Solution Oriented Scheme - Children s Fund,UTI Children's Hybrid Fund - Regular Plan,Rs. 2000/-,12-Jul-1993,,
UTI Asset Mgmt. Co. Ltd.,120771,UTI Children's Hybrid Fund,Open Ended,Solution Oriented Scheme - Children s Fund,UTI Children's Hybrid Fund - Direct Plan,Rs. 2000/-,12-Jul-1993,,
UTI Asset Mgmt. Co. Ltd.,100682,UTI Retirement Fund,Open Ended,Solution Oriented Scheme - Retirement Fund,UTI Retirement Fund - Regular Plan,Rs.10000/,26-Dec-1994,,
UTI Asset Mgmt. Co. Ltd.,120766,UTI Retirement Fund,Open Ended,Solution Oriented Scheme - Retirement Fund,UTI Retirement Fund- Direct Plan,Rs.10000/,26-Dec-1994,,
UTI Asset Mgmt. Co. Ltd.,100684,UTI Aggressive Hybrid Fund,Open Ended,Hybrid Scheme - Aggressive Hybrid Fund,UTI Aggressive Hybrid Fund - Regular Plan - Growth,Rs.10000,02-Jan-1995,,INF789F01323
UTI Asset Mgmt. Co. Ltd.,100685,UTI Aggressive Hybrid Fund,Open Ended,Hybrid Scheme - Aggressive Hybrid Fund,UTI Aggressive Hybrid Fund - Regular Plan - IDCW,Rs.10000,02-Jan-1995,,INF789F01307INF789F01315
UTI Asset Mgmt. Co. Ltd.,120673,UTI Aggressive Hybrid Fund,Open Ended,Hybrid Scheme - Aggressive Hybrid Fund,UTI Aggressive Hybrid Fund - Direct Plan - IDCW,Rs.10000,02-Jan-1995,,INF789F01SI3INF789F01SJ1
UTI Asset Mgmt. Co. Ltd.,120674,UTI Aggressive Hybrid Fund,Open Ended,Hybrid Scheme - Aggressive Hybrid Fund,UTI Aggressive Hybrid Fund -Direct Plan - Growth,Rs.10000,02-Jan-1995,,INF789F01SK9
UTI Asset Mgmt. Co. Ltd.,100721,UTI - Money Market Fund,Open Ended,Debt Scheme - Money Market Fund,UTI MMF-Growth,10000,23-Apr-1997,,
UTI Asset Mgmt. Co. Ltd.,100722,UTI - Money Market Fund,Open Ended,Debt Scheme - Money Market Fund,UTI MMF-Income,10000,23-Apr-1997,,
UTI Asset Mgmt. Co. Ltd.,100723,UTI - Money Market Fund,Open Ended,Debt Scheme - Money Market Fund,UTI MMF-Discontinued - Regular Plan -Growth,10000,23-Apr-1997,,INF789F01BF5
UTI Asset Mgmt. Co. Ltd.,100724,UTI - Money Market Fund,Open Ended,Debt Scheme - Money Market Fund,UTI MMF- Discontinued - Regular Plan - Flexi Dividend Option,10000,23-Apr-1997,,INF789F01BD0
UTI Asset Mgmt. Co. Ltd.,100725,UTI - Money Market Fund,Open Ended,Debt Scheme - Money Market Fund,UTI MMF- Discontinued - Regular Plan - Periodic Dividend Option,10000,23-Apr-1997,,INF789F01BE8
UTI Asset Mgmt. Co. Ltd.,112076,UTI - Money Market Fund,Open Ended,Debt Scheme - Money Market Fund,UTI Money Market Fund - Regular Plan - Daily IDCW (Reinvestment),10000,23-Apr-1997,,INF789F01PW0
UTI Asset Mgmt. Co. Ltd.,140023,UTI - Money Market Fund,Open Ended,Debt Scheme - Money Market Fund,UTI Money Market Fund - Direct Plan - Half-Yearly IDCW,10000,23-Apr-1997,,INF789FA1M87INF789FA1M95
UTI Asset Mgmt. Co. Ltd.,142249,UTI - Money Market Fund,Open Ended,Debt Scheme - Money Market Fund,UTI Money Market Fund - Direct Plan - Quarterly IDCW,10000,23-Apr-1997,,INF789FA1M61INF789FA1M79
UTI Asset Mgmt. Co. Ltd.,143125,UTI - Money Market Fund,Open Ended,Debt Scheme - Money Market Fund,UTI Money Market Fund - Direct Plan - Flexi IDCW,10000,23-Apr-1997,,INF789FA1N29INF789FA1N37
UTI Asset Mgmt. Co. Ltd.,134972,UTI - Money Market Fund,Open Ended,Debt Scheme - Money Market Fund,UTI Money Market Fund - Regular Plan - Annual IDCW,10000,23-Apr-1997,,INF789FA1L88INF789FA1L96
UTI Asset Mgmt. Co. Ltd.,134973,UTI - Money Market Fund,Open Ended,Debt Scheme - Money Market Fund,UTI Money Market Fund - Direct Plan - Annual IDCW,10000,23-Apr-1997,,INF789FA1N03INF789FA1N11
UTI Asset Mgmt. Co. Ltd.,135371,UTI - Money Market Fund,Open Ended,Debt Scheme - Money Market Fund,UTI Money Market Fund - Regular Plan - Fortnightly IDCW,10000,23-Apr-1997,,INF789FA1L05INF789FA1L13
UTI Asset Mgmt. Co. Ltd.,135606,UTI - Money Market Fund,Open Ended,Debt Scheme - Money Market Fund,UTI Money Market Fund - Direct Plan - Fortnightly IDCW,10000,23-Apr-1997,,INF789FA1M20INF789FA1M38
UTI Asset Mgmt. Co. Ltd.,139236,UTI - Money Market Fund,Open Ended,Debt Scheme - Money Market Fund,UTI MMF - Regular Plan - Flexi Dividend Option,10000,23-Apr-1997,,INF789FA1M04INF789FA1M12
UTI Asset Mgmt. Co. Ltd.,139646,UTI - Money Market Fund,Open Ended,Debt Scheme - Money Market Fund,UTI Money Market Fund - Regular Plan - Quarterly IDCW,10000,23-Apr-1997,,INF789FA1L47INF789FA1L54
UTI Asset Mgmt. Co. Ltd.,120299,UTI - Money Market Fund,Open Ended,Debt Scheme - Money Market Fund,UTI MMF - Direct Plan - Growth Option,10000,23-Apr-1997,,INF789F01XV6
UTI Asset Mgmt. Co. Ltd.,120772,UTI - Money Market Fund,Open Ended,Debt Scheme - Money Market Fund,UTI Money Market Fund - Direct Plan - Daily IDCW (Reinvestment),10000,23-Apr-1997,,INF789F01XU8
UTI Asset Mgmt. Co. Ltd.,120793,UTI - Money Market Fund,Open Ended,Debt Scheme - Money Market Fund,UTI Money Market Fund - Direct Plan - Weekly IDCW,10000,23-Apr-1997,,INF789F01XW4INF789F01XX2
UTI Asset Mgmt. Co. Ltd.,133387,UTI - Money Market Fund,Open Ended,Debt Scheme - Money Market Fund,UTI Money Market Fund - Direct Plan - Monthly IDCW,10000,23-Apr-1997,,INF789FA1M46INF789FA1M53
UTI Asset Mgmt. Co. Ltd.,133484,UTI - Money Market Fund,Open Ended,Debt Scheme - Money Market Fund,UTI Money Market Fund - Regular Plan - Monthly IDCW,10000,23-Apr-1997,,INF789FA1L21INF789FA1L39
UTI Asset Mgmt. Co. Ltd.,134763,UTI - Money Market Fund,Open Ended,Debt Scheme - Money Market Fund,UTI Money Market Fund - Regular Plan - Half-Yearly IDCW,10000,23-Apr-1997,,INF789FA1L62INF789FA1L70
UTI Asset Mgmt. Co. Ltd.,112077,UTI - Money Market Fund,Open Ended,Debt Scheme - Money Market Fund,UTI MMF - Regular Plan - Growth Option,10000,23-Apr-1997,,INF789F01PX8
UTI Asset Mgmt. Co. Ltd.,112635,UTI - Money Market Fund,Open Ended,Debt Scheme - Money Market Fund,UTI Money Market Fund - Regular Plan - Weekly IDCW,10000,23-Apr-1997,,INF789F01PY6INF789F01PZ3
UTI Asset Mgmt. Co. Ltd.,100739,UTI - MNC Fund,Open Ended,Equity Scheme - Sectoral/ Thematic,UTI MNC Fund - Regular Plan - IDCW,5000,01-Feb-2003,,INF789F01828INF789F01836
UTI Asset Mgmt. Co. Ltd.,100740,UTI - MNC Fund,Open Ended,Equity Scheme - Sectoral/ Thematic,UTI - MNC Fund - Regular Plan - Growth Option,5000,01-Feb-2003,,INF789F01844
UTI Asset Mgmt. Co. Ltd.,120681,UTI - MNC Fund,Open Ended,Equity Scheme - Sectoral/ Thematic,UTI MNC Fund - Direct Plan - IDCW,5000,01-Feb-2003,,INF789F01UB4INF789F01UC2
UTI Asset Mgmt. Co. Ltd.,120682,UTI - MNC Fund,Open Ended,Equity Scheme - Sectoral/ Thematic,UTI - MNC Fund - Growth Option - Direct,5000,01-Feb-2003,,INF789F01UD0
UTI Asset Mgmt. Co. Ltd.,100741,UTI Medium to Long Duration Fund,Open Ended,Debt Scheme - Medium to Long Duration Fund,UTI Medium to Long Duration Fund- Regular Plan - Growth,Rs. 5000/,04-May-1998,,INF789F01406
UTI Asset Mgmt. Co. Ltd.,100742,UTI Medium to Long Duration Fund,Open Ended,Debt Scheme - Medium to Long Duration Fund,UTI Medium to Long Duration Fund - Regular Plan - Quarterly IDCW,Rs. 5000/,04-May-1998,,INF789F01380INF789F01398
UTI Asset Mgmt. Co. Ltd.,100743,UTI Medium to Long Duration Fund,Open Ended,Debt Scheme - Medium to Long Duration Fund,UTI Bond Fund-(for rep. After 6 months- No Load),Rs. 5000/,04-May-1998,,
UTI Asset Mgmt. Co. Ltd.,120689,UTI Medium to Long Duration Fund,Open Ended,Debt Scheme - Medium to Long Duration Fund,UTI Medium to Long Duration Fund-Growth - Direct,Rs. 5000/,04-May-1998,,INF789F01SQ6
UTI Asset Mgmt. Co. Ltd.,120690,UTI Medium to Long Duration Fund,Open Ended,Debt Scheme - Medium to Long Duration Fund,UTI Medium to Long Duration Fund - Direct Plan - Quarterly IDCW,Rs. 5000/,04-May-1998,,INF789F01SO1INF789F01SP8
UTI Asset Mgmt. Co. Ltd.,133280,UTI Medium to Long Duration Fund,Open Ended,Debt Scheme - Medium to Long Duration Fund,UTI Medium to Long Duration Fund - Direct Plan - Flexi IDCW,Rs. 5000/,04-May-1998,,INF789FA1U04INF789FA1U12
UTI Asset Mgmt. Co. Ltd.,133869,UTI Medium to Long Duration Fund,Open Ended,Debt Scheme - Medium to Long Duration Fund,UTI Medium to Long Duration Fund - Regular Plan - Annual IDCW,Rs. 5000/,04-May-1998,,INF789FA1T23INF789FA1T31
UTI Asset Mgmt. Co. Ltd.,133872,UTI Medium to Long Duration Fund,Open Ended,Debt Scheme - Medium to Long Duration Fund,UTI Medium to Long Duration Fund - Regular Plan - Flexi IDCW,Rs. 5000/,04-May-1998,,INF789FA1T49INF789FA1T56
UTI Asset Mgmt. Co. Ltd.,134998,UTI Medium to Long Duration Fund,Open Ended,Debt Scheme - Medium to Long Duration Fund,UTI Medium to Long Duration Fund - Direct Plan - Half-Yearly IDCW,Rs. 5000/,04-May-1998,,INF789FA1T64INF789FA1T72
UTI Asset Mgmt. Co. Ltd.,135581,UTI Medium to Long Duration Fund,Open Ended,Debt Scheme - Medium to Long Duration Fund,UTI Medium to Long Duration Fund - Regular Plan - Half-Yearly IDCW,Rs. 5000/,04-May-1998,,INF789FA1T07INF789FA1T15
UTI Asset Mgmt. Co. Ltd.,139339,UTI Medium to Long Duration Fund,Open Ended,Debt Scheme - Medium to Long Duration Fund,UTI Medium to Long Duration Fund - Direct Plan - Annual IDCW,Rs. 5000/,04-May-1998,,INF789FA1T80
UTI Asset Mgmt. Co. Ltd.,100806,UTI - Healthcare Fund,Open Ended,Equity Scheme - Sectoral/ Thematic,UTI Healthcare Fund - Regular Plan - IDCW,Rs. 5000/-,27-May-1999,,INF789F01679INF789F01687
UTI Asset Mgmt. Co. Ltd.,100807,UTI - Healthcare Fund,Open Ended,Equity Scheme - Sectoral/ Thematic,UTI Healthcare Fund - Regular Plan - Growth Option,Rs. 5000/-,27-May-1999,,INF789F01695
UTI Asset Mgmt. Co. Ltd.,120782,UTI - Healthcare Fund,Open Ended,Equity Scheme - Sectoral/ Thematic,UTI Healthcare Fund - Direct Plan - Growth Option,Rs. 5000/-,27-May-1999,,INF789F01TO9
UTI Asset Mgmt. Co. Ltd.,120783,UTI - Healthcare Fund,Open Ended,Equity Scheme - Sectoral/ Thematic,UTI Healthcare Fund - Direct Plan - IDCW,Rs. 5000/-,27-May-1999,,INF789F01TM3INF789F01TN1
UTI Asset Mgmt. Co. Ltd.,100810,UTI - Overnight Fund,Open Ended,Debt Scheme - Overnight Fund,UTI - G-Sec Fund-Growth,Rs.10000/,23-Aug-1999,,
UTI Asset Mgmt. Co. Ltd.,100813,UTI - Overnight Fund,Open Ended,Debt Scheme - Overnight Fund,UTI Overnight Fund - Regular Plan - Periodic IDCW,Rs.10000/,23-Aug-1999,,INF789F01588INF789F01596
UTI Asset Mgmt. Co. Ltd.,100814,UTI - Overnight Fund,Open Ended,Debt Scheme - Overnight Fund,UTI - Overnight  Fund - Regular Plan - Growth Option,Rs.10000/,23-Aug-1999,,INF789F01604
UTI Asset Mgmt. Co. Ltd.,120785,UTI - Overnight Fund,Open Ended,Debt Scheme - Overnight Fund,UTI - Overnight Fund - Direct Plan - Growth Option,Rs.10000/,23-Aug-1999,,INF789FB1S71
UTI Asset Mgmt. Co. Ltd.,120786,UTI - Overnight Fund,Open Ended,Debt Scheme - Overnight Fund,UTI Overnight Fund - Direct Plan - Periodic IDCW,Rs.10000/,23-Aug-1999,,INF789FB1T05INF789FB1S97
UTI Asset Mgmt. Co. Ltd.,124265,UTI - Overnight Fund,Open Ended,Debt Scheme - Overnight Fund,UTI Overnight Fund - Regular Plan - Daily IDCW,Rs.10000/,23-Aug-1999,,INF789FB1T13
UTI Asset Mgmt. Co. Ltd.,124266,UTI - Overnight Fund,Open Ended,Debt Scheme - Overnight Fund,UTI Overnight Fund - Direct Plan - Daily IDCW,Rs.10000/,23-Aug-1999,,INF789FB1S89
UTI Asset Mgmt. Co. Ltd.,100820,UTI ELSS Tax Saver Fund,Open Ended,Equity Scheme - ELSS,UTI ELSS Tax Saver Fund - Regular Plan - IDCW,Rs 500/-,15-Nov-1999,,INF789F01521INF789F01539
UTI Asset Mgmt. Co. Ltd.,100821,UTI ELSS Tax Saver Fund,Open Ended,Equity Scheme - ELSS,UTI ELSS Tax Saver Fund - Regular Plan - Growth Option,Rs 500/-,15-Nov-1999,,INF789F01547
UTI Asset Mgmt. Co. Ltd.,120714,UTI ELSS Tax Saver Fund,Open Ended,Equity Scheme - ELSS,UTI ELSS Tax Saver Fund - Direct Plan - IDCW,Rs 500/-,15-Nov-1999,,INF789F01TD2INF789F01TE0
UTI Asset Mgmt. Co. Ltd.,120715,UTI ELSS Tax Saver Fund,Open Ended,Equity Scheme - ELSS,UTI ELSS Tax Saver Fund - Direct Plan - Growth Option,Rs 500/-,15-Nov-1999,,INF789F01TF7
UTI Asset Mgmt. Co. Ltd.,100822,UTI Nifty 50 Index Fund,Open Ended,Other Scheme - Index Funds,UTI Nifty 50 Index Fund - Regular Plan - Growth Option,5000.00,28-Mar-2000,,INF789F01JN2
UTI Asset Mgmt. Co. Ltd.,100823,UTI Nifty 50 Index Fund,Open Ended,Other Scheme - Index Funds,UTI Nifty 50 Index Fund - Regular Plan - IDCW,5000.00,28-Mar-2000,,INF789F01JL6INF789F01JM4
UTI Asset Mgmt. Co. Ltd.,120716,UTI Nifty 50 Index Fund,Open Ended,Other Scheme - Index Funds,UTI Nifty 50 Index Fund - Growth Option- Direct,5000.00,28-Mar-2000,,INF789F01XA0
UTI Asset Mgmt. Co. Ltd.,120717,UTI Nifty 50 Index Fund,Open Ended,Other Scheme - Index Funds,UTI Nifty 50 Index Fund - Direct Plan - IDCW,5000.00,28-Mar-2000,,INF789F01WY2INF789F01WZ9
Kotak Mahindra Asset Management Company Limited.,100828,Kotak Liquid Fund,Open Ended,Debt Scheme - Liquid Fund,Kotak Liquid-Regular (Dividend),5000,04-Oct-2000,05-Oct-2000,INF174K01FY2
Kotak Mahindra Asset Management Company Limited.,100829,Kotak Liquid Fund,Open Ended,Debt Scheme - Liquid Fund,Kotak Liquid-Regular (Growth),5000,04-Oct-2000,05-Oct-2000,INF174K01NM1
Kotak Mahindra Asset Management Company Limited.,100830,Kotak Liquid Fund,Open Ended,Debt Scheme - Liquid Fund,Kotak Liquid-Institutional Plan  (Growth),5000,04-Oct-2000,05-Oct-2000,INF174K01FZ9
Kotak Mahindra Asset Management Company Limited.,100832,Kotak Liquid Fund,Open Ended,Debt Scheme - Liquid Fund,Kotak Liquid-Institutional Plan (Weekly Dividend),5000,04-Oct-2000,05-Oct-2000,INF174K01GB8
Kotak Mahindra Asset Management Company Limited.,100833,Kotak Liquid Fund,Open Ended,Debt Scheme - Liquid Fund,Kotak Liquid Fund Regular Plan Daily Reinvestment of Income Distribution cum capital withdrawal option,5000,04-Oct-2000,05-Oct-2000,INF174K01NL3
Kotak Mahindra Asset Management Company Limited.,100834,Kotak Liquid Fund,Open Ended,Debt Scheme - Liquid Fund,Kotak Liquid Fund Regular Plan Weekly Reinvestment of Income Distribution cum capital withdrawal option Dividend,5000,04-Oct-2000,05-Oct-2000,INF174K01NK5
Kotak Mahindra Asset Management Company Limited.,100835,Kotak Liquid Fund,Open Ended,Debt Scheme - Liquid Fund,Kotak Liquid Fund Regular Plan Growth,5000,04-Oct-2000,05-Oct-2000,INF174K01NI9
Kotak Mahindra Asset Management Company Limited.,119764,Kotak Liquid Fund,Open Ended,Debt Scheme - Liquid Fund,Kotak Liquid Fund - Daily Reinvestment of Income Distribution cum capital withdrawal option - Direct,5000,04-Oct-2000,05-Oct-2000,INF174K01NH1
Kotak Mahindra Asset Management Company Limited.,119766,Kotak Liquid Fund,Open Ended,Debt Scheme - Liquid Fund,Kotak Liquid Fund - Growth - Direct,5000,04-Oct-2000,05-Oct-2000,INF174K01NE8
Nippon Life India Asset Management Limited,100837,Nippon India Liquid Fund,Open Ended,Debt Scheme - Liquid Fund,Nippon India Liquid Fund - Retail Option - Growth Plan,100 for TP & 5000 for CP,16-Mar-1998,16-Mar-1998,INF204K01UL3
Nippon Life India Asset Management Limited,100838,Nippon India Liquid Fund,Open Ended,Debt Scheme - Liquid Fund,NIPPON INDIA LIQUID FUND - RETAIL Plan - WEEKLY IDCW OPTION,100 for TP & 5000 for CP,16-Mar-1998,16-Mar-1998,INF204K01UK5
Nippon Life India Asset Management Limited,100839,Nippon India Liquid Fund,Open Ended,Debt Scheme - Liquid Fund,Nippon India Liquid Fund-Treasury Plan-Retail Option - Growth Option Bonus Plan,100 for TP & 5000 for CP,16-Mar-1998,16-Mar-1998,
Nippon Life India Asset Management Limited,100840,Nippon India Liquid Fund,Open Ended,Debt Scheme - Liquid Fund,Nippon India Liquid Fund-Treasury Plan-Bonus Plan (Growth),100 for TP & 5000 for CP,16-Mar-1998,16-Mar-1998,
Nippon Life India Asset Management Limited,100841,Nippon India Liquid Fund,Open Ended,Debt Scheme - Liquid Fund,Nippon India Liquid Fund-Treasury Plan-Growth Option - Growth Plan,100 for TP & 5000 for CP,16-Mar-1998,16-Mar-1998,
Nippon Life India Asset Management Limited,100842,Nippon India Liquid Fund,Open Ended,Debt Scheme - Liquid Fund,NIPPON INDIA LIQUID FUND - RETAIL Plan - DAILY IDCW OPTION,100 for TP & 5000 for CP,16-Mar-1998,16-Mar-1998,INF204K01UJ7
Nippon Life India Asset Management Limited,118700,Nippon India Liquid Fund,Open Ended,Debt Scheme - Liquid Fund,NIPPON INDIA LIQUID FUND - DIRECT Plan - WEEKLY IDCW OPTION,100 for TP & 5000 for CP,16-Mar-1998,16-Mar-1998,INF204K01ZM0
Nippon Life India Asset Management Limited,118701,Nippon India Liquid Fund,Open Ended,Debt Scheme - Liquid Fund,Nippon India Liquid Fund - Direct Plan Growth Plan - Growth Option,100 for TP & 5000 for CP,16-Mar-1998,16-Mar-1998,INF204K01ZH0
Nippon Life India Asset Management Limited,112340,Nippon India Liquid Fund,Open Ended,Debt Scheme - Liquid Fund,NIPPON INDIA LIQUID FUND - QUARTERLY IDCW OPTION,100 for TP & 5000 for CP,16-Mar-1998,16-Mar-1998,INF204K01UQ2INF204K01UR0
Nippon Life India Asset Management Limited,114251,Nippon India Liquid Fund,Open Ended,Debt Scheme - Liquid Fund,Reliance Liquid Fund-Cash Plan-Monthly Dividend Plan,100 for TP & 5000 for CP,16-Mar-1998,16-Mar-1998,
Nippon Life India Asset Management Limited,114252,Nippon India Liquid Fund,Open Ended,Debt Scheme - Liquid Fund,Reliance Liquid Fund-Cash Plan-Quarterly Dividend Plan,100 for TP & 5000 for CP,16-Mar-1998,16-Mar-1998,
Nippon Life India Asset Management Limited,118695,Nippon India Liquid Fund,Open Ended,Debt Scheme - Liquid Fund,NIPPON INDIA LIQUID FUND - DIRECT Plan - DAILY IDCW OPTION,100 for TP & 5000 for CP,16-Mar-1998,16-Mar-1998,INF204K01ZG2
Nippon Life India Asset Management Limited,118696,Nippon India Liquid Fund,Open Ended,Debt Scheme - Liquid Fund,NIPPON INDIA LIQUID FUND - DIRECT Plan - MONTHLY IDCW OPTION,100 for TP & 5000 for CP,16-Mar-1998,16-Mar-1998,INF204K01ZI8INF204K01ZJ6
Nippon Life India Asset Management Limited,118698,Nippon India Liquid Fund,Open Ended,Debt Scheme - Liquid Fund,NIPPON INDIA LIQUID FUND - DIRECT Plan - QUARTERLY IDCW OPTION,100 for TP & 5000 for CP,16-Mar-1998,16-Mar-1998,INF204K01ZK4INF204K01ZL2
Nippon Life India Asset Management Limited,100850,Nippon India Liquid Fund,Open Ended,Debt Scheme - Liquid Fund,Reliance Liquid Fund-Super Cash Plan-Growth Option,100 for TP & 5000 for CP,16-Mar-1998,16-Mar-1998,
Nippon Life India Asset Management Limited,100851,Nippon India Liquid Fund,Open Ended,Debt Scheme - Liquid Fund,Nippon India Liquid Fund -Growth Plan,100 for TP & 5000 for CP,16-Mar-1998,16-Mar-1998,INF204K01UN9
Nippon Life India Asset Management Limited,100852,Nippon India Liquid Fund,Open Ended,Debt Scheme - Liquid Fund,NIPPON INDIA LIQUID FUND - DAILY IDCW OPTION,100 for TP & 5000 for CP,16-Mar-1998,16-Mar-1998,INF204K01UM1
Nippon Life India Asset Management Limited,100853,Nippon India Liquid Fund,Open Ended,Debt Scheme - Liquid Fund,NIPPON INDIA LIQUID FUND - WEEKLY IDCW OPTION,100 for TP & 5000 for CP,16-Mar-1998,16-Mar-1998,INF204K01US8
Nippon Life India Asset Management Limited,100854,Nippon India Liquid Fund,Open Ended,Debt Scheme - Liquid Fund,Nippon India Liquid Fund-Institutional Plan-Bonus,100 for TP & 5000 for CP,16-Mar-1998,16-Mar-1998,
Nippon Life India Asset Management Limited,100855,Nippon India Liquid Fund,Open Ended,Debt Scheme - Liquid Fund,NIPPON INDIA LIQUID FUND - MONTHLY IDCW OPTION,100 for TP & 5000 for CP,16-Mar-1998,16-Mar-1998,INF204K01UO7INF204K01UP4
Nippon Life India Asset Management Limited,100843,Nippon India Liquid Fund,Open Ended,Debt Scheme - Liquid Fund,NIPPON INDIA LIQUID FUND - RETAIL plan - MONTHLY IDCW OPTION,100 for TP & 5000 for CP,16-Mar-1998,16-Mar-1998,INF204K01UT6INF204K01UU4
Nippon Life India Asset Management Limited,100844,Nippon India Liquid Fund,Open Ended,Debt Scheme - Liquid Fund,NIPPON INDIA LIQUID FUND - RETAIL Plan - QUARTERLY IDCW OPTION,100 for TP & 5000 for CP,16-Mar-1998,16-Mar-1998,INF204K01UV2INF204K01UW0
Nippon Life India Asset Management Limited,100845,Nippon India Liquid Fund,Open Ended,Debt Scheme - Liquid Fund,Reliance Liquid Fund-Cash Plan-Growth Plan,100 for TP & 5000 for CP,16-Mar-1998,16-Mar-1998,
Nippon Life India Asset Management Limited,100846,Nippon India Liquid Fund,Open Ended,Debt Scheme - Liquid Fund,Reliance Liquid Fund-Cash Plan-Weekly Dividend,100 for TP & 5000 for CP,16-Mar-1998,16-Mar-1998,
Nippon Life India Asset Management Limited,100848,Nippon India Liquid Fund,Open Ended,Debt Scheme - Liquid Fund,Reliance Liquid Fund-Cash Plan-Weekly Dividend Reinvestment Option,100 for TP & 5000 for CP,16-Mar-1998,16-Mar-1998,
Nippon Life India Asset Management Limited,100849,Nippon India Liquid Fund,Open Ended,Debt Scheme - Liquid Fund,Reliance Liquid Fund-Cash Plan-Daily Dividend Reinvestment Option,100 for TP & 5000 for CP,16-Mar-1998,16-Mar-1998,
Nippon Life India Asset Management Limited,100856,Nippon India Corporate Bond Fund,Open Ended,Debt Scheme - Corporate Bond Fund,Nippon India Corporate Bond Fund - Growth Plan - Growth Option,Rs. 1000 & Rs. 5000,16-Aug-2000,14-Sep-2000,INF204K01EF9
Nippon Life India Asset Management Limited,100857,Nippon India Corporate Bond Fund,Open Ended,Debt Scheme - Corporate Bond Fund,NIPPON INDIA CORPORATE BOND FUND - MONTHLY IDCW Option,Rs. 1000 & Rs. 5000,16-Aug-2000,14-Sep-2000,INF204K01EJ1INF204K01EK9
Nippon Life India Asset Management Limited,100858,Nippon India Corporate Bond Fund,Open Ended,Debt Scheme - Corporate Bond Fund,NIPPON INDIA CORPORATE BOND FUND - QUARTERLY IDCW Option,Rs. 1000 & Rs. 5000,16-Aug-2000,14-Sep-2000,INF204K01EL7INF204K01EM5
Nippon Life India Asset Management Limited,100859,Nippon India Corporate Bond Fund,Open Ended,Debt Scheme - Corporate Bond Fund,Nippon India Corporate Bond Fund - Growth Plan - Bonus Option,Rs. 1000 & Rs. 5000,16-Aug-2000,14-Sep-2000,INF204KA12N8
Nippon Life India Asset Management Limited,109472,Nippon India Corporate Bond Fund,Open Ended,Debt Scheme - Corporate Bond Fund,NIPPON INDIA CORPORATE BOND FUND - DAILY IDCW Option,Rs. 1000 & Rs. 5000,16-Aug-2000,14-Sep-2000,INF204K01EG7
Nippon Life India Asset Management Limited,109473,Nippon India Corporate Bond Fund,Open Ended,Debt Scheme - Corporate Bond Fund,NIPPON INDIA CORPORATE BOND FUND - WEEKLY IDCW Option,Rs. 1000 & Rs. 5000,16-Aug-2000,14-Sep-2000,INF204K01EH5INF204K01EI3
Nippon Life India Asset Management Limited,125266,Nippon India Corporate Bond Fund,Open Ended,Debt Scheme - Corporate Bond Fund,NIPPON INDIA CORPORATE BOND FUND - DIRECT Plan - IDCW Option,Rs. 1000 & Rs. 5000,16-Aug-2000,14-Sep-2000,INF204KA1EO9INF204KA1EP6
Nippon Life India Asset Management Limited,125267,Nippon India Corporate Bond Fund,Open Ended,Debt Scheme - Corporate Bond Fund,NIPPON INDIA CORPORATE BOND FUND - IDCW Option,Rs. 1000 & Rs. 5000,16-Aug-2000,14-Sep-2000,INF204KA1EM3INF204KA1EN1
Nippon Life India Asset Management Limited,118807,Nippon India Corporate Bond Fund,Open Ended,Debt Scheme - Corporate Bond Fund,Nippon India Corporate Bond Fund - Direct Plan Growth Plan - Bonus,Rs. 1000 & Rs. 5000,16-Aug-2000,14-Sep-2000,INF204K01D63
Nippon Life India Asset Management Limited,118808,Nippon India Corporate Bond Fund,Open Ended,Debt Scheme - Corporate Bond Fund,NIPPON INDIA CORPORATE BOND FUND - DIRECT Plan - DAILY IDCW Option,Rs. 1000 & Rs. 5000,16-Aug-2000,14-Sep-2000,INF204K01C23
Nippon Life India Asset Management Limited,118809,Nippon India Corporate Bond Fund,Open Ended,Debt Scheme - Corporate Bond Fund,NIPPON INDIA CORPORATE BOND FUND - DIRECT Plan - MONTHLY IDCW Option,Rs. 1000 & Rs. 5000,16-Aug-2000,14-Sep-2000,INF204K01C56INF204K01C64
Nippon Life India Asset Management Limited,118811,Nippon India Corporate Bond Fund,Open Ended,Debt Scheme - Corporate Bond Fund,NIPPON INDIA CORPORATE BOND FUND - DIRECT Plan - QUARTERLY IDCW Option,Rs. 1000 & Rs. 5000,16-Aug-2000,14-Sep-2000,INF204K01C72INF204K01C80
Nippon Life India Asset Management Limited,118812,Nippon India Corporate Bond Fund,Open Ended,Debt Scheme - Corporate Bond Fund,NIPPON INDIA CORPORATE BOND FUND - DIRECT Plan - WEEKLY IDCW Option,Rs. 1000 & Rs. 5000,16-Aug-2000,14-Sep-2000,INF204K01C31INF204K01C49
Nippon Life India Asset Management Limited,118814,Nippon India Corporate Bond Fund,Open Ended,Debt Scheme - Corporate Bond Fund,Nippon India Corporate Bond Fund - Direct Plan Growth Plan - Growth Option,Rs. 1000 & Rs. 5000,16-Aug-2000,14-Sep-2000,INF204K01C15
LIC Mutual Fund Asset Management Limited,100864,LIC MF ELSS Tax Saver,Open Ended,Equity Scheme - ELSS,LIC MF ELSS Tax Saver-Regular Plan-IDCW,Rs. 500/-,11-Jan-1997,11-Jan-1997,INF767K01931INF767K01949
LIC Mutual Fund Asset Management Limited,100865,LIC MF ELSS Tax Saver,Open Ended,Equity Scheme - ELSS,LIC MF ELSS Tax Saver-Regular Plan-Growth,Rs. 500/-,11-Jan-1997,11-Jan-1997,INF767K01956
LIC Mutual Fund Asset Management Limited,115209,LIC MF ELSS Tax Saver,Open Ended,Equity Scheme - ELSS,LIC  NOMURA MF Taxplan,Rs. 500/-,11-Jan-1997,11-Jan-1997,
LIC Mutual Fund Asset Management Limited,120269,LIC MF ELSS Tax Saver,Open Ended,Equity Scheme - ELSS,LIC MF ELSS Tax Saver-Direct Plan-IDCW,Rs. 500/-,11-Jan-1997,11-Jan-1997,INF767K01EL3INF767K01EN9
LIC Mutual Fund Asset Management Limited,120270,LIC MF ELSS Tax Saver,Open Ended,Equity Scheme - ELSS,LIC MF ELSS Tax Saver-Direct Plan-Growth,Rs. 500/-,11-Jan-1997,11-Jan-1997,INF767K01EM1
HDFC Asset Management Company Limited,100868,HDFC Liquid Fund,Open Ended,Debt Scheme - Liquid Fund,HDFC Liquid Fund - Growth Plan,REFER SID,17-Oct-2000,,INF179KB1HK0
HDFC Asset Management Company Limited,100869,HDFC Liquid Fund,Open Ended,Debt Scheme - Liquid Fund,HDFC Liquid Fund-DIVIDEND,REFER SID,17-Oct-2000,,
HDFC Asset Management Company Limited,100870,HDFC Liquid Fund,Open Ended,Debt Scheme - Liquid Fund,HDFC Liquid Fund-PREMIUM- Dividend,REFER SID,17-Oct-2000,,
HDFC Asset Management Company Limited,100871,HDFC Liquid Fund,Open Ended,Debt Scheme - Liquid Fund,HDFC Liquid Fund-PREMIUM PLUS- Dividend,REFER SID,17-Oct-2000,,
HDFC Asset Management Company Limited,100872,HDFC Liquid Fund,Open Ended,Debt Scheme - Liquid Fund,HDFC Liquid Fund-PREMIUM PLUS- Growth,REFER SID,17-Oct-2000,,INF179K01KQ7
HDFC Asset Management Company Limited,100873,HDFC Liquid Fund,Open Ended,Debt Scheme - Liquid Fund,HDFC Liquid Fund-PREMIUM- Growth,REFER SID,17-Oct-2000,,INF179KB1HN4
HDFC Asset Management Company Limited,119091,HDFC Liquid Fund,Open Ended,Debt Scheme - Liquid Fund,HDFC Liquid Fund - Growth Option - Direct Plan,REFER SID,17-Oct-2000,,INF179KB1HP9
HDFC Asset Management Company Limited,100880,HDFC Liquid Fund,Open Ended,Debt Scheme - Liquid Fund,HDFC Liquid Fund-Premium Plus Plan - Dividend-Daily,REFER SID,17-Oct-2000,,
HDFC Asset Management Company Limited,100881,HDFC Liquid Fund,Open Ended,Debt Scheme - Liquid Fund,HDFC Liquid Fund-Premium Plus Plan - Dividend-Weekly,REFER SID,17-Oct-2000,,INF179K01KS3
HDFC Asset Management Company Limited,100882,HDFC Liquid Fund,Open Ended,Debt Scheme - Liquid Fund,HDFC Liquid Fund-Premium Plus Plan - Dividend-Monthly,REFER SID,17-Oct-2000,,
HDFC Asset Management Company Limited,119088,HDFC Liquid Fund,Open Ended,Debt Scheme - Liquid Fund,HDFC Liquid Fund - IDCW Weekly - Direct Plan,REFER SID,17-Oct-2000,,
HDFC Asset Management Company Limited,119089,HDFC Liquid Fund,Open Ended,Debt Scheme - Liquid Fund,HDFC Liquid Fund - IDCW Daily - Direct Plan,REFER SID,17-Oct-2000,,INF179KB1HV7
HDFC Asset Management Company Limited,119090,HDFC Liquid Fund,Open Ended,Debt Scheme - Liquid Fund,HDFC Liquid Fund - IDCW Monthly - Direct Plan,REFER SID,17-Oct-2000,,INF179KB1HO2INF179KB1HQ7
HDFC Asset Management Company Limited,100874,HDFC Liquid Fund,Open Ended,Debt Scheme - Liquid Fund,HDFC Liquid Fund - IDCW Plan Weekly,REFER SID,17-Oct-2000,,INF179KB1ID3
HDFC Asset Management Company Limited,100875,HDFC Liquid Fund,Open Ended,Debt Scheme - Liquid Fund,HDFC Liquid Fund - IDCW Daily,REFER SID,17-Oct-2000,,INF179KB1IC5
HDFC Asset Management Company Limited,100876,HDFC Liquid Fund,Open Ended,Debt Scheme - Liquid Fund,HDFC Liquid Fund - IDCW Monthly,REFER SID,17-Oct-2000,,INF179KB1HM6INF179KB1HL8
HDFC Asset Management Company Limited,100877,HDFC Liquid Fund,Open Ended,Debt Scheme - Liquid Fund,HDFC Liquid Fund-Premium Plan - Dividend-Daily,REFER SID,17-Oct-2000,,INF179K01KN4
HDFC Asset Management Company Limited,100878,HDFC Liquid Fund,Open Ended,Debt Scheme - Liquid Fund,HDFC Liquid Fund-Premium Plan - Dividend-Weekly,REFER SID,17-Oct-2000,,INF179K01KP9
HDFC Asset Management Company Limited,100879,HDFC Liquid Fund,Open Ended,Debt Scheme - Liquid Fund,HDFC Liquid Fund-Premium Plan - Dividend-Monthly,REFER SID,17-Oct-2000,,
SBI Funds Management Limited,100922,Z-REDEEMED SCHEME-SBI MMIS 97,Close Ended,Income,SBI MMIS 97,1000,01-Jan-1993,01-Jan-1993,
SBI Funds Management Limited,100930,Z-REDEEMED-SBI MTP 94,Close Ended,ELSS,SBI MTP 94,1000,01-Jan-1994,01-Jan-1994,
SBI Funds Management Limited,100934,Z-OLD-SBI MELS 95,Close Ended,ELSS,SBI MELS 95,1000,01-Jan-1990,01-Jan-1990,
SBI Funds Management Limited,100935,Z-OLD-MELS 96,Close Ended,ELSS,SBI MELS 96,1000,01-Jan-1990,01-Jan-1990,
SBI Funds Management Limited,100936,Z-OLD-SBI MGF 99,Open Ended,Growth,SBI MGF 99,1000,01-Jan-1990,01-Jan-1990,
DSP Asset Managers Private Limited,100942,DSP Liquidity Fund - Regular Plan,Open Ended,Debt Scheme - Liquid Fund,DSP Merril Lynch Liquidity Fund - Regular Plan-Daily Dividend,Discontinued Plan,06-Mar-1998,09-Mar-1998,
Franklin Templeton Asset Management (India) Private Limited,100948,Franklin India Debt Hybrid Fund,Open Ended,Hybrid Scheme - Conservative Hybrid Fund,Franklin India Debt Hybrid Fund - Growth,10000,25-Sep-2000,,INF090I01EA7
Franklin Templeton Asset Management (India) Private Limited,100949,Franklin India Debt Hybrid Fund,Open Ended,Hybrid Scheme - Conservative Hybrid Fund,Franklin India Debt Hybrid Fund - Plan A - Monthly - IDCW,10000,25-Sep-2000,,INF090I01EB5INF090I01EC3
Franklin Templeton Asset Management (India) Private Limited,100950,Franklin India Debt Hybrid Fund,Open Ended,Hybrid Scheme - Conservative Hybrid Fund,Franklin India Debt Hybrid Fund - Plan A - Quarterly - IDCW,10000,25-Sep-2000,,INF090I01ED1INF090I01EE9
Franklin Templeton Asset Management (India) Private Limited,118574,Franklin India Debt Hybrid Fund,Open Ended,Hybrid Scheme - Conservative Hybrid Fund,Franklin India Debt Hybrid Fund - Direct - GROWTH,10000,25-Sep-2000,,INF090I01GF1
Franklin Templeton Asset Management (India) Private Limited,118575,Franklin India Debt Hybrid Fund,Open Ended,Hybrid Scheme - Conservative Hybrid Fund,Franklin India Debt Hybrid Fund - Plan A - Direct - Monthly - IDCW,10000,25-Sep-2000,,INF090I01GG9INF090I01GH7
Franklin Templeton Asset Management (India) Private Limited,118576,Franklin India Debt Hybrid Fund,Open Ended,Hybrid Scheme - Conservative Hybrid Fund,Franklin India Debt Hybrid Fund - Plan A - Direct - Quarterly - IDCW,10000,25-Sep-2000,,INF090I01GI5INF090I01GJ3
Franklin Templeton Asset Management (India) Private Limited,148299,Franklin India Debt Hybrid Fund,Open Ended,Hybrid Scheme - Conservative Hybrid Fund,Franklin India Debt Hybrid Fund - Segregated Portfolio 1 (10.25% Yes Bank Ltd CO 05Mar20) - Monthly Dividend Plan,10000,25-Sep-2000,,INF090I01WG6
Franklin Templeton Asset Management (India) Private Limited,148300,Franklin India Debt Hybrid Fund,Open Ended,Hybrid Scheme - Conservative Hybrid Fund,Franklin India Debt Hybrid Fund - Segregated Portfolio 1 (10.25% Yes Bank Ltd CO 05Mar20) - Quarterly Dividend Plan,10000,25-Sep-2000,,INF090I01WF8
Franklin Templeton Asset Management (India) Private Limited,148301,Franklin India Debt Hybrid Fund,Open Ended,Hybrid Scheme - Conservative Hybrid Fund,Franklin India Debt Hybrid Fund - Segregated Portfolio 1 (10.25% Yes Bank Ltd CO05Mar20) - Direct Monthly Dividend Plan,10000,25-Sep-2000,,INF090I01WJ0
Franklin Templeton Asset Management (India) Private Limited,148302,Franklin India Debt Hybrid Fund,Open Ended,Hybrid Scheme - Conservative Hybrid Fund,Franklin India Debt Hybrid Fund - Segregated Portfolio 1 (10.25% Yes Bank ltd CO 05Mar20) - Direct Growth Plan,10000,25-Sep-2000,,INF090I01WH4
Franklin Templeton Asset Management (India) Private Limited,148297,Franklin India Debt Hybrid Fund,Open Ended,Hybrid Scheme - Conservative Hybrid Fund,Franklin India Debt Hybrid Fund - Segregated Portfolio 1 (10.25% Yes bank Ltd CO 05Mar20) - Growth Plan,10000,25-Sep-2000,,INF090I01WE1
Franklin Templeton Asset Management (India) Private Limited,148298,Franklin India Debt Hybrid Fund,Open Ended,Hybrid Scheme - Conservative Hybrid Fund,Franklin India Debt Hybrid Fund - Segregated Portfolio 1 (10.25% Yes Bank Ltd CO 05Mar20) - Direct Quarterly Dividend Plan,10000,25-Sep-2000,,INF090I01WI2
ICICI Prudential Asset Management Company Limited,100952,ICICI Prudential MIP,Open Ended,Income,ICICI Prudential MIP - Growth,3,28-Sep-2000,,INF109K01555
ICICI Prudential Asset Management Company Limited,100953,ICICI Prudential MIP,Open Ended,Income,ICICI Prudential MIP - Dividend Monthly,3,28-Sep-2000,,INF109K01FH3INF109K01522
ICICI Prudential Asset Management Company Limited,100954,ICICI Prudential MIP,Open Ended,Income,ICICI Prudential MIP - Dividend Quarterly,3,28-Sep-2000,,INF109K01FI1INF109K01530
ICICI Prudential Asset Management Company Limited,100955,ICICI Prudential MIP,Open Ended,Income,ICICI Prudential MIP - Dividend Half Yearly,3,28-Sep-2000,,INF109K01FG5INF109K01548
ICICI Prudential Asset Management Company Limited,120666,ICICI Prudential MIP,Open Ended,Income,ICICI Prudential MIP - Direct Plan -  Dividend Quarterly,3,28-Sep-2000,,INF109K01U19INF109K01U27
ICICI Prudential Asset Management Company Limited,120667,ICICI Prudential MIP,Open Ended,Income,ICICI Prudential MIP - Direct Plan -  Dividend Monthly,3,28-Sep-2000,,INF109K01T95INF109K01U01
ICICI Prudential Asset Management Company Limited,120668,ICICI Prudential MIP,Open Ended,Income,ICICI Prudential MIP - Direct Plan -  Growth,3,28-Sep-2000,,INF109K01U35
ICICI Prudential Asset Management Company Limited,120669,ICICI Prudential MIP,Open Ended,Income,ICICI Prudential MIP - Direct Plan -  Dividend Half Yearly,3,28-Sep-2000,,INF109K01T79INF109K01T87
ICICI Prudential Asset Management Company Limited,130940,ICICI Prudential MIP,Open Ended,Income,ICICI Prudential MIP - Direct Plan Bonus,3,28-Sep-2000,,INF109KA1H44
HDFC Asset Management Company Limited,100997,HDFC Long Term Advantage Plan,Open Ended,Equity Scheme - ELSS,HDFC Long Term Advantage Plan - IDCW Plan,For new & existing investors  Rs.500 and in multip,26-Dec-2000,27-Dec-2000,INF179K01970INF179K01988
HDFC Asset Management Company Limited,100998,HDFC Long Term Advantage Plan,Open Ended,Equity Scheme - ELSS,HDFC Long Term Advantage Plan - Growth Plan,For new & existing investors  Rs.500 and in multip,26-Dec-2000,27-Dec-2000,INF179K01996
HDFC Asset Management Company Limited,118928,HDFC Long Term Advantage Plan,Open Ended,Equity Scheme - ELSS,HDFC Long Term Advantage Plan - IDCW Option - Direct Plan,For new & existing investors  Rs.500 and in multip,26-Dec-2000,27-Dec-2000,INF179K01WV2INF179K01WW0
HDFC Asset Management Company Limited,118929,HDFC Long Term Advantage Plan,Open Ended,Equity Scheme - ELSS,HDFC Long Term Advantage Plan - Growth Option - Direct Plan,For new & existing investors  Rs.500 and in multip,26-Dec-2000,27-Dec-2000,INF179K01WX8
Franklin Templeton Asset Management (India) Private Limited,101009,Franklin India Strategic Investment Plan,Open Ended,Income,Franklin India Strategic Investment Plan-Growth - Long,1,21-Feb-2000,,
Franklin Templeton Asset Management (India) Private Limited,101010,Franklin India Strategic Investment Plan,Open Ended,Income,Franklin India Strategic Investment Plan-Growth - Medium,1,21-Feb-2000,,
Franklin Templeton Asset Management (India) Private Limited,101011,Franklin India Strategic Investment Plan,Open Ended,Income,Franklin India Strategic Investment Plan-Dividend - Short,1,21-Feb-2000,,
Franklin Templeton Asset Management (India) Private Limited,101012,Franklin India Strategic Investment Plan,Open Ended,Income,Franklin India Strategic Investment Plan-Growth - Short,1,21-Feb-2000,,
Franklin Templeton Asset Management (India) Private Limited,101013,Franklin India Strategic Investment Plan,Open Ended,Income,Franklin India Strategic Investment Plan-Dividend - Medium,1,21-Feb-2000,,
Franklin Templeton Asset Management (India) Private Limited,101014,Franklin India Strategic Investment Plan,Open Ended,Income,Franklin India Strategic Investment Plan-Series V A Short Term - 14/3/02,1,21-Feb-2000,,
Franklin Templeton Asset Management (India) Private Limited,101027,Franklin India Strategic Investment Plan,Open Ended,Income,Franklin India Strategic Investment Plan-Series VIII A Short Term - 24/9/02,1,21-Feb-2000,,
Franklin Templeton Asset Management (India) Private Limited,101028,Franklin India Strategic Investment Plan,Open Ended,Income,Franklin India Strategic Investment Plan-Series VIII A Medium Term - 2/4/03,1,21-Feb-2000,,
Franklin Templeton Asset Management (India) Private Limited,101029,Franklin India Strategic Investment Plan,Open Ended,Income,Franklin India Strategic Investment Plan-Series XI A Short Term - 23/9/02,1,21-Feb-2000,,
Franklin Templeton Asset Management (India) Private Limited,101030,Franklin India Strategic Investment Plan,Open Ended,Income,Franklin India Strategic Investment Plan-Series I A Basic (D) - 4/04/04,1,21-Feb-2000,,
Franklin Templeton Asset Management (India) Private Limited,101031,Franklin India Strategic Investment Plan,Open Ended,Income,Franklin India Strategic Investment Plan-Series I A Long Term (G) - 25/4/05,1,21-Feb-2000,,
Franklin Templeton Asset Management (India) Private Limited,101032,Franklin India Strategic Investment Plan,Open Ended,Income,Franklin India Strategic Investment Plan-A Medium Term - 19.11.04,1,21-Feb-2000,,
Franklin Templeton Asset Management (India) Private Limited,101021,Franklin India Strategic Investment Plan,Open Ended,Income,Franklin India Strategic Investment Plan-Growth - Long Term (A),1,21-Feb-2000,,
Franklin Templeton Asset Management (India) Private Limited,101022,Franklin India Strategic Investment Plan,Open Ended,Income,Franklin India Strategic Investment Plan-Growth - Long Term (C),1,21-Feb-2000,,
Franklin Templeton Asset Management (India) Private Limited,101023,Franklin India Strategic Investment Plan,Open Ended,Income,Franklin India Strategic Investment Plan-Growth - Long Term (C),1,21-Feb-2000,,
Franklin Templeton Asset Management (India) Private Limited,101024,Franklin India Strategic Investment Plan,Open Ended,Income,Franklin India Strategic Investment Plan-Series V A Short Term 14/09/02,1,21-Feb-2000,,
Franklin Templeton Asset Management (India) Private Limited,101025,Franklin India Strategic Investment Plan,Open Ended,Income,Franklin India Strategic Investment Plan-Series VI A Short Term - 24/4/02,1,21-Feb-2000,,
Franklin Templeton Asset Management (India) Private Limited,101026,Franklin India Strategic Investment Plan,Open Ended,Income,Franklin India Strategic Investment Plan-Strategic Investment Plan - Series V A Short Term - 14/9/02,1,21-Feb-2000,,
Franklin Templeton Asset Management (India) Private Limited,101015,Franklin India Strategic Investment Plan,Open Ended,Income,Franklin India Strategic Investment Plan-Series V A Short Term - 14/9/02,1,21-Feb-2000,,
Franklin Templeton Asset Management (India) Private Limited,101016,Franklin India Strategic Investment Plan,Open Ended,Income,Franklin India Strategic Investment Plan-Series I A Short Term - 23/11/01,1,21-Feb-2000,,
Franklin Templeton Asset Management (India) Private Limited,101017,Franklin India Strategic Investment Plan,Open Ended,Income,Franklin India Strategic Investment Plan-Series II A Short Term - 27/11/01,1,21-Feb-2000,,
Franklin Templeton Asset Management (India) Private Limited,101018,Franklin India Strategic Investment Plan,Open Ended,Income,Franklin India Strategic Investment Plan-Series II A Short Term - 4/1/02,1,21-Feb-2000,,
Franklin Templeton Asset Management (India) Private Limited,101019,Franklin India Strategic Investment Plan,Open Ended,Income,Franklin India Strategic Investment Plan-Series III A Short Term - 26/12/01,1,21-Feb-2000,,
Franklin Templeton Asset Management (India) Private Limited,101020,Franklin India Strategic Investment Plan,Open Ended,Income,Franklin India Strategic Investment Plan-Dividend - Medium Term (D),1,21-Feb-2000,,
Franklin Templeton Asset Management (India) Private Limited,101062,Franklin India Maxima Fund,Open Ended,Income,Franklin India Maxima Fund-Growth Plan,1,31-Mar-1999,,
Sahara Asset Management Company Private Limited,100337,SaharaTax Gain,Open Ended,ELSS,SaharaTax Gain-Dividend,500,31-Dec-1997,,INF515L01189INF515L01197
Sahara Asset Management Company Private Limited,100338,SaharaTax Gain,Open Ended,ELSS,SaharaTax Gain-Growth,500,31-Dec-1997,,INF515L01205
Sahara Asset Management Company Private Limited,120290,SaharaTax Gain,Open Ended,ELSS,SaharaTax Gain-Dividend- Direct,500,31-Dec-1997,,INF515L01783INF515L01791
Sahara Asset Management Company Private Limited,120291,SaharaTax Gain,Open Ended,ELSS,SaharaTax Gain-Growth- direct,500,31-Dec-1997,,INF515L01809
HDFC Asset Management Company Limited,100899,HDFC Childrens Gift Fund,Open Ended,Solution Oriented Scheme - Children s Fund,HDFC Children Gift Fund-Savings,REFER SID,25-Jan-2001,,
HDFC Asset Management Company Limited,100900,HDFC Childrens Gift Fund,Open Ended,Solution Oriented Scheme - Children s Fund,HDFC Childrens Gift Fund - Growth Plan,REFER SID,25-Jan-2001,,
HDFC Asset Management Company Limited,119066,HDFC Childrens Gift Fund,Open Ended,Solution Oriented Scheme - Children s Fund,HDFC Childrens Gift Fund - Direct Plan,REFER SID,25-Jan-2001,,
HDFC Asset Management Company Limited,119067,HDFC Childrens Gift Fund,Open Ended,Solution Oriented Scheme - Children s Fund,HDFC Childrens Gift Fund Savings Plan-Direct Plan,REFER SID,25-Jan-2001,,
quant Money Managers Limited,101065,Quant Mid Cap Fund,Open Ended,Equity Scheme - Mid Cap Fund,quant Mid Cap Fund - Growth Option - Regular Plan,Rs. 5000/-,12-Feb-2001,26-Feb-2001,INF966L01176
quant Money Managers Limited,101066,Quant Mid Cap Fund,Open Ended,Equity Scheme - Mid Cap Fund,quant Mid Cap Fund - IDCW Option - Regular Plan,Rs. 5000/-,12-Feb-2001,26-Feb-2001,INF966L01150INF966L01168
quant Money Managers Limited,120840,Quant Mid Cap Fund,Open Ended,Equity Scheme - Mid Cap Fund,quant Mid Cap Fund - IDCW Option - Direct Plan,Rs. 5000/-,12-Feb-2001,26-Feb-2001,INF966L01861INF966L01879
quant Money Managers Limited,120841,Quant Mid Cap Fund,Open Ended,Equity Scheme - Mid Cap Fund,quant Mid Cap Fund - Growth Option - Direct Plan,Rs. 5000/-,12-Feb-2001,26-Feb-2001,INF966L01887
quant Money Managers Limited,101069,Quant Absolute Fund,Open Ended,Hybrid Scheme - Aggressive Hybrid Fund,quant Absolute Fund-IDCW Option - Regular Plan,Rs. 5000/-,19-Feb-2001,20-Mar-2001,INF966L01242INF966L01259
quant Money Managers Limited,101070,Quant Absolute Fund,Open Ended,Hybrid Scheme - Aggressive Hybrid Fund,quant Absolute Fund - Growth Option - Regular Plan,Rs. 5000/-,19-Feb-2001,20-Mar-2001,INF966L01267
quant Money Managers Limited,120818,Quant Absolute Fund,Open Ended,Hybrid Scheme - Aggressive Hybrid Fund,quant Absolute Fund-IDCW Option-Direct Plan,Rs. 5000/-,19-Feb-2001,20-Mar-2001,INF966L01531INF966L01549
quant Money Managers Limited,120819,Quant Absolute Fund,Open Ended,Hybrid Scheme - Aggressive Hybrid Fund,quant Absolute Fund-Growth Option-Direct Plan,Rs. 5000/-,19-Feb-2001,20-Mar-2001,INF966L01556
quant Money Managers Limited,100630,Quant Active Fund,Open Ended,Equity Scheme - Multi Cap Fund,quant Active Fund-IDCW Option - Regular Plan,Rs. 5000/-,19-Feb-2001,20-Mar-2001,INF966L01218INF966L01226
quant Money Managers Limited,100631,Quant Active Fund,Open Ended,Equity Scheme - Multi Cap Fund,quant Active Fund-GROWTH OPTION - Regular Plan,Rs. 5000/-,19-Feb-2001,20-Mar-2001,INF966L01234
quant Money Managers Limited,120822,Quant Active Fund,Open Ended,Equity Scheme - Multi Cap Fund,quant Active Fund-IDCW Option - Direct Plan,Rs. 5000/-,19-Feb-2001,20-Mar-2001,INF966L01598INF966L01606
quant Money Managers Limited,120823,Quant Active Fund,Open Ended,Equity Scheme - Multi Cap Fund,quant Active Fund-GROWTH OPTION-Direct Plan,Rs. 5000/-,19-Feb-2001,20-Mar-2001,INF966L01614
quant Money Managers Limited,101071,Quant Multi Asset Fund,Open Ended,Hybrid Scheme - Multi Asset Allocation,quant Multi Asset Fund - IDCW Option - Regular Plan,Rs. 5000/-,19-Feb-2001,20-Mar-2001,INF966L01184INF966L01192
quant Money Managers Limited,101072,Quant Multi Asset Fund,Open Ended,Hybrid Scheme - Multi Asset Allocation,quant Multi Asset Fund-GROWTH OPTION - Regular Plan,Rs. 5000/-,19-Feb-2001,20-Mar-2001,INF966L01200
quant Money Managers Limited,120820,Quant Multi Asset Fund,Open Ended,Hybrid Scheme - Multi Asset Allocation,quant Multi Asset Fund - IDCW Option - Direct Plan,Rs. 5000/-,19-Feb-2001,20-Mar-2001,INF966L01564INF966L01572
quant Money Managers Limited,120821,Quant Multi Asset Fund,Open Ended,Hybrid Scheme - Multi Asset Allocation,quant Multi Asset Fund-GROWTH OPTION-Direct Plan,Rs. 5000/-,19-Feb-2001,20-Mar-2001,INF966L01580
Franklin Templeton Asset Management (India) Private Limited,101044,Franklin India Floating Rate Fund,Open Ended,Debt Scheme - Floater Fund,Franklin India Floating Rate Fund - IDCW ,Rs. 1000,23-Apr-2001,,INF090I01LN5
Franklin Templeton Asset Management (India) Private Limited,101045,Franklin India Floating Rate Fund,Open Ended,Debt Scheme - Floater Fund,Templeton India Liquid Plus-Growth Plan,Rs. 1000,23-Apr-2001,,
Franklin Templeton Asset Management (India) Private Limited,101046,Franklin India Floating Rate Fund,Open Ended,Debt Scheme - Floater Fund,Templeton India Liquid Plus-Growth Plan,Rs. 1000,23-Apr-2001,,
Franklin Templeton Asset Management (India) Private Limited,101047,Franklin India Floating Rate Fund,Open Ended,Debt Scheme - Floater Fund,Templeton India Liquid Plus-Growth Plan,Rs. 1000,23-Apr-2001,,
Franklin Templeton Asset Management (India) Private Limited,101048,Franklin India Floating Rate Fund,Open Ended,Debt Scheme - Floater Fund,Franklin India Floating Rate Fund - Growth Plan,Rs. 1000,23-Apr-2001,,INF090I01LM7
Franklin Templeton Asset Management (India) Private Limited,118507,Franklin India Floating Rate Fund,Open Ended,Debt Scheme - Floater Fund,Franklin India Floating Rate Fund - Direct - IDCW ,Rs. 1000,23-Apr-2001,,INF090I01LL9
Franklin Templeton Asset Management (India) Private Limited,118508,Franklin India Floating Rate Fund,Open Ended,Debt Scheme - Floater Fund,Franklin India Floating Rate Fund - Direct - Growth,Rs. 1000,23-Apr-2001,,INF090I01LK1
Tata Asset Management Limited,100414,Tata Hybrid Equity Fund,Open Ended,Hybrid Scheme - Aggressive Hybrid Fund,Tata Hybrid Equity Fund- Regular Plan - Growth Option,5000.00,30-Aug-1995,,INF277K01303
Tata Asset Management Limited,101222,Tata Hybrid Equity Fund,Open Ended,Hybrid Scheme - Aggressive Hybrid Fund,Tata Hybrid Equity Fund- Regular Plan - Periodic Payout of IDCW Option,5000.00,30-Aug-1995,,INF277K01DB6INF277K01295
Tata Asset Management Limited,113134,Tata Hybrid Equity Fund,Open Ended,Hybrid Scheme - Aggressive Hybrid Fund,Tata Hybrid Equity Fund- Regular Plan - Monthly Payout of IDCW Option,5000.00,30-Aug-1995,,INF277K01CS2INF277K01CW4
Tata Asset Management Limited,119053,Tata Hybrid Equity Fund,Open Ended,Hybrid Scheme - Aggressive Hybrid Fund,Tata Hybrid Equity Fund -Direct Plan- Growth Option,5000.00,30-Aug-1995,,INF277K01MN2
Tata Asset Management Limited,119057,Tata Hybrid Equity Fund,Open Ended,Hybrid Scheme - Aggressive Hybrid Fund,Tata Hybrid Equity Fund- Direct Plan - Monthly Payout of IDCW Option,5000.00,30-Aug-1995,,INF277K01MO0INF277K01MP7
Tata Asset Management Limited,119058,Tata Hybrid Equity Fund,Open Ended,Hybrid Scheme - Aggressive Hybrid Fund,Tata Hybrid Equity Fund- Direct Plan - Periodic Payout of IDCW Option,5000.00,30-Aug-1995,,INF277K01ML6INF277K01MM4
Tata Asset Management Limited,100474,Tata ELSS Tax Saver Fund,Open Ended,Equity Scheme - ELSS,Tata ELSS Tax Saver Fund- Regular Plan - Payout of IDCW Option,Rs.500,31-Mar-1996,,INF277K01I60
Tata Asset Management Limited,119281,Tata ELSS Tax Saver Fund,Open Ended,Equity Scheme - ELSS,Tata ELSS Tax Saver Fund- Direct Plan - Payout of IDCW Option,Rs.500,31-Mar-1996,,INF277K01I94
Tata Asset Management Limited,132756,Tata ELSS Tax Saver Fund,Open Ended,Equity Scheme - ELSS,Tata ELSS Tax Saver Fund-Growth-Direct Plan,Rs.500,31-Mar-1996,,INF277K01I86
Tata Asset Management Limited,132757,Tata ELSS Tax Saver Fund,Open Ended,Equity Scheme - ELSS,Tata ELSS Tax Saver Fund-Growth-Regular Plan,Rs.500,31-Mar-1996,,INF277K01I52
JM Financial Asset Management Limited,101078,JM Liquid Fund - Daily Dividend Option,Open Ended,Debt Scheme - Liquid Fund,JM Liquid Fund (Regular) - Daily IDCW,1000,23-Dec-1997,,INF192K01833
HDFC Asset Management Company Limited,101083,HDFC Gilt Fund,Open Ended,Debt Scheme - Gilt Fund,HDFC Gilt Fund - Growth Plan,REFER SID,16-Jul-2001,,INF179K01756
HDFC Asset Management Company Limited,101084,HDFC Gilt Fund,Open Ended,Debt Scheme - Gilt Fund,HDFC Gilt Fund - IDCW Plan,REFER SID,16-Jul-2001,,INF179K01772INF179K01764
HDFC Asset Management Company Limited,119115,HDFC Gilt Fund,Open Ended,Debt Scheme - Gilt Fund,HDFC Gilt Fund - IDCW Option - Direct Plan,REFER SID,16-Jul-2001,,INF179K01VR2INF179K01VT8
HDFC Asset Management Company Limited,119116,HDFC Gilt Fund,Open Ended,Debt Scheme - Gilt Fund,HDFC Gilt Fund - Growth Option - Direct Plan,REFER SID,16-Jul-2001,,INF179K01VS0
Taurus Asset Management Company Limited,101115,Taurus Short Term Income Fund,Open Ended,Debt Scheme - Short Duration Fund,Libra Bond Fund-Fixed Maturity Plan - II,Rs 5000 & in multiples of Re 1 thereafter,23-Jul-2001,18-Aug-2001,
ICICI Prudential Asset Management Company Limited,101098,ICICI Prudential Child Care -Study Plan,Open Ended,Income,ICICI Prudential Child Care Plan Study - Cumulative,Rs. 5000/- (plus in multiple of Re. 1/-),31-Aug-2001,,INF109K01597
ICICI Prudential Asset Management Company Limited,120691,ICICI Prudential Child Care -Study Plan,Open Ended,Income,ICICI Prudential Child Care Plan Study - Direct Plan- Cumulative,Rs. 5000/- (plus in multiple of Re. 1/-),31-Aug-2001,,INF109K01Y56
ICICI Prudential Asset Management Company Limited,101127,ICICI Prudential Child Care Fund (Gift Plan),Open Ended,Solution Oriented Scheme - Children s Fund,ICICI Prudential Child Care Fund (Gift Plan) - Cumulative,Rs. 5000/- (plus in multiple of Re. 1/-),31-Aug-2001,,INF109K01605
ICICI Prudential Asset Management Company Limited,120579,ICICI Prudential Child Care Fund (Gift Plan),Open Ended,Solution Oriented Scheme - Children s Fund,ICICI Prudential Child Care Fund (Gift Plan) - Direct Plan - Cumulative,Rs. 5000/- (plus in multiple of Re. 1/-),31-Aug-2001,,INF109K01Y49
ICICI Prudential Asset Management Company Limited,101228,ICICI Prudential Multicap Fund,Open Ended,Equity Scheme - Multi Cap Fund,ICICI Prudential Multicap Fund - Growth,Rs. 5000/- (plus in multiple of Re. 1/-),01-Sep-1994,,INF109K01613
ICICI Prudential Asset Management Company Limited,101706,ICICI Prudential Multicap Fund,Open Ended,Equity Scheme - Multi Cap Fund,ICICI Prudential Multicap Fund - IDCW,Rs. 5000/- (plus in multiple of Re. 1/-),01-Sep-1994,,INF109K01FK7INF109K01621
ICICI Prudential Asset Management Company Limited,120598,ICICI Prudential Multicap Fund,Open Ended,Equity Scheme - Multi Cap Fund,ICICI Prudential Multicap Fund - Direct Plan -  IDCW,Rs. 5000/- (plus in multiple of Re. 1/-),01-Sep-1994,,INF109K012O3INF109K013O1
ICICI Prudential Asset Management Company Limited,120599,ICICI Prudential Multicap Fund,Open Ended,Equity Scheme - Multi Cap Fund,ICICI Prudential Multicap Fund - Direct Plan -  Growth,Rs. 5000/- (plus in multiple of Re. 1/-),01-Sep-1994,,INF109K014O9
ICICI Prudential Asset Management Company Limited,101229,ICICI Prudential Short Term Fund-,Open Ended,Debt Scheme - Short Duration Fund,ICICI Prudential Short Term Fund - Institutional Plan - Dividend Monthly,5000,11-Dec-2012,,INF109K01WK2INF109K01670
ICICI Prudential Asset Management Company Limited,101230,ICICI Prudential Short Term Fund-,Open Ended,Debt Scheme - Short Duration Fund,ICICI Prudential Short Term Fund-Institutional Plan-Dividend Fortnightly,5000,11-Dec-2012,,INF109K01688
ICICI Prudential Asset Management Company Limited,101231,ICICI Prudential Short Term Fund-,Open Ended,Debt Scheme - Short Duration Fund,ICICI Prudential Short Term Fund-Institutional Growth,5000,11-Dec-2012,,INF109K01696
LIC Mutual Fund Asset Management Limited,101271,LIC MF Children's Fund,Open Ended,Solution Oriented Scheme - Children s Fund,LIC MF Children's Fund-Regular Plan-Growth,5000/-,26-Sep-2001,05-Oct-2001,INF767K01048
LIC Mutual Fund Asset Management Limited,120285,LIC MF Children's Fund,Open Ended,Solution Oriented Scheme - Children s Fund,LIC MF Children's Fund-Direct Plan-Growth,5000/-,26-Sep-2001,05-Oct-2001,INF767K01FB1
ICICI Prudential Asset Management Company Limited,101165,ICICI Prudential Short Term Fund - Div. Option,Open Ended,Debt Scheme - Short Duration Fund,ICICI Prudential Short Term Fund - Monthly IDCW,5,30-Nov-2001,,INF109K01WL0INF109K01647
Aditya Birla Sun Life AMC Limited,101316,Aditya Birla Sun Life Savings Fund,Open Ended,Debt Scheme - Ultra Short Duration Fund,Aditya Birla Sun Life Savings Fund-Retail Growth,5000,19-Nov-2001,,INF209K01MC8
Aditya Birla Sun Life AMC Limited,101317,Aditya Birla Sun Life Savings Fund,Open Ended,Debt Scheme - Ultra Short Duration Fund,Aditya Birla Sun Life Savings Fund - Growth - Regular Plan,5000,19-Nov-2001,,INF209K01LZ1
Aditya Birla Sun Life AMC Limited,105881,Aditya Birla Sun Life Savings Fund,Open Ended,Debt Scheme - Ultra Short Duration Fund,Aditya Birla Sun Life Savings Fund-Weekly - retail IDCW,5000,19-Nov-2001,,INF209K01MD6
Aditya Birla Sun Life AMC Limited,105887,Aditya Birla Sun Life Savings Fund,Open Ended,Debt Scheme - Ultra Short Duration Fund,Aditya Birla Sun Life Savings Fund-Regular - weekly IDCW,5000,19-Nov-2001,,INF209K01MA2
Aditya Birla Sun Life AMC Limited,105888,Aditya Birla Sun Life Savings Fund,Open Ended,Debt Scheme - Ultra Short Duration Fund,Aditya Birla Sun Life Savings Fund-Regular - DAILY IDCW,5000,19-Nov-2001,,INF209K01LY4
Aditya Birla Sun Life AMC Limited,109108,Aditya Birla Sun Life Savings Fund,Open Ended,Debt Scheme - Ultra Short Duration Fund,Aditya Birla Sun Life Savings Fund-Retail - Daily IDCW,5000,19-Nov-2001,,INF209K01MB0
Aditya Birla Sun Life AMC Limited,112016,Aditya Birla Sun Life Savings Fund,Open Ended,Debt Scheme - Ultra Short Duration Fund,Aditya Birla Sun Life Savings Fund - Discipline Advantage Plan,5000,19-Nov-2001,,INF209K01JT8
Aditya Birla Sun Life AMC Limited,119499,Aditya Birla Sun Life Savings Fund,Open Ended,Debt Scheme - Ultra Short Duration Fund,Aditya Birla Sun Life Savings Fund-DIRECT - WEEKLY IDCW,5000,19-Nov-2001,,INF209K01US7
Aditya Birla Sun Life AMC Limited,119500,Aditya Birla Sun Life Savings Fund,Open Ended,Debt Scheme - Ultra Short Duration Fund,Aditya Birla Sun Life Savings Fund-DIRECT - DAILY IDCW,5000,19-Nov-2001,,INF209K01UQ1
Aditya Birla Sun Life AMC Limited,119501,Aditya Birla Sun Life Savings Fund,Open Ended,Debt Scheme - Ultra Short Duration Fund,Aditya Birla Sun Life Savings Fund - Growth - Direct Plan,5000,19-Nov-2001,,INF209K01UR9
Franklin Templeton Asset Management (India) Private Limited,101330,FT India Gilt Fund,Open Ended,Gilt,FT India Gilt Fund-Investment Plan,Growth Option - 10000 & Dividend Payout - 25000,07-Dec-2001,,
Franklin Templeton Asset Management (India) Private Limited,101331,FT India Gilt Fund,Open Ended,Gilt,FT India Gilt Fund-Liquid Plan,Growth Option - 10000 & Dividend Payout - 25000,07-Dec-2001,,
Franklin Templeton Asset Management (India) Private Limited,101356,Franklin India Money Market Fund,Open Ended,Debt Scheme - Money Market Fund,Franklin India Money Market Fund Retail Option - Quarterly - IDCW,Rs.10000 (Long Term Plan),21-Jan-2002,,INF090I01BZ0INF090I01BY3
Franklin Templeton Asset Management (India) Private Limited,101357,Franklin India Money Market Fund,Open Ended,Debt Scheme - Money Market Fund,Franklin India Money Market Fund - Growth Option,Rs.10000 (Long Term Plan),21-Jan-2002,,INF090I01CA1
Franklin Templeton Asset Management (India) Private Limited,101358,Franklin India Money Market Fund,Open Ended,Debt Scheme - Money Market Fund,Franklin India Money Market Fund - Institutional Option - Growth,Rs.10000 (Long Term Plan),21-Jan-2002,,INF090I01BX5
Franklin Templeton Asset Management (India) Private Limited,101359,Franklin India Money Market Fund,Open Ended,Debt Scheme - Money Market Fund,Franklin India Money Market Fund - Institutional Option - Dividend,Rs.10000 (Long Term Plan),21-Jan-2002,,INF090I01BW7INF090I01BV9
Franklin Templeton Asset Management (India) Private Limited,118505,Franklin India Money Market Fund,Open Ended,Debt Scheme - Money Market Fund,Franklin India Money Market Fund Retail Option - Direct - Quarterly - IDCW,Rs.10000 (Long Term Plan),21-Jan-2002,,INF090I01GT2INF090I01GU0
Franklin Templeton Asset Management (India) Private Limited,118506,Franklin India Money Market Fund,Open Ended,Debt Scheme - Money Market Fund,Franklin India Money Market Fund - Direct - Growth,Rs.10000 (Long Term Plan),21-Jan-2002,,INF090I01GV8
Franklin Templeton Asset Management (India) Private Limited,122443,Franklin India Money Market Fund,Open Ended,Debt Scheme - Money Market Fund,Franklin India Money Market Fund Retail Option - Daily - IDCW,Rs.10000 (Long Term Plan),21-Jan-2002,,INF090I01KM9
Franklin Templeton Asset Management (India) Private Limited,122444,Franklin India Money Market Fund,Open Ended,Debt Scheme - Money Market Fund,Franklin India Money Market Fund Retail Option - Direct - Daily - IDCW,Rs.10000 (Long Term Plan),21-Jan-2002,,INF090I01KN7
Franklin Templeton Asset Management (India) Private Limited,129436,Franklin India Money Market Fund,Open Ended,Debt Scheme - Money Market Fund,Franklin India Money Market Fund Retail Option - Monthly - IDCW,Rs.10000 (Long Term Plan),21-Jan-2002,,INF090I01LA2INF090I01LB0
Franklin Templeton Asset Management (India) Private Limited,129437,Franklin India Money Market Fund,Open Ended,Debt Scheme - Money Market Fund,Franklin India Money Market Fund Retail Option - Direct - Monthly - IDCW,Rs.10000 (Long Term Plan),21-Jan-2002,,INF090I01LC8INF090I01LD6
Franklin Templeton Asset Management (India) Private Limited,152199,Franklin India Money Market Fund,Open Ended,Debt Scheme - Money Market Fund,Franklin India Money Market Fund Wkly IDCW R,Rs.10000 (Long Term Plan),21-Jan-2002,,INF090I01WT9INF090I01WU7
Franklin Templeton Asset Management (India) Private Limited,152200,Franklin India Money Market Fund,Open Ended,Debt Scheme - Money Market Fund,Franklin India Money Market Fund - DP - Wkly IDCW R,Rs.10000 (Long Term Plan),21-Jan-2002,,INF090I01WV5INF090I01WW3
Canara Robeco Asset Management Company Limited,109349,Canara Robeco Liquid Fund,Open Ended,Debt Scheme - Liquid Fund,CANARA ROBECO LIQUID FUND - REGULAR PLAN - DAILY IDCW (Reinvestment),Rs. 5000.00 and in multiples,09-Jan-2002,11-Jan-2002,INF760K01CU3
Canara Robeco Asset Management Company Limited,109350,Canara Robeco Liquid Fund,Open Ended,Debt Scheme - Liquid Fund,CANARA ROBECO LIQUID FUND - REGULAR PLAN - WEEKLY IDCW (Payout/Reinvestment),Rs. 5000.00 and in multiples,09-Jan-2002,11-Jan-2002,INF760K01BZ4INF760K01CZ2
Canara Robeco Asset Management Company Limited,109351,Canara Robeco Liquid Fund,Open Ended,Debt Scheme - Liquid Fund,CANARA ROBECO LIQUID FUND - REGULAR PLAN - MONTHLY IDCW (Payout/Reinvestment),Rs. 5000.00 and in multiples,09-Jan-2002,11-Jan-2002,INF760K01CX7INF760K01CY5
Canara Robeco Asset Management Company Limited,109353,Canara Robeco Liquid Fund,Open Ended,Debt Scheme - Liquid Fund,CANARA ROBECO LIQUID FUND - REGULAR PLAN - GROWTH OPTION,Rs. 5000.00 and in multiples,09-Jan-2002,11-Jan-2002,INF760K01CW9
Canara Robeco Asset Management Company Limited,109358,Canara Robeco Liquid Fund,Open Ended,Debt Scheme - Liquid Fund,Canara Robeco Liquid-Super Institutional-Monthly Div Payout,Rs. 5000.00 and in multiples,09-Jan-2002,11-Jan-2002,
Canara Robeco Asset Management Company Limited,118304,Canara Robeco Liquid Fund,Open Ended,Debt Scheme - Liquid Fund,CANARA ROBECO LIQUID FUND - DIRECT PLAN - IDCW (Payout/Reinvestment),Rs. 5000.00 and in multiples,09-Jan-2002,11-Jan-2002,INF760K01FT8
Canara Robeco Asset Management Company Limited,118305,Canara Robeco Liquid Fund,Open Ended,Debt Scheme - Liquid Fund,CANARA ROBECO LIQUID FUND - DIRECT PLAN - GROWTH OPTION,Rs. 5000.00 and in multiples,09-Jan-2002,11-Jan-2002,INF760K01FU6
Canara Robeco Asset Management Company Limited,118306,Canara Robeco Liquid Fund,Open Ended,Debt Scheme - Liquid Fund,CANARA ROBECO LIQUID FUND - DIRECT PLAN - MONTHLY IDCW (Payout/Reinvestment),Rs. 5000.00 and in multiples,09-Jan-2002,11-Jan-2002,INF760K01FV4INF760K01FW2
Canara Robeco Asset Management Company Limited,118307,Canara Robeco Liquid Fund,Open Ended,Debt Scheme - Liquid Fund,CANARA ROBECO LIQUID FUND - DIRECT PLAN - DAILY IDCW (Reinvestment),Rs. 5000.00 and in multiples,09-Jan-2002,11-Jan-2002,INF760K01FS0
Canara Robeco Asset Management Company Limited,118308,Canara Robeco Liquid Fund,Open Ended,Debt Scheme - Liquid Fund,CANARA ROBECO LIQUID FUND - DIRECT PLAN - WEEKLY IDCW (Payout/Reinvestment),Rs. 5000.00 and in multiples,09-Jan-2002,11-Jan-2002,INF760K01FY8INF760K01FX0
Canara Robeco Asset Management Company Limited,139235,Canara Robeco Liquid Fund,Open Ended,Debt Scheme - Liquid Fund,Canara Robeco Liquid Fund -Unclaimed Redemption and Dividend Plan -Direct Growth Option,Rs. 5000.00 and in multiples,09-Jan-2002,11-Jan-2002,INF760K01IC8
SBI Funds Management Limited,101345,Z-OLD-Magnum Index Fund,Open Ended,Growth,Magnum Index Fund,5000,18-Dec-2001,,
Franklin Templeton Asset Management (India) Private Limited,101232,Franklin India Short-Term Income Plan (no. of segregated portfolios- 3),Open Ended,Debt Scheme - Short Duration Fund,Franklin India Short-Term Income Plan-Growth,Rs.5000 (Retail) Rs.5 Crs (Institutional),31-Jan-2002,,INF090I01304
Franklin Templeton Asset Management (India) Private Limited,101233,Franklin India Short-Term Income Plan (no. of segregated portfolios- 3),Open Ended,Debt Scheme - Short Duration Fund,Templeton India Short-Term Income Plan-Monthly Dividend,Rs.5000 (Retail) Rs.5 Crs (Institutional),31-Jan-2002,,
Franklin Templeton Asset Management (India) Private Limited,101234,Franklin India Short-Term Income Plan (no. of segregated portfolios- 3),Open Ended,Debt Scheme - Short Duration Fund,Templeton India Short-Term Income Plan-Growth Plan,Rs.5000 (Retail) Rs.5 Crs (Institutional),31-Jan-2002,,
Franklin Templeton Asset Management (India) Private Limited,101235,Franklin India Short-Term Income Plan (no. of segregated portfolios- 3),Open Ended,Debt Scheme - Short Duration Fund,Templeton India Short-Term Income Plan-Monthly Dividend,Rs.5000 (Retail) Rs.5 Crs (Institutional),31-Jan-2002,,
Franklin Templeton Asset Management (India) Private Limited,101236,Franklin India Short-Term Income Plan (no. of segregated portfolios- 3),Open Ended,Debt Scheme - Short Duration Fund,Franklin India Short Term Income Plan -  Retail Plan - Monthly - IDCW,Rs.5000 (Retail) Rs.5 Crs (Institutional),31-Jan-2002,,INF090I01338INF090I01346
Franklin Templeton Asset Management (India) Private Limited,101237,Franklin India Short-Term Income Plan (no. of segregated portfolios- 3),Open Ended,Debt Scheme - Short Duration Fund,Franklin India Short-Term Income Plan-Weekly Bonus,Rs.5000 (Retail) Rs.5 Crs (Institutional),31-Jan-2002,,INF090I01DY9
Franklin Templeton Asset Management (India) Private Limited,148319,Franklin India Short-Term Income Plan (no. of segregated portfolios- 3),Open Ended,Debt Scheme - Short Duration Fund,Franklin India Short Term Income Plan- Retail Plan-Segregated Portfolio 3 (9.50% Yes Bank Ltd CO 23Dec21) - Monthly - IDCW,Rs.5000 (Retail) Rs.5 Crs (Institutional),31-Jan-2002,,INF090I01VP9
Franklin Templeton Asset Management (India) Private Limited,148313,Franklin India Short-Term Income Plan (no. of segregated portfolios- 3),Open Ended,Debt Scheme - Short Duration Fund,Franklin India Short Tem Income Plan - Segregated Portfolio 3 (9.50% Yes Bank Ltd CO 23Dec21) - Direct Retail Plan Growth Option,Rs.5000 (Retail) Rs.5 Crs (Institutional),31-Jan-2002,,INF090I01VS3
Franklin Templeton Asset Management (India) Private Limited,148314,Franklin India Short-Term Income Plan (no. of segregated portfolios- 3),Open Ended,Debt Scheme - Short Duration Fund,Franklin India Short Term Income Plan - Segregated Portfolio 3 (9.50% Yes Bank Ltd CO 23Dec21) - Institutional Plan Growth Option,Rs.5000 (Retail) Rs.5 Crs (Institutional),31-Jan-2002,,INF090I01VR5
Franklin Templeton Asset Management (India) Private Limited,148315,Franklin India Short-Term Income Plan (no. of segregated portfolios- 3),Open Ended,Debt Scheme - Short Duration Fund,Franklin India Short-term Income Plan- Retail Plan-Segregated Portfolio 3 (9.50% Yes Bank Ltd CO 23Dec21) - Weekly - IDCW,Rs.5000 (Retail) Rs.5 Crs (Institutional),31-Jan-2002,,INF090I01VQ7
Franklin Templeton Asset Management (India) Private Limited,148316,Franklin India Short-Term Income Plan (no. of segregated portfolios- 3),Open Ended,Debt Scheme - Short Duration Fund,Franklin India Short-term Income Plan-Retail Plan-Segregated Portfolio 3 (9.50% Yes Bank Ltd CO 23Dec21) - Direct Weekly - IDCW,Rs.5000 (Retail) Rs.5 Crs (Institutional),31-Jan-2002,,INF090I01VV7
Franklin Templeton Asset Management (India) Private Limited,148317,Franklin India Short-Term Income Plan (no. of segregated portfolios- 3),Open Ended,Debt Scheme - Short Duration Fund,Franklin India Short term Income Plan- Retail Plan-Segregated Portfolio 3 (9.50% Yes Bank Ltd CO 23Dec21) - Quarterly - IDCW,Rs.5000 (Retail) Rs.5 Crs (Institutional),31-Jan-2002,,INF090I01VO2
Franklin Templeton Asset Management (India) Private Limited,148318,Franklin India Short-Term Income Plan (no. of segregated portfolios- 3),Open Ended,Debt Scheme - Short Duration Fund,Franklin India Short Term Income Plan - Segregated Portfolio 3 (9.50% Yes Bank Ltd CO 23Dec21) - Retail Plan Growth Option,Rs.5000 (Retail) Rs.5 Crs (Institutional),31-Jan-2002,,INF090I01VN4
Franklin Templeton Asset Management (India) Private Limited,148015,Franklin India Short-Term Income Plan (no. of segregated portfolios- 3),Open Ended,Debt Scheme - Short Duration Fund,Franklin India Short term Income Plan- Retail Plan- Segregated Portfolio 2- 10.90% Vodafone Idea Ltd 02Sep2023-Direct-Growth Option,Rs.5000 (Retail) Rs.5 Crs (Institutional),31-Jan-2002,,INF090I01UY3
Franklin Templeton Asset Management (India) Private Limited,148016,Franklin India Short-Term Income Plan (no. of segregated portfolios- 3),Open Ended,Debt Scheme - Short Duration Fund,Franklin India Short term Income Plan- Retail Plan-Segregated Portfolio 2 - 10.90% Vodafone Idea Ltd (02-Sep-2023) - Direct Weekly - IDCW,Rs.5000 (Retail) Rs.5 Crs (Institutional),31-Jan-2002,,INF090I01VB9
Franklin Templeton Asset Management (India) Private Limited,148017,Franklin India Short-Term Income Plan (no. of segregated portfolios- 3),Open Ended,Debt Scheme - Short Duration Fund,Franklin India Short term Income Plan- Retail Plan-Segregated Portfolio 2 - 10.90% Vodafone Idea Ltd (02-Sep-2023) - Direct Monthly - IDCW,Rs.5000 (Retail) Rs.5 Crs (Institutional),31-Jan-2002,,INF090I01VA1
Franklin Templeton Asset Management (India) Private Limited,148018,Franklin India Short-Term Income Plan (no. of segregated portfolios- 3),Open Ended,Debt Scheme - Short Duration Fund,Franklin India Short term Income Plan- Retail Plan-Segregated Portfolio 2 - 10.90% Vodafone Idea Ltd (02-Sep-2023) - Direct Quarterly - IDCW,Rs.5000 (Retail) Rs.5 Crs (Institutional),31-Jan-2002,,INF090I01UZ0
Franklin Templeton Asset Management (India) Private Limited,148311,Franklin India Short-Term Income Plan (no. of segregated portfolios- 3),Open Ended,Debt Scheme - Short Duration Fund,Franklin India Short term Income Plan- Retail Plan-Segregated Portfolio 3 (9.50% Yes Bank Ltd CO 23Dec21) - Direct Quarterly - IDCW,Rs.5000 (Retail) Rs.5 Crs (Institutional),31-Jan-2002,,INF090I01VT1
Franklin Templeton Asset Management (India) Private Limited,148312,Franklin India Short-Term Income Plan (no. of segregated portfolios- 3),Open Ended,Debt Scheme - Short Duration Fund,Franklin India Short term Income Plan- Retail Plan-Segregated Portfolio 3 (9.50% Yes Bank Ltd CO 23Dec21) - Direct Monthly - IDCW,Rs.5000 (Retail) Rs.5 Crs (Institutional),31-Jan-2002,,INF090I01VU9
Franklin Templeton Asset Management (India) Private Limited,148009,Franklin India Short-Term Income Plan (no. of segregated portfolios- 3),Open Ended,Debt Scheme - Short Duration Fund,Franklin India Short term Income Plan- Retail Plan-Segregated Portfolio 1- 8.25% Vodafone Idea Ltd-10JUL20-Direct- Quarterly Dividend Option,Rs.5000 (Retail) Rs.5 Crs (Institutional),31-Jan-2002,,INF090I01UQ9
Franklin Templeton Asset Management (India) Private Limited,148010,Franklin India Short-Term Income Plan (no. of segregated portfolios- 3),Open Ended,Debt Scheme - Short Duration Fund,Franklin India Short term Income Plan- Retail Plan- Segregated Portfolio 2- 10.90% Vodafone Idea Ltd 02Sep2023-Growth Option,Rs.5000 (Retail) Rs.5 Crs (Institutional),31-Jan-2002,,INF090I01UT3
Franklin Templeton Asset Management (India) Private Limited,148011,Franklin India Short-Term Income Plan (no. of segregated portfolios- 3),Open Ended,Debt Scheme - Short Duration Fund,Franklin India Short term Income Plan- Retail Plan-Segregated Portfolio 2 - 10.90% Vodafone Idea Ltd (02-Sep-2023) - Monthly - IDCW,Rs.5000 (Retail) Rs.5 Crs (Institutional),31-Jan-2002,,INF090I01UV9
Franklin Templeton Asset Management (India) Private Limited,148012,Franklin India Short-Term Income Plan (no. of segregated portfolios- 3),Open Ended,Debt Scheme - Short Duration Fund,Franklin India Short term Income Plan- Retail Plan-Segregated Portfolio 2 - 10.90% Vodafone Idea Ltd (02-Sep-2023) - Quarterly - IDCW,Rs.5000 (Retail) Rs.5 Crs (Institutional),31-Jan-2002,,INF090I01UU1
Franklin Templeton Asset Management (India) Private Limited,148013,Franklin India Short-Term Income Plan (no. of segregated portfolios- 3),Open Ended,Debt Scheme - Short Duration Fund,Franklin India Short term Income Plan- Institutional Plan- Segregated Portfolio 2- 10.90% Vodafone Idea Ltd 02Sep2023-Growth Option,Rs.5000 (Retail) Rs.5 Crs (Institutional),31-Jan-2002,,INF090I01UX5
Franklin Templeton Asset Management (India) Private Limited,148014,Franklin India Short-Term Income Plan (no. of segregated portfolios- 3),Open Ended,Debt Scheme - Short Duration Fund,Franklin India Short term Income Plan- Retail Plan-Segregated Portfolio 2 - 10.90% Vodafone Idea Ltd (02-Sep-2023) - Weekly - IDCW,Rs.5000 (Retail) Rs.5 Crs (Institutional),31-Jan-2002,,INF090I01UW7
Franklin Templeton Asset Management (India) Private Limited,148003,Franklin India Short-Term Income Plan (no. of segregated portfolios- 3),Open Ended,Debt Scheme - Short Duration Fund,Franklin India Short Term Income Plan- Retail Plan-Segregated Portfolio 1- 8.25% Vodafone Idea Ltd-10JUL20-Monthly Dividend Option,Rs.5000 (Retail) Rs.5 Crs (Institutional),31-Jan-2002,,INF090I01UM8
